Workbook

Sheet TAEG - Impact apport personnel
B2: Comparer deux projets où seul l'apport personnel diffère ce qui entraine une différence sur le montant du crédit nécessaire pour équilibrer le plan de financement et celui des échéances.
B3: 1er cas d'école - Incidence apport personnel | F3: Avertissement | I3: Comparaisons détaillées - Coût Crédit Corrigé - Valeur patrimoine total - Contrôle cohérence
B4: Données générales | F4: Il s'agit d'un premier cas d'école où, afin de ne mesurer que le seul impact de l'apport personnel, il est volontairement supposé que toutes les autres caractéristiques des prêts sont strictement identiques ce qui - en réalité - n'est pas le cas (Taux + Frais dossier + frais garantie + Courtage + parts sociales....différents) | I4: Différentes hypothèses à comparer | M4: Pas d'investissement physique = Investissement financier seulement | N4: Projet avec Banque "A" | O4: Projet avec Banque "B" | P4: Commentaires
B5: Construction | E5: 200000 | H5: Seules les cellules en mauve colonne ''E'' peuvent être modifiées | I5: Ce que vous avez réellement payé | J5: Intérêts réellement payés | M5: 0 | N5: =D268 -> 30356.82 | O5: =L268 -> 33519.01 | P5: Critère non pertinent
B6: Frais divers | E6: 12000 | J6: Frais payés | M6: 0 | N6: =E6 -> 12000 | O6: =E6 -> 12000
B7: Total projet | E7: =SUM(E5:E6) -> 212000 | J7: => Coût Crédit Simple | M7: =SUM(M5:M6) -> 0 | N7: =SUM(N5:N6) -> 42356.82 | O7: =SUM(O5:O6) -> 45519.01
B8: Taux de rémunération épargne | E8: 0.005 | I8: C'est le coût réel dans chaque cas de figure | J8: Manque à gagner en intérêts sur apport investi sur durée la plus longue | M8: 0 | N8: =AF268 -> 2097.911544 | O8: =AM268 -> 0 | P8: Critère à privilégier au même titre que la Valeur Patimoine
B9: Durées des prêts en mois | E9: 240 | J9: Manque à gagner en intérêts sur échéances payées sur durée la plus longue | M9: 0 | N9: =AC268 -> 11517.38819 | O9: =AJ268 -> 12717.12384
B10: Taux des prêts | E10: 0.015 | J10: => Coût Crédit Corrigé | M10: =SUM(M8:M9) -> 0 | N10: =N7+N8+N9 -> 55972.11973 | O10: =O7+O8+O9 -> 58236.13384
B11: Apport exigé par Banque "A" | E11: 20000 | I11: Valeur du parimoine total au terme de la durée du prêt initial le plus long | J11: Valeur acquise par épargne résiduelle après apport au terme durée la plus longue | M11: =X268 -> 22097.91154 | N11: =AS268 -> 0 | O11: =AZ268 -> 22097.91154 | P11: Critère à prévilégier au même titre que le Coût du Crédit Corrigé
B12: Apport exigé par Banque "B" | E12: 0 | J12: Valeur acquise par résiduel sur capacité endettement au terme durée la plus longue | M12: =U268 -> 258236.1338 | N12: =AP268 -> 24361.92565 | O12: =AW268 -> 0
B13: Crédit Banque "A" | E13: =$E$7-E11 -> 192000 | J13: Valeur patrimoine financier | M13: =SUM(M11:M12) -> 280334.0454 | N13: =SUM(N11:N12) -> 24361.92565 | O13: 22097.91154
B14: Crédit Banque "B" | E14: =$E$7-E12 -> 212000 | J14: Valeur patrimoine physique sans plus value ni moins value | M14: 0 | N14: =$E$5 -> 200000 | O14: =N14 -> 200000
B15: Apport personnel maximum | E15: =MAX(E11,E12) -> 20000 | J15: => Valeur patrimoine total | M15: =SUM(M13:M14) -> 280334.0454 | N15: =SUM(N13:N14) -> 224361.9257 | O15: =SUM(O13:O14) -> 222097.9115
B16: Capacité de remboursement maxi | E16: =ROUND(-PMT($E$10/12,$E$9,MAX(E13,E14),0,0),2) -> 1023 | F16: Egale capacité d'épargne | H16: =E16 -> 1023 | I16: Coût Crédit Corrigé au terme de la durée du prêt initial | M16: =M10 -> 0 | N16: =N10 -> 55972.11973 | O16: =O10 -> 58236.13384 | P16: Contrôle de cohérence
B17: Tant pour le calcul du ''Coût du Crédit Corrigé'' que de la ''Valeur du Patrimoine Total", en cellule "E8"ci-dessus, il vous faut renseigner le taux de rémunération de votre épargne. Par défaut c'est la taux du ''livret A'' qui est prévu. Mais en cliquant sur le bouton ''CALCUL'' ci-contre vous pouvez obtenir le ''Taux Pivot de Rémunérartion de l'Epargne". => ''Point Mort'' où les deux offres sont financièrement identiques | H17: Taux pivot de rémunération de l'épargne | I17: Valeur patrimoine total au terme de la durée du prêt initial | M17: =M15 -> 280334.0454 | N17: =N15 -> 224361.9257 | O17: =O15 -> 222097.9115
I18: Contrôle de cohérence | M18: =SUM(M16:M17) -> 280334.0454 | N18: =SUM(N16:N17) -> 280334.0454 | O18: =SUM(O16:O17) -> 280334.0454
I19: Meilleure offre de prêt | M19: 0 | N19: =IF(AND(E8=H20,E8<>$M$20),"Banque ''A''",IF(AND(M19<>1,N17=P19),"Banque ''A''","")) -> Banque ''A'' | O19: =IF(AND(E8=H20,E8<>M20),"Banque ''B''",IF(AND(M19<>1,O17=P19),"Banque ''B''","")) ->  | P19: =MAX(N17,O17) -> 224361.9257
H20: 0.01523987042 | I20: Taux Effectif Global (T.A.E.G.) | M20: 0.005 | N20: =G26 -> 0.02207522103 | O20: =O26 -> 0.02138844906 | P20: =MIN(N20,O20) -> 0.02138844906
I21: Rappel de l'apport personnel prévu | N21: =E11 -> 20000 | O21: =E12 -> 0
H22: =N16-O16 -> -2264.014108 | I22: =IF(E11=E12,"Les deux offres sont financièrement équivalentes",IF(AND(E8=H20,E8<>M20),"Au taux pivôt de rémunération de l'épargne les deux offres sont financièrement équivalentes - Ignorez le T.A.E.G.",IF(M19=1,"Au taux pivôt de rémunération de l'épargne les ''Coûts du Crédit Corrigé'' et les ''Valeurs du patrimoine'' sont identiques",IF(OR(AND(N17=P19,N20>O20),AND(O17=P19,O20>N20)),"Au taux de rémunération de l'épargne indiqué, le TAEG le plus faible est incohérent avec le Coût du Crédit Corrigé et la Valeur du Patrimoine et oriente vers un mauvais choix","Au taux de rémunération de l'épargne indiqué, le TAEG le plus faible est cohérent avec le Coût du Crédit Corrigé et la Valeur du Patrimoine et oriente vers le bon choix")))) -> Au taux de rémunération de l'épargne indiqué, le TAEG le plus faible est incohérent avec le Coût du Crédit Corrigé et la Valeur du Patrimoine et oriente vers un mauvais choix
B24: Banque "A" | H24: Apport | I24: =E11 -> 20000 | K24: Banque "B" | P24: Apport | Q24: =E12 -> 0 | S24: Pas d'investissement physique - Seulement investissement financier | AA24: Manques à gagner en intérêts Banque "A" | AH24: Manques à gagner en intérêts Banque "B" | AO24: Epargne résiduelle Banque "A" | AV24: Epargne résiduelle Banque "B"
B25: Rang | C25: Échéance | D25: Intérêts | E25: Capital amorti | F25: Capital dû | G25: TAEG | H25: Coût crédit simple | I25: Coût crédit corrigé | K25: Échéance | L25: Intérêts | M25: Capital amorti | N25: Capital dû | O25: TAEG | P25: Coût crédit simple | Q25: Coût crédit corrigé | S25: Placement capacité épargne/remboursement | X25: Placement apport personnel maxi | AA25: Manque à gagner en intérêts sur échéances payées | AE25: Manque gagner en intérêts sur apport | AH25: Manque à gagner en intérêts sur échéances payées | AL25: Manque gagner en intérêts sur apport | AO25: Placement disponible sur échéances | AS25: Placement disponible sur apport | AV25: Placement disponible sur échéances | AZ25: Placement disponible sur apport
G26: =((1+G268)^(12))-1 -> 0.02207522103 | H26: =D268+$E$6 -> 42356.82 | I26: =D268+E6+AC268+AF268 -> 55972.11973 | O26: =((1+O268)^(12))-1 -> 0.02138844906 | P26: =L268+$E$6 -> 45519.01 | Q26: =L268+E6+AJ268+AM268 -> 58236.13384
B27: 0 | F27: =E13 -> 192000 | G27: =F27-$E$6 -> 180000 | N27: =E14 -> 212000 | O27: =N27-$E$6 -> 200000 | S27: 0 | X27: =$E$15 -> 20000 | AE27: =$E$11 -> 20000 | AL27: =$E$12 -> 0 | AS27: =$E$15-$E$11 -> 0 | AZ27: =$E$15-$E$12 -> 20000
B28: 1 | C28: =ROUND(-PMT($E$10/12,$E$9,$E$13,0,0),2) -> 926.49 | D28: =ROUND(F27*$E$10/12,2) -> 240 | E28: =C28-D28 -> 686.49 | F28: =F27-E28 -> 191313.51 | G28: =-C28 -> -926.49 | K28: =ROUND(-PMT($E$10/12,$E$9,$E$14,0,0),2) -> 1023 | L28: =ROUND(N27*$E$10/12,2) -> 265 | M28: =K28-L28 -> 758 | N28: =N27-M28 -> 211242 | O28: =-K28 -> -1023 | S28: 1 | T28: =IF(C28>K28,C28,K28) -> 1023 | U28: =T28 -> 1023 | V28: =U28*$E$8/12 -> 0.42625 | X28: =X27 -> 20000 | Y28: =X27*$E$8/12 -> 8.333333333 | AA28: =C28 -> 926.49 | AB28: =AA28 -> 926.49 | AC28: =AB28*$E$8/12 -> 0.3860375 | AE28: =AE27 -> 20000 | AF28: =AE27*$E$8/12 -> 8.333333333 | AH28: =K28 -> 1023 | AI28: =AH28 -> 1023 | AJ28: =AI28*$E$8/12 -> 0.42625 | AL28: =AL27 -> 0 | AM28: =AL27*$E$8/12 -> 0 | AO28: =T28-C28 -> 96.51 | AP28: =AO28 -> 96.51 | AQ28: =AP28*$E$8/12 -> 0.0402125 | AS28: =AS27 -> 0 | AT28: =AS27*$E$8/12 -> 0 | AV28: =T28-K28 -> 0 | AW28: =AV28 -> 0 | AX28: =AW28*$E$8/12 -> 0 | AZ28: =AZ27 -> 20000 | BA28: =AZ27*$E$8/12 -> 8.333333333
B29: 2 | C29: 926.49 | D29: 239.14 | E29: =C29-D29 -> 687.35 | F29: =F28-E29 -> 190626.16 | G29: =-C29 -> -926.49 | K29: 1023 | L29: 264.05 | M29: =K29-L29 -> 758.95 | N29: =N28-M29 -> 210483.05 | O29: =-K29 -> -1023 | S29: 2 | T29: =IF(C29>K29,C29,K29) -> 1023 | U29: =U28+T29 -> 2046 | V29: 0.8525 | X29: =X28 -> 20000 | Y29: 8.333333333 | AA29: =C29 -> 926.49 | AB29: =AB28+AA29 -> 1852.98 | AC29: 0.772075 | AE29: =AE28 -> 20000 | AF29: 8.333333333 | AH29: =K29 -> 1023 | AI29: =AI28+AH29 -> 2046 | AJ29: 0.8525 | AL29: =AL28 -> 0 | AM29: 0 | AO29: =T29-C29 -> 96.51 | AP29: =AP28+AO29 -> 193.02 | AQ29: 0.080425 | AS29: =AS28 -> 0 | AT29: 0 | AV29: =T29-K29 -> 0 | AW29: =AW28+AV29 -> 0 | AX29: 0 | AZ29: =AZ28 -> 20000 | BA29: 8.333333333
B30: 3 | C30: 926.49 | D30: 238.28 | E30: 688.21 | F30: 189937.95 | G30: -926.49 | K30: 1023 | L30: 263.1 | M30: 759.9 | N30: 209723.15 | O30: -1023 | S30: 3 | T30: 1023 | U30: =U29+T30 -> 3069 | V30: 1.27875 | X30: 20000 | Y30: 8.333333333 | AA30: =C30 -> 926.49 | AB30: =AB29+AA30 -> 2779.47 | AC30: 1.1581125 | AE30: 20000 | AF30: 8.333333333 | AH30: 1023 | AI30: =AI29+AH30 -> 3069 | AJ30: 1.27875 | AL30: 0 | AM30: 0 | AO30: 96.51 | AP30: =AP29+AO30 -> 289.53 | AQ30: 0.1206375 | AS30: 0 | AT30: 0 | AV30: 0 | AW30: =AW29+AV30 -> 0 | AX30: 0 | AZ30: 20000 | BA30: 8.333333333
B31: 4 | C31: 926.49 | D31: 237.42 | E31: 689.07 | F31: 189248.88 | G31: -926.49 | K31: 1023 | L31: 262.15 | M31: 760.85 | N31: 208962.3 | O31: -1023 | S31: 4 | T31: 1023 | U31: 4092 | V31: 1.705 | X31: 20000 | Y31: 8.333333333 | AA31: 926.49 | AB31: 3705.96 | AC31: 1.54415 | AE31: 20000 | AF31: 8.333333333 | AH31: 1023 | AI31: 4092 | AJ31: 1.705 | AL31: 0 | AM31: 0 | AO31: 96.51 | AP31: 386.04 | AQ31: 0.16085 | AS31: 0 | AT31: 0 | AV31: 0 | AW31: 0 | AX31: 0 | AZ31: 20000 | BA31: 8.333333333
B32: 5 | C32: 926.49 | D32: 236.56 | E32: 689.93 | F32: 188558.95 | G32: -926.49 | K32: 1023 | L32: 261.2 | M32: 761.8 | N32: 208200.5 | O32: -1023 | S32: 5 | T32: 1023 | U32: 5115 | V32: 2.13125 | X32: 20000 | Y32: 8.333333333 | AA32: 926.49 | AB32: 4632.45 | AC32: 1.9301875 | AE32: 20000 | AF32: 8.333333333 | AH32: 1023 | AI32: 5115 | AJ32: 2.13125 | AL32: 0 | AM32: 0 | AO32: 96.51 | AP32: 482.55 | AQ32: 0.2010625 | AS32: 0 | AT32: 0 | AV32: 0 | AW32: 0 | AX32: 0 | AZ32: 20000 | BA32: 8.333333333
B33: 6 | C33: 926.49 | D33: 235.7 | E33: 690.79 | F33: 187868.16 | G33: -926.49 | K33: 1023 | L33: 260.25 | M33: 762.75 | N33: 207437.75 | O33: -1023 | S33: 6 | T33: 1023 | U33: 6138 | V33: 2.5575 | X33: 20000 | Y33: 8.333333333 | AA33: 926.49 | AB33: 5558.94 | AC33: 2.316225 | AE33: 20000 | AF33: 8.333333333 | AH33: 1023 | AI33: 6138 | AJ33: 2.5575 | AL33: 0 | AM33: 0 | AO33: 96.51 | AP33: 579.06 | AQ33: 0.241275 | AS33: 0 | AT33: 0 | AV33: 0 | AW33: 0 | AX33: 0 | AZ33: 20000 | BA33: 8.333333333
B34: 7 | C34: 926.49 | D34: 234.84 | E34: 691.65 | F34: 187176.51 | G34: -926.49 | K34: 1023 | L34: 259.3 | M34: 763.7 | N34: 206674.05 | O34: -1023 | S34: 7 | T34: 1023 | U34: 7161 | V34: 2.98375 | X34: 20000 | Y34: 8.333333333 | AA34: 926.49 | AB34: 6485.43 | AC34: 2.7022625 | AE34: 20000 | AF34: 8.333333333 | AH34: 1023 | AI34: 7161 | AJ34: 2.98375 | AL34: 0 | AM34: 0 | AO34: 96.51 | AP34: 675.57 | AQ34: 0.2814875 | AS34: 0 | AT34: 0 | AV34: 0 | AW34: 0 | AX34: 0 | AZ34: 20000 | BA34: 8.333333333
B35: 8 | C35: 926.49 | D35: 233.97 | E35: 692.52 | F35: 186483.99 | G35: -926.49 | K35: 1023 | L35: 258.34 | M35: 764.66 | N35: 205909.39 | O35: -1023 | S35: 8 | T35: 1023 | U35: 8184 | V35: 3.41 | X35: 20000 | Y35: 8.333333333 | AA35: 926.49 | AB35: 7411.92 | AC35: 3.0883 | AE35: 20000 | AF35: 8.333333333 | AH35: 1023 | AI35: 8184 | AJ35: 3.41 | AL35: 0 | AM35: 0 | AO35: 96.51 | AP35: 772.08 | AQ35: 0.3217 | AS35: 0 | AT35: 0 | AV35: 0 | AW35: 0 | AX35: 0 | AZ35: 20000 | BA35: 8.333333333
B36: 9 | C36: 926.49 | D36: 233.1 | E36: 693.39 | F36: 185790.6 | G36: -926.49 | K36: 1023 | L36: 257.39 | M36: 765.61 | N36: 205143.78 | O36: -1023 | S36: 9 | T36: 1023 | U36: 9207 | V36: 3.83625 | X36: 20000 | Y36: 8.333333333 | AA36: 926.49 | AB36: 8338.41 | AC36: 3.4743375 | AE36: 20000 | AF36: 8.333333333 | AH36: 1023 | AI36: 9207 | AJ36: 3.83625 | AL36: 0 | AM36: 0 | AO36: 96.51 | AP36: 868.59 | AQ36: 0.3619125 | AS36: 0 | AT36: 0 | AV36: 0 | AW36: 0 | AX36: 0 | AZ36: 20000 | BA36: 8.333333333
B37: 10 | C37: 926.49 | D37: 232.24 | E37: 694.25 | F37: 185096.35 | G37: -926.49 | K37: 1023 | L37: 256.43 | M37: 766.57 | N37: 204377.21 | O37: -1023 | S37: 10 | T37: 1023 | U37: 10230 | V37: 4.2625 | X37: 20000 | Y37: 8.333333333 | AA37: 926.49 | AB37: 9264.9 | AC37: 3.860375 | AE37: 20000 | AF37: 8.333333333 | AH37: 1023 | AI37: 10230 | AJ37: 4.2625 | AL37: 0 | AM37: 0 | AO37: 96.51 | AP37: 965.1 | AQ37: 0.402125 | AS37: 0 | AT37: 0 | AV37: 0 | AW37: 0 | AX37: 0 | AZ37: 20000 | BA37: 8.333333333
B38: 11 | C38: 926.49 | D38: 231.37 | E38: 695.12 | F38: 184401.23 | G38: -926.49 | K38: 1023 | L38: 255.47 | M38: 767.53 | N38: 203609.68 | O38: -1023 | S38: 11 | T38: 1023 | U38: 11253 | V38: 4.68875 | X38: 20000 | Y38: 8.333333333 | AA38: 926.49 | AB38: 10191.39 | AC38: 4.2464125 | AE38: 20000 | AF38: 8.333333333 | AH38: 1023 | AI38: 11253 | AJ38: 4.68875 | AL38: 0 | AM38: 0 | AO38: 96.51 | AP38: 1061.61 | AQ38: 0.4423375 | AS38: 0 | AT38: 0 | AV38: 0 | AW38: 0 | AX38: 0 | AZ38: 20000 | BA38: 8.333333333
B39: 12 | C39: 926.49 | D39: 230.5 | E39: 695.99 | F39: 183705.24 | G39: -926.49 | K39: 1023 | L39: 254.51 | M39: 768.49 | N39: 202841.19 | O39: -1023 | S39: 12 | T39: 1023 | U39: 12276 | V39: 5.115 | W39: =SUM(V28:V39) -> 33.2475 | X39: =X38+Z39 -> 20100 | Y39: 8.333333333 | Z39: =SUM(Y28:Y39) -> 100 | AA39: 926.49 | AB39: 11117.88 | AC39: 4.63245 | AD39: =SUM(AC28:AC39) -> 30.110925 | AE39: =AE38+AG39 -> 20100 | AF39: 8.333333333 | AG39: =SUM(AF28:AF39) -> 100 | AH39: 1023 | AI39: 12276 | AJ39: 5.115 | AK39: =SUM(AJ28:AJ39) -> 33.2475 | AL39: =AL38+AN39 -> 0 | AM39: 0 | AN39: =SUM(AM28:AM39) -> 0 | AO39: 96.51 | AP39: 1158.12 | AQ39: 0.48255 | AR39: =SUM(AQ28:AQ39) -> 3.136575 | AS39: =AS38+AU39 -> 0 | AT39: 0 | AU39: =SUM(AT28:AT39) -> 0 | AV39: 0 | AW39: 0 | AX39: 0 | AY39: =SUM(AX28:AX39) -> 0 | AZ39: =AZ38+BB39 -> 20100 | BA39: 8.333333333 | BB39: =SUM(BA28:BA39) -> 100
B40: 13 | C40: 926.49 | D40: 229.63 | E40: 696.86 | F40: 183008.38 | G40: -926.49 | K40: 1023 | L40: 253.55 | M40: 769.45 | N40: 202071.74 | O40: -1023 | S40: 13 | T40: 1023 | U40: =U39+T40+W39 -> 13332.2475 | V40: 5.555103125 | X40: 20100 | Y40: 8.375 | AA40: 926.49 | AB40: =AB39+AA40+AD39 -> 12074.48092 | AC40: 5.031033719 | AE40: 20100 | AF40: 8.375 | AH40: 1023 | AI40: =AI39+AH40+AK39 -> 13332.2475 | AJ40: 5.555103125 | AL40: =AL39 -> 0 | AM40: 0 | AO40: 96.51 | AP40: =AP39+AO40+AR39 -> 1257.766575 | AQ40: 0.5240694062 | AS40: 0 | AT40: 0 | AV40: 0 | AW40: =AW39+AV40+AY39 -> 0 | AX40: 0 | AZ40: =AZ39 -> 20100 | BA40: 8.375
B41: 14 | C41: 926.49 | D41: 228.76 | E41: 697.73 | F41: 182310.65 | G41: -926.49 | K41: 1023 | L41: 252.59 | M41: 770.41 | N41: 201301.33 | O41: -1023 | S41: 14 | T41: 1023 | U41: 14355.2475 | V41: 5.981353125 | X41: 20100 | Y41: 8.375 | AA41: 926.49 | AB41: 13000.97092 | AC41: 5.417071219 | AE41: 20100 | AF41: 8.375 | AH41: 1023 | AI41: =AI40+AH41 -> 14355.2475 | AJ41: 5.981353125 | AL41: 0 | AM41: 0 | AO41: 96.51 | AP41: =AP40+AO41 -> 1354.276575 | AQ41: 0.5642819062 | AS41: 0 | AT41: 0 | AV41: 0 | AW41: =AW40+AV41 -> 0 | AX41: 0 | AZ41: 20100 | BA41: 8.375
B42: 15 | C42: 926.49 | D42: 227.89 | E42: 698.6 | F42: 181612.05 | G42: -926.49 | K42: 1023 | L42: 251.63 | M42: 771.37 | N42: 200529.96 | O42: -1023 | S42: 15 | T42: 1023 | U42: 15378.2475 | V42: 6.407603125 | X42: 20100 | Y42: 8.375 | AA42: 926.49 | AB42: 13927.46092 | AC42: 5.803108719 | AE42: 20100 | AF42: 8.375 | AH42: 1023 | AI42: 15378.2475 | AJ42: 6.407603125 | AL42: 0 | AM42: 0 | AO42: 96.51 | AP42: 1450.786575 | AQ42: 0.6044944062 | AS42: 0 | AT42: 0 | AV42: 0 | AW42: 0 | AX42: 0 | AZ42: 20100 | BA42: 8.375
B43: 16 | C43: 926.49 | D43: 227.02 | E43: 699.47 | F43: 180912.58 | G43: -926.49 | K43: 1023 | L43: 250.66 | M43: 772.34 | N43: 199757.62 | O43: -1023 | S43: 16 | T43: 1023 | U43: 16401.2475 | V43: 6.833853125 | X43: 20100 | Y43: 8.375 | AA43: 926.49 | AB43: 14853.95092 | AC43: 6.189146219 | AE43: 20100 | AF43: 8.375 | AH43: 1023 | AI43: 16401.2475 | AJ43: 6.833853125 | AL43: 0 | AM43: 0 | AO43: 96.51 | AP43: 1547.296575 | AQ43: 0.6447069062 | AS43: 0 | AT43: 0 | AV43: 0 | AW43: 0 | AX43: 0 | AZ43: 20100 | BA43: 8.375
B44: 17 | C44: 926.49 | D44: 226.14 | E44: 700.35 | F44: 180212.23 | G44: -926.49 | K44: 1023 | L44: 249.7 | M44: 773.3 | N44: 198984.32 | O44: -1023 | S44: 17 | T44: 1023 | U44: 17424.2475 | V44: 7.260103125 | X44: 20100 | Y44: 8.375 | AA44: 926.49 | AB44: 15780.44092 | AC44: 6.575183719 | AE44: 20100 | AF44: 8.375 | AH44: 1023 | AI44: 17424.2475 | AJ44: 7.260103125 | AL44: 0 | AM44: 0 | AO44: 96.51 | AP44: 1643.806575 | AQ44: 0.6849194063 | AS44: 0 | AT44: 0 | AV44: 0 | AW44: 0 | AX44: 0 | AZ44: 20100 | BA44: 8.375
B45: 18 | C45: 926.49 | D45: 225.27 | E45: 701.22 | F45: 179511.01 | G45: -926.49 | K45: 1023 | L45: 248.73 | M45: 774.27 | N45: 198210.05 | O45: -1023 | S45: 18 | T45: 1023 | U45: 18447.2475 | V45: 7.686353125 | X45: 20100 | Y45: 8.375 | AA45: 926.49 | AB45: 16706.93093 | AC45: 6.961221219 | AE45: 20100 | AF45: 8.375 | AH45: 1023 | AI45: 18447.2475 | AJ45: 7.686353125 | AL45: 0 | AM45: 0 | AO45: 96.51 | AP45: 1740.316575 | AQ45: 0.7251319063 | AS45: 0 | AT45: 0 | AV45: 0 | AW45: 0 | AX45: 0 | AZ45: 20100 | BA45: 8.375
B46: 19 | C46: 926.49 | D46: 224.39 | E46: 702.1 | F46: 178808.91 | G46: -926.49 | K46: 1023 | L46: 247.76 | M46: 775.24 | N46: 197434.81 | O46: -1023 | S46: 19 | T46: 1023 | U46: 19470.2475 | V46: 8.112603125 | X46: 20100 | Y46: 8.375 | AA46: 926.49 | AB46: 17633.42093 | AC46: 7.347258719 | AE46: 20100 | AF46: 8.375 | AH46: 1023 | AI46: 19470.2475 | AJ46: 8.112603125 | AL46: 0 | AM46: 0 | AO46: 96.51 | AP46: 1836.826575 | AQ46: 0.7653444062 | AS46: 0 | AT46: 0 | AV46: 0 | AW46: 0 | AX46: 0 | AZ46: 20100 | BA46: 8.375
B47: 20 | C47: 926.49 | D47: 223.51 | E47: 702.98 | F47: 178105.93 | G47: -926.49 | K47: 1023 | L47: 246.79 | M47: 776.21 | N47: 196658.6 | O47: -1023 | S47: 20 | T47: 1023 | U47: 20493.2475 | V47: 8.538853125 | X47: 20100 | Y47: 8.375 | AA47: 926.49 | AB47: 18559.91093 | AC47: 7.733296219 | AE47: 20100 | AF47: 8.375 | AH47: 1023 | AI47: 20493.2475 | AJ47: 8.538853125 | AL47: 0 | AM47: 0 | AO47: 96.51 | AP47: 1933.336575 | AQ47: 0.8055569062 | AS47: 0 | AT47: 0 | AV47: 0 | AW47: 0 | AX47: 0 | AZ47: 20100 | BA47: 8.375
B48: 21 | C48: 926.49 | D48: 222.63 | E48: 703.86 | F48: 177402.07 | G48: -926.49 | K48: 1023 | L48: 245.82 | M48: 777.18 | N48: 195881.42 | O48: -1023 | S48: 21 | T48: 1023 | U48: 21516.2475 | V48: 8.965103125 | X48: 20100 | Y48: 8.375 | AA48: 926.49 | AB48: 19486.40093 | AC48: 8.119333719 | AE48: 20100 | AF48: 8.375 | AH48: 1023 | AI48: 21516.2475 | AJ48: 8.965103125 | AL48: 0 | AM48: 0 | AO48: 96.51 | AP48: 2029.846575 | AQ48: 0.8457694062 | AS48: 0 | AT48: 0 | AV48: 0 | AW48: 0 | AX48: 0 | AZ48: 20100 | BA48: 8.375
B49: 22 | C49: 926.49 | D49: 221.75 | E49: 704.74 | F49: 176697.33 | G49: -926.49 | K49: 1023 | L49: 244.85 | M49: 778.15 | N49: 195103.27 | O49: -1023 | S49: 22 | T49: 1023 | U49: 22539.2475 | V49: 9.391353125 | X49: 20100 | Y49: 8.375 | AA49: 926.49 | AB49: 20412.89093 | AC49: 8.505371219 | AE49: 20100 | AF49: 8.375 | AH49: 1023 | AI49: 22539.2475 | AJ49: 9.391353125 | AL49: 0 | AM49: 0 | AO49: 96.51 | AP49: 2126.356575 | AQ49: 0.8859819062 | AS49: 0 | AT49: 0 | AV49: 0 | AW49: 0 | AX49: 0 | AZ49: 20100 | BA49: 8.375
B50: 23 | C50: 926.49 | D50: 220.87 | E50: 705.62 | F50: 175991.71 | G50: -926.49 | K50: 1023 | L50: 243.88 | M50: 779.12 | N50: 194324.15 | O50: -1023 | S50: 23 | T50: 1023 | U50: 23562.2475 | V50: 9.817603125 | X50: 20100 | Y50: 8.375 | AA50: 926.49 | AB50: 21339.38093 | AC50: 8.891408719 | AE50: 20100 | AF50: 8.375 | AH50: 1023 | AI50: 23562.2475 | AJ50: 9.817603125 | AL50: 0 | AM50: 0 | AO50: 96.51 | AP50: 2222.866575 | AQ50: 0.9261944063 | AS50: 0 | AT50: 0 | AV50: 0 | AW50: 0 | AX50: 0 | AZ50: 20100 | BA50: 8.375
B51: 24 | C51: 926.49 | D51: 219.99 | E51: 706.5 | F51: 175285.21 | G51: -926.49 | K51: 1023 | L51: 242.91 | M51: 780.09 | N51: 193544.06 | O51: -1023 | S51: 24 | T51: 1023 | U51: 24585.2475 | V51: 10.24385312 | W51: =SUM(V40:V51) -> 94.7937375 | X51: =X50+Z51 -> 20200.5 | Y51: 8.375 | Z51: =SUM(Y40:Y51) -> 100.5 | AA51: =C51 -> 926.49 | AB51: =AB50+AA51 -> 22265.87093 | AC51: 9.277446219 | AD51: =SUM(AC40:AC51) -> 85.85087963 | AE51: =AE50+AG51 -> 20200.5 | AF51: 8.375 | AG51: =SUM(AF40:AF51) -> 100.5 | AH51: 1023 | AI51: 24585.2475 | AJ51: 10.24385312 | AK51: =SUM(AJ40:AJ51) -> 94.7937375 | AL51: =AL50+AN51 -> 0 | AM51: 0 | AN51: =SUM(AM40:AM51) -> 0 | AO51: 96.51 | AP51: 2319.376575 | AQ51: 0.9664069063 | AR51: =SUM(AQ40:AQ51) -> 8.942857875 | AS51: =AS50+AU51 -> 0 | AT51: 0 | AU51: =SUM(AT40:AT51) -> 0 | AV51: 0 | AW51: 0 | AX51: 0 | AY51: =SUM(AX40:AX51) -> 0 | AZ51: =AZ50+BB51 -> 20200.5 | BA51: 8.375 | BB51: =SUM(BA40:BA51) -> 100.5
B52: 25 | C52: 926.49 | D52: 219.11 | E52: 707.38 | F52: 174577.83 | G52: -926.49 | K52: 1023 | L52: 241.93 | M52: 781.07 | N52: 192762.99 | O52: -1023 | S52: 25 | T52: 1023 | U52: =U51+T52+W51 -> 25703.04124 | V52: 10.70960052 | X52: 20200.5 | Y52: 8.416875 | AA52: 926.49 | AB52: =AB51+AA52+AD51 -> 23278.2118 | AC52: 9.699254919 | AE52: 20200.5 | AF52: 8.416875 | AH52: 1023 | AI52: =AI51+AH52+AK51 -> 25703.04124 | AJ52: 10.70960052 | AL52: =AL51 -> 0 | AM52: 0 | AO52: 96.51 | AP52: =AP51+AO52+AR51 -> 2424.829433 | AQ52: 1.010345597 | AS52: 0 | AT52: 0 | AV52: 0 | AW52: =AW51+AV52+AY51 -> 0 | AX52: 0 | AZ52: =AZ51 -> 20200.5 | BA52: 8.416875
B53: 26 | C53: 926.49 | D53: 218.22 | E53: 708.27 | F53: 173869.56 | G53: -926.49 | K53: 1023 | L53: 240.95 | M53: 782.05 | N53: 191980.94 | O53: -1023 | S53: 26 | T53: 1023 | U53: 26726.04124 | V53: 11.13585052 | X53: 20200.5 | Y53: 8.416875 | AA53: 926.49 | AB53: 24204.7018 | AC53: 10.08529242 | AE53: 20200.5 | AF53: 8.416875 | AH53: 1023 | AI53: =AI52+AH53 -> 26726.04124 | AJ53: 11.13585052 | AL53: 0 | AM53: 0 | AO53: 96.51 | AP53: =AP52+AO53 -> 2521.339433 | AQ53: 1.050558097 | AS53: 0 | AT53: 0 | AV53: 0 | AW53: =AW52+AV53 -> 0 | AX53: 0 | AZ53: 20200.5 | BA53: 8.416875
B54: 27 | C54: 926.49 | D54: 217.34 | E54: 709.15 | F54: 173160.41 | G54: -926.49 | K54: 1023 | L54: 239.98 | M54: 783.02 | N54: 191197.92 | O54: -1023 | S54: 27 | T54: 1023 | U54: 27749.04124 | V54: 11.56210052 | X54: 20200.5 | Y54: 8.416875 | AA54: 926.49 | AB54: 25131.1918 | AC54: 10.47132992 | AE54: 20200.5 | AF54: 8.416875 | AH54: 1023 | AI54: 27749.04124 | AJ54: 11.56210052 | AL54: 0 | AM54: 0 | AO54: 96.51 | AP54: 2617.849433 | AQ54: 1.090770597 | AS54: 0 | AT54: 0 | AV54: 0 | AW54: 0 | AX54: 0 | AZ54: 20200.5 | BA54: 8.416875
B55: 28 | C55: 926.49 | D55: 216.45 | E55: 710.04 | F55: 172450.37 | G55: -926.49 | K55: 1023 | L55: 239 | M55: 784 | N55: 190413.92 | O55: -1023 | S55: 28 | T55: 1023 | U55: 28772.04124 | V55: 11.98835052 | X55: 20200.5 | Y55: 8.416875 | AA55: 926.49 | AB55: 26057.6818 | AC55: 10.85736742 | AE55: 20200.5 | AF55: 8.416875 | AH55: 1023 | AI55: 28772.04124 | AJ55: 11.98835052 | AL55: 0 | AM55: 0 | AO55: 96.51 | AP55: 2714.359433 | AQ55: 1.130983097 | AS55: 0 | AT55: 0 | AV55: 0 | AW55: 0 | AX55: 0 | AZ55: 20200.5 | BA55: 8.416875
B56: 29 | C56: 926.49 | D56: 215.56 | E56: 710.93 | F56: 171739.44 | G56: -926.49 | K56: 1023 | L56: 238.02 | M56: 784.98 | N56: 189628.94 | O56: -1023 | S56: 29 | T56: 1023 | U56: 29795.04124 | V56: 12.41460052 | X56: 20200.5 | Y56: 8.416875 | AA56: 926.49 | AB56: 26984.1718 | AC56: 11.24340492 | AE56: 20200.5 | AF56: 8.416875 | AH56: 1023 | AI56: 29795.04124 | AJ56: 12.41460052 | AL56: 0 | AM56: 0 | AO56: 96.51 | AP56: 2810.869433 | AQ56: 1.171195597 | AS56: 0 | AT56: 0 | AV56: 0 | AW56: 0 | AX56: 0 | AZ56: 20200.5 | BA56: 8.416875
B57: 30 | C57: 926.49 | D57: 214.67 | E57: 711.82 | F57: 171027.62 | G57: -926.49 | K57: 1023 | L57: 237.04 | M57: 785.96 | N57: 188842.98 | O57: -1023 | S57: 30 | T57: 1023 | U57: 30818.04124 | V57: 12.84085052 | X57: 20200.5 | Y57: 8.416875 | AA57: 926.49 | AB57: 27910.6618 | AC57: 11.62944242 | AE57: 20200.5 | AF57: 8.416875 | AH57: 1023 | AI57: 30818.04124 | AJ57: 12.84085052 | AL57: 0 | AM57: 0 | AO57: 96.51 | AP57: 2907.379433 | AQ57: 1.211408097 | AS57: 0 | AT57: 0 | AV57: 0 | AW57: 0 | AX57: 0 | AZ57: 20200.5 | BA57: 8.416875
B58: 31 | C58: 926.49 | D58: 213.78 | E58: 712.71 | F58: 170314.91 | G58: -926.49 | K58: 1023 | L58: 236.05 | M58: 786.95 | N58: 188056.03 | O58: -1023 | S58: 31 | T58: 1023 | U58: 31841.04124 | V58: 13.26710052 | X58: 20200.5 | Y58: 8.416875 | AA58: 926.49 | AB58: 28837.1518 | AC58: 12.01547992 | AE58: 20200.5 | AF58: 8.416875 | AH58: 1023 | AI58: 31841.04124 | AJ58: 13.26710052 | AL58: 0 | AM58: 0 | AO58: 96.51 | AP58: 3003.889433 | AQ58: 1.251620597 | AS58: 0 | AT58: 0 | AV58: 0 | AW58: 0 | AX58: 0 | AZ58: 20200.5 | BA58: 8.416875
B59: 32 | C59: 926.49 | D59: 212.89 | E59: 713.6 | F59: 169601.31 | G59: -926.49 | K59: 1023 | L59: 235.07 | M59: 787.93 | N59: 187268.1 | O59: -1023 | S59: 32 | T59: 1023 | U59: 32864.04124 | V59: 13.69335052 | X59: 20200.5 | Y59: 8.416875 | AA59: 926.49 | AB59: 29763.6418 | AC59: 12.40151742 | AE59: 20200.5 | AF59: 8.416875 | AH59: 1023 | AI59: 32864.04124 | AJ59: 13.69335052 | AL59: 0 | AM59: 0 | AO59: 96.51 | AP59: 3100.399433 | AQ59: 1.291833097 | AS59: 0 | AT59: 0 | AV59: 0 | AW59: 0 | AX59: 0 | AZ59: 20200.5 | BA59: 8.416875
B60: 33 | C60: 926.49 | D60: 212 | E60: 714.49 | F60: 168886.82 | G60: -926.49 | K60: 1023 | L60: 234.09 | M60: 788.91 | N60: 186479.19 | O60: -1023 | S60: 33 | T60: 1023 | U60: 33887.04124 | V60: 14.11960052 | X60: 20200.5 | Y60: 8.416875 | AA60: 926.49 | AB60: 30690.1318 | AC60: 12.78755492 | AE60: 20200.5 | AF60: 8.416875 | AH60: 1023 | AI60: 33887.04124 | AJ60: 14.11960052 | AL60: 0 | AM60: 0 | AO60: 96.51 | AP60: 3196.909433 | AQ60: 1.332045597 | AS60: 0 | AT60: 0 | AV60: 0 | AW60: 0 | AX60: 0 | AZ60: 20200.5 | BA60: 8.416875
B61: 34 | C61: 926.49 | D61: 211.11 | E61: 715.38 | F61: 168171.44 | G61: -926.49 | K61: 1023 | L61: 233.1 | M61: 789.9 | N61: 185689.29 | O61: -1023 | S61: 34 | T61: 1023 | U61: 34910.04124 | V61: 14.54585052 | X61: 20200.5 | Y61: 8.416875 | AA61: 926.49 | AB61: 31616.6218 | AC61: 13.17359242 | AE61: 20200.5 | AF61: 8.416875 | AH61: 1023 | AI61: 34910.04124 | AJ61: 14.54585052 | AL61: 0 | AM61: 0 | AO61: 96.51 | AP61: 3293.419433 | AQ61: 1.372258097 | AS61: 0 | AT61: 0 | AV61: 0 | AW61: 0 | AX61: 0 | AZ61: 20200.5 | BA61: 8.416875
B62: 35 | C62: 926.49 | D62: 210.21 | E62: 716.28 | F62: 167455.16 | G62: -926.49 | K62: 1023 | L62: 232.11 | M62: 790.89 | N62: 184898.4 | O62: -1023 | S62: 35 | T62: 1023 | U62: 35933.04124 | V62: 14.97210052 | X62: 20200.5 | Y62: 8.416875 | AA62: 926.49 | AB62: 32543.1118 | AC62: 13.55962992 | AE62: 20200.5 | AF62: 8.416875 | AH62: 1023 | AI62: 35933.04124 | AJ62: 14.97210052 | AL62: 0 | AM62: 0 | AO62: 96.51 | AP62: 3389.929433 | AQ62: 1.412470597 | AS62: 0 | AT62: 0 | AV62: 0 | AW62: 0 | AX62: 0 | AZ62: 20200.5 | BA62: 8.416875
B63: 36 | C63: 926.49 | D63: 209.32 | E63: 717.17 | F63: 166737.99 | G63: -926.49 | K63: 1023 | L63: 231.12 | M63: 791.88 | N63: 184106.52 | O63: -1023 | S63: 36 | T63: 1023 | U63: 36956.04124 | V63: 15.39835052 | W63: =SUM(V52:V63) -> 156.6477062 | X63: =X62+Z63 -> 20301.5025 | Y63: 8.416875 | Z63: =SUM(Y52:Y63) -> 101.0025 | AA63: =C63 -> 926.49 | AB63: =AB62+AA63 -> 33469.6018 | AC63: 13.94566742 | AD63: =SUM(AC52:AC63) -> 141.869534 | AE63: =AE62+AG63 -> 20301.5025 | AF63: 8.416875 | AG63: =SUM(AF52:AF63) -> 101.0025 | AH63: 1023 | AI63: 36956.04124 | AJ63: 15.39835052 | AK63: =SUM(AJ52:AJ63) -> 156.6477062 | AL63: =AL62+AN63 -> 0 | AM63: 0 | AN63: =SUM(AM52:AM63) -> 0 | AO63: 96.51 | AP63: 3486.439433 | AQ63: 1.452683097 | AR63: =SUM(AQ52:AQ63) -> 14.77817216 | AS63: =AS62+AU63 -> 0 | AT63: 0 | AU63: =SUM(AT52:AT63) -> 0 | AV63: 0 | AW63: 0 | AX63: 0 | AY63: =SUM(AX52:AX63) -> 0 | AZ63: =AZ62+BB63 -> 20301.5025 | BA63: 8.416875 | BB63: =SUM(BA52:BA63) -> 101.0025
B64: 37 | C64: 926.49 | D64: 208.42 | E64: 718.07 | F64: 166019.92 | G64: -926.49 | K64: 1023 | L64: 230.13 | M64: 792.87 | N64: 183313.65 | O64: -1023 | S64: 37 | T64: 1023 | U64: =U63+T64+W63 -> 38135.68894 | V64: 15.88987039 | X64: 20301.5025 | Y64: 8.458959375 | AA64: 926.49 | AB64: =AB63+AA64+AD63 -> 34537.96134 | AC64: 14.39081722 | AE64: 20301.5025 | AF64: 8.458959375 | AH64: 1023 | AI64: =AI63+AH64+AK63 -> 38135.68894 | AJ64: 15.88987039 | AL64: =AL63 -> 0 | AM64: 0 | AO64: 96.51 | AP64: =AP63+AO64+AR63 -> 3597.727605 | AQ64: 1.499053169 | AS64: 0 | AT64: 0 | AV64: 0 | AW64: =AW63+AV64+AY63 -> 0 | AX64: 0 | AZ64: =AZ63 -> 20301.5025 | BA64: 8.458959375
B65: 38 | C65: 926.49 | D65: 207.52 | E65: 718.97 | F65: 165300.95 | G65: -926.49 | K65: 1023 | L65: 229.14 | M65: 793.86 | N65: 182519.79 | O65: -1023 | S65: 38 | T65: 1023 | U65: 39158.68894 | V65: 16.31612039 | X65: 20301.5025 | Y65: 8.458959375 | AA65: 926.49 | AB65: 35464.45134 | AC65: 14.77685472 | AE65: 20301.5025 | AF65: 8.458959375 | AH65: 1023 | AI65: =AI64+AH65 -> 39158.68894 | AJ65: 16.31612039 | AL65: 0 | AM65: 0 | AO65: 96.51 | AP65: =AP64+AO65 -> 3694.237605 | AQ65: 1.539265669 | AS65: 0 | AT65: 0 | AV65: 0 | AW65: =AW64+AV65 -> 0 | AX65: 0 | AZ65: 20301.5025 | BA65: 8.458959375
B66: 39 | C66: 926.49 | D66: 206.63 | E66: 719.86 | F66: 164581.09 | G66: -926.49 | K66: 1023 | L66: 228.15 | M66: 794.85 | N66: 181724.94 | O66: -1023 | S66: 39 | T66: 1023 | U66: 40181.68894 | V66: 16.74237039 | X66: 20301.5025 | Y66: 8.458959375 | AA66: 926.49 | AB66: 36390.94134 | AC66: 15.16289222 | AE66: 20301.5025 | AF66: 8.458959375 | AH66: 1023 | AI66: 40181.68894 | AJ66: 16.74237039 | AL66: 0 | AM66: 0 | AO66: 96.51 | AP66: 3790.747605 | AQ66: 1.579478169 | AS66: 0 | AT66: 0 | AV66: 0 | AW66: 0 | AX66: 0 | AZ66: 20301.5025 | BA66: 8.458959375
B67: 40 | C67: 926.49 | D67: 205.73 | E67: 720.76 | F67: 163860.33 | G67: -926.49 | K67: 1023 | L67: 227.16 | M67: 795.84 | N67: 180929.1 | O67: -1023 | S67: 40 | T67: 1023 | U67: 41204.68894 | V67: 17.16862039 | X67: 20301.5025 | Y67: 8.458959375 | AA67: 926.49 | AB67: 37317.43134 | AC67: 15.54892972 | AE67: 20301.5025 | AF67: 8.458959375 | AH67: 1023 | AI67: 41204.68894 | AJ67: 17.16862039 | AL67: 0 | AM67: 0 | AO67: 96.51 | AP67: 3887.257605 | AQ67: 1.619690669 | AS67: 0 | AT67: 0 | AV67: 0 | AW67: 0 | AX67: 0 | AZ67: 20301.5025 | BA67: 8.458959375
B68: 41 | C68: 926.49 | D68: 204.83 | E68: 721.66 | F68: 163138.67 | G68: -926.49 | K68: 1023 | L68: 226.16 | M68: 796.84 | N68: 180132.26 | O68: -1023 | S68: 41 | T68: 1023 | U68: 42227.68894 | V68: 17.59487039 | X68: 20301.5025 | Y68: 8.458959375 | AA68: 926.49 | AB68: 38243.92134 | AC68: 15.93496722 | AE68: 20301.5025 | AF68: 8.458959375 | AH68: 1023 | AI68: 42227.68894 | AJ68: 17.59487039 | AL68: 0 | AM68: 0 | AO68: 96.51 | AP68: 3983.767605 | AQ68: 1.659903169 | AS68: 0 | AT68: 0 | AV68: 0 | AW68: 0 | AX68: 0 | AZ68: 20301.5025 | BA68: 8.458959375
B69: 42 | C69: 926.49 | D69: 203.92 | E69: 722.57 | F69: 162416.1 | G69: -926.49 | K69: 1023 | L69: 225.17 | M69: 797.83 | N69: 179334.43 | O69: -1023 | S69: 42 | T69: 1023 | U69: 43250.68894 | V69: 18.02112039 | X69: 20301.5025 | Y69: 8.458959375 | AA69: 926.49 | AB69: 39170.41134 | AC69: 16.32100472 | AE69: 20301.5025 | AF69: 8.458959375 | AH69: 1023 | AI69: 43250.68894 | AJ69: 18.02112039 | AL69: 0 | AM69: 0 | AO69: 96.51 | AP69: 4080.277605 | AQ69: 1.700115669 | AS69: 0 | AT69: 0 | AV69: 0 | AW69: 0 | AX69: 0 | AZ69: 20301.5025 | BA69: 8.458959375
B70: 43 | C70: 926.49 | D70: 203.02 | E70: 723.47 | F70: 161692.63 | G70: -926.49 | K70: 1023 | L70: 224.17 | M70: 798.83 | N70: 178535.6 | O70: -1023 | S70: 43 | T70: 1023 | U70: 44273.68894 | V70: 18.44737039 | X70: 20301.5025 | Y70: 8.458959375 | AA70: 926.49 | AB70: 40096.90134 | AC70: 16.70704222 | AE70: 20301.5025 | AF70: 8.458959375 | AH70: 1023 | AI70: 44273.68894 | AJ70: 18.44737039 | AL70: 0 | AM70: 0 | AO70: 96.51 | AP70: 4176.787605 | AQ70: 1.740328169 | AS70: 0 | AT70: 0 | AV70: 0 | AW70: 0 | AX70: 0 | AZ70: 20301.5025 | BA70: 8.458959375
B71: 44 | C71: 926.49 | D71: 202.12 | E71: 724.37 | F71: 160968.26 | G71: -926.49 | K71: 1023 | L71: 223.17 | M71: 799.83 | N71: 177735.77 | O71: -1023 | S71: 44 | T71: 1023 | U71: 45296.68894 | V71: 18.87362039 | X71: 20301.5025 | Y71: 8.458959375 | AA71: 926.49 | AB71: 41023.39134 | AC71: 17.09307972 | AE71: 20301.5025 | AF71: 8.458959375 | AH71: 1023 | AI71: 45296.68894 | AJ71: 18.87362039 | AL71: 0 | AM71: 0 | AO71: 96.51 | AP71: 4273.297605 | AQ71: 1.780540669 | AS71: 0 | AT71: 0 | AV71: 0 | AW71: 0 | AX71: 0 | AZ71: 20301.5025 | BA71: 8.458959375
B72: 45 | C72: 926.49 | D72: 201.21 | E72: 725.28 | F72: 160242.98 | G72: -926.49 | K72: 1023 | L72: 222.17 | M72: 800.83 | N72: 176934.94 | O72: -1023 | S72: 45 | T72: 1023 | U72: 46319.68894 | V72: 19.29987039 | X72: 20301.5025 | Y72: 8.458959375 | AA72: 926.49 | AB72: 41949.88134 | AC72: 17.47911722 | AE72: 20301.5025 | AF72: 8.458959375 | AH72: 1023 | AI72: 46319.68894 | AJ72: 19.29987039 | AL72: 0 | AM72: 0 | AO72: 96.51 | AP72: 4369.807605 | AQ72: 1.820753169 | AS72: 0 | AT72: 0 | AV72: 0 | AW72: 0 | AX72: 0 | AZ72: 20301.5025 | BA72: 8.458959375
B73: 46 | C73: 926.49 | D73: 200.3 | E73: 726.19 | F73: 159516.79 | G73: -926.49 | K73: 1023 | L73: 221.17 | M73: 801.83 | N73: 176133.11 | O73: -1023 | S73: 46 | T73: 1023 | U73: 47342.68894 | V73: 19.72612039 | X73: 20301.5025 | Y73: 8.458959375 | AA73: 926.49 | AB73: 42876.37134 | AC73: 17.86515472 | AE73: 20301.5025 | AF73: 8.458959375 | AH73: 1023 | AI73: 47342.68894 | AJ73: 19.72612039 | AL73: 0 | AM73: 0 | AO73: 96.51 | AP73: 4466.317605 | AQ73: 1.860965669 | AS73: 0 | AT73: 0 | AV73: 0 | AW73: 0 | AX73: 0 | AZ73: 20301.5025 | BA73: 8.458959375
B74: 47 | C74: 926.49 | D74: 199.4 | E74: 727.09 | F74: 158789.7 | G74: -926.49 | K74: 1023 | L74: 220.17 | M74: 802.83 | N74: 175330.28 | O74: -1023 | S74: 47 | T74: 1023 | U74: 48365.68894 | V74: 20.15237039 | X74: 20301.5025 | Y74: 8.458959375 | AA74: 926.49 | AB74: 43802.86134 | AC74: 18.25119222 | AE74: 20301.5025 | AF74: 8.458959375 | AH74: 1023 | AI74: 48365.68894 | AJ74: 20.15237039 | AL74: 0 | AM74: 0 | AO74: 96.51 | AP74: 4562.827605 | AQ74: 1.901178169 | AS74: 0 | AT74: 0 | AV74: 0 | AW74: 0 | AX74: 0 | AZ74: 20301.5025 | BA74: 8.458959375
B75: 48 | C75: 926.49 | D75: 198.49 | E75: 728 | F75: 158061.7 | G75: -926.49 | K75: 1023 | L75: 219.16 | M75: 803.84 | N75: 174526.44 | O75: -1023 | S75: 48 | T75: 1023 | U75: 49388.68894 | V75: 20.57862039 | W75: =SUM(V64:V75) -> 218.8109447 | X75: =X74+Z75 -> 20403.01001 | Y75: 8.458959375 | Z75: =SUM(Y64:Y75) -> 101.5075125 | AA75: =C75 -> 926.49 | AB75: =AB74+AA75 -> 44729.35134 | AC75: 18.63722972 | AD75: =SUM(AC64:AC75) -> 198.1682817 | AE75: =AE74+AG75 -> 20403.01001 | AF75: 8.458959375 | AG75: =SUM(AF64:AF75) -> 101.5075125 | AH75: 1023 | AI75: 49388.68894 | AJ75: 20.57862039 | AK75: =SUM(AJ64:AJ75) -> 218.8109447 | AL75: =AL74+AN75 -> 0 | AM75: 0 | AN75: =SUM(AM64:AM75) -> 0 | AO75: 96.51 | AP75: 4659.337605 | AQ75: 1.941390669 | AR75: =SUM(AQ64:AQ75) -> 20.64266303 | AS75: =AS74+AU75 -> 0 | AT75: 0 | AU75: =SUM(AT64:AT75) -> 0 | AV75: 0 | AW75: 0 | AX75: 0 | AY75: =SUM(AX64:AX75) -> 0 | AZ75: =AZ74+BB75 -> 20403.01001 | BA75: 8.458959375 | BB75: =SUM(BA64:BA75) -> 101.5075125
B76: 49 | C76: 926.49 | D76: 197.58 | E76: 728.91 | F76: 157332.79 | G76: -926.49 | K76: 1023 | L76: 218.16 | M76: 804.84 | N76: 173721.6 | O76: -1023 | S76: 49 | T76: 1023 | U76: =U75+T76+W75 -> 50630.49989 | V76: 21.09604162 | X76: 20403.01001 | Y76: 8.501254172 | AA76: 926.49 | AB76: =AB75+AA76+AD75 -> 45854.00962 | AC76: 19.10583734 | AE76: 20403.01001 | AF76: 8.501254172 | AH76: 1023 | AI76: =AI75+AH76+AK75 -> 50630.49989 | AJ76: 21.09604162 | AL76: =AL75 -> 0 | AM76: 0 | AO76: 96.51 | AP76: =AP75+AO76+AR75 -> 4776.490268 | AQ76: 1.990204278 | AS76: 0 | AT76: 0 | AV76: 0 | AW76: =AW75+AV76+AY75 -> 0 | AX76: 0 | AZ76: =AZ75 -> 20403.01001 | BA76: 8.501254172
B77: 50 | C77: 926.49 | D77: 196.67 | E77: 729.82 | F77: 156602.97 | G77: -926.49 | K77: 1023 | L77: 217.15 | M77: 805.85 | N77: 172915.75 | O77: -1023 | S77: 50 | T77: 1023 | U77: 51653.49989 | V77: 21.52229162 | X77: 20403.01001 | Y77: 8.501254172 | AA77: 926.49 | AB77: 46780.49962 | AC77: 19.49187484 | AE77: 20403.01001 | AF77: 8.501254172 | AH77: 1023 | AI77: =AI76+AH77 -> 51653.49989 | AJ77: 21.52229162 | AL77: 0 | AM77: 0 | AO77: 96.51 | AP77: =AP76+AO77 -> 4873.000268 | AQ77: 2.030416778 | AS77: 0 | AT77: 0 | AV77: 0 | AW77: =AW76+AV77 -> 0 | AX77: 0 | AZ77: 20403.01001 | BA77: 8.501254172
B78: 51 | C78: 926.49 | D78: 195.75 | E78: 730.74 | F78: 155872.23 | G78: -926.49 | K78: 1023 | L78: 216.14 | M78: 806.86 | N78: 172108.89 | O78: -1023 | S78: 51 | T78: 1023 | U78: 52676.49989 | V78: 21.94854162 | X78: 20403.01001 | Y78: 8.501254172 | AA78: 926.49 | AB78: 47706.98962 | AC78: 19.87791234 | AE78: 20403.01001 | AF78: 8.501254172 | AH78: 1023 | AI78: 52676.49989 | AJ78: 21.94854162 | AL78: 0 | AM78: 0 | AO78: 96.51 | AP78: 4969.510268 | AQ78: 2.070629278 | AS78: 0 | AT78: 0 | AV78: 0 | AW78: 0 | AX78: 0 | AZ78: 20403.01001 | BA78: 8.501254172
B79: 52 | C79: 926.49 | D79: 194.84 | E79: 731.65 | F79: 155140.58 | G79: -926.49 | K79: 1023 | L79: 215.14 | M79: 807.86 | N79: 171301.03 | O79: -1023 | S79: 52 | T79: 1023 | U79: 53699.49989 | V79: 22.37479162 | X79: 20403.01001 | Y79: 8.501254172 | AA79: 926.49 | AB79: 48633.47962 | AC79: 20.26394984 | AE79: 20403.01001 | AF79: 8.501254172 | AH79: 1023 | AI79: 53699.49989 | AJ79: 22.37479162 | AL79: 0 | AM79: 0 | AO79: 96.51 | AP79: 5066.020268 | AQ79: 2.110841778 | AS79: 0 | AT79: 0 | AV79: 0 | AW79: 0 | AX79: 0 | AZ79: 20403.01001 | BA79: 8.501254172
B80: 53 | C80: 926.49 | D80: 193.93 | E80: 732.56 | F80: 154408.02 | G80: -926.49 | K80: 1023 | L80: 214.13 | M80: 808.87 | N80: 170492.16 | O80: -1023 | S80: 53 | T80: 1023 | U80: 54722.49989 | V80: 22.80104162 | X80: 20403.01001 | Y80: 8.501254172 | AA80: 926.49 | AB80: 49559.96962 | AC80: 20.64998734 | AE80: 20403.01001 | AF80: 8.501254172 | AH80: 1023 | AI80: 54722.49989 | AJ80: 22.80104162 | AL80: 0 | AM80: 0 | AO80: 96.51 | AP80: 5162.530268 | AQ80: 2.151054278 | AS80: 0 | AT80: 0 | AV80: 0 | AW80: 0 | AX80: 0 | AZ80: 20403.01001 | BA80: 8.501254172
B81: 54 | C81: 926.49 | D81: 193.01 | E81: 733.48 | F81: 153674.54 | G81: -926.49 | K81: 1023 | L81: 213.12 | M81: 809.88 | N81: 169682.28 | O81: -1023 | S81: 54 | T81: 1023 | U81: 55745.49989 | V81: 23.22729162 | X81: 20403.01001 | Y81: 8.501254172 | AA81: 926.49 | AB81: 50486.45962 | AC81: 21.03602484 | AE81: 20403.01001 | AF81: 8.501254172 | AH81: 1023 | AI81: 55745.49989 | AJ81: 23.22729162 | AL81: 0 | AM81: 0 | AO81: 96.51 | AP81: 5259.040268 | AQ81: 2.191266778 | AS81: 0 | AT81: 0 | AV81: 0 | AW81: 0 | AX81: 0 | AZ81: 20403.01001 | BA81: 8.501254172
B82: 55 | C82: 926.49 | D82: 192.09 | E82: 734.4 | F82: 152940.14 | G82: -926.49 | K82: 1023 | L82: 212.1 | M82: 810.9 | N82: 168871.38 | O82: -1023 | S82: 55 | T82: 1023 | U82: 56768.49989 | V82: 23.65354162 | X82: 20403.01001 | Y82: 8.501254172 | AA82: 926.49 | AB82: 51412.94962 | AC82: 21.42206234 | AE82: 20403.01001 | AF82: 8.501254172 | AH82: 1023 | AI82: 56768.49989 | AJ82: 23.65354162 | AL82: 0 | AM82: 0 | AO82: 96.51 | AP82: 5355.550268 | AQ82: 2.231479278 | AS82: 0 | AT82: 0 | AV82: 0 | AW82: 0 | AX82: 0 | AZ82: 20403.01001 | BA82: 8.501254172
B83: 56 | C83: 926.49 | D83: 191.18 | E83: 735.31 | F83: 152204.83 | G83: -926.49 | K83: 1023 | L83: 211.09 | M83: 811.91 | N83: 168059.47 | O83: -1023 | S83: 56 | T83: 1023 | U83: 57791.49989 | V83: 24.07979162 | X83: 20403.01001 | Y83: 8.501254172 | AA83: 926.49 | AB83: 52339.43962 | AC83: 21.80809984 | AE83: 20403.01001 | AF83: 8.501254172 | AH83: 1023 | AI83: 57791.49989 | AJ83: 24.07979162 | AL83: 0 | AM83: 0 | AO83: 96.51 | AP83: 5452.060268 | AQ83: 2.271691778 | AS83: 0 | AT83: 0 | AV83: 0 | AW83: 0 | AX83: 0 | AZ83: 20403.01001 | BA83: 8.501254172
B84: 57 | C84: 926.49 | D84: 190.26 | E84: 736.23 | F84: 151468.6 | G84: -926.49 | K84: 1023 | L84: 210.07 | M84: 812.93 | N84: 167246.54 | O84: -1023 | S84: 57 | T84: 1023 | U84: 58814.49989 | V84: 24.50604162 | X84: 20403.01001 | Y84: 8.501254172 | AA84: 926.49 | AB84: 53265.92962 | AC84: 22.19413734 | AE84: 20403.01001 | AF84: 8.501254172 | AH84: 1023 | AI84: 58814.49989 | AJ84: 24.50604162 | AL84: 0 | AM84: 0 | AO84: 96.51 | AP84: 5548.570268 | AQ84: 2.311904278 | AS84: 0 | AT84: 0 | AV84: 0 | AW84: 0 | AX84: 0 | AZ84: 20403.01001 | BA84: 8.501254172
B85: 58 | C85: 926.49 | D85: 189.34 | E85: 737.15 | F85: 150731.45 | G85: -926.49 | K85: 1023 | L85: 209.06 | M85: 813.94 | N85: 166432.6 | O85: -1023 | S85: 58 | T85: 1023 | U85: 59837.49989 | V85: 24.93229162 | X85: 20403.01001 | Y85: 8.501254172 | AA85: 926.49 | AB85: 54192.41962 | AC85: 22.58017484 | AE85: 20403.01001 | AF85: 8.501254172 | AH85: 1023 | AI85: 59837.49989 | AJ85: 24.93229162 | AL85: 0 | AM85: 0 | AO85: 96.51 | AP85: 5645.080268 | AQ85: 2.352116778 | AS85: 0 | AT85: 0 | AV85: 0 | AW85: 0 | AX85: 0 | AZ85: 20403.01001 | BA85: 8.501254172
B86: 59 | C86: 926.49 | D86: 188.41 | E86: 738.08 | F86: 149993.37 | G86: -926.49 | K86: 1023 | L86: 208.04 | M86: 814.96 | N86: 165617.64 | O86: -1023 | S86: 59 | T86: 1023 | U86: 60860.49989 | V86: 25.35854162 | X86: 20403.01001 | Y86: 8.501254172 | AA86: 926.49 | AB86: 55118.90962 | AC86: 22.96621234 | AE86: 20403.01001 | AF86: 8.501254172 | AH86: 1023 | AI86: 60860.49989 | AJ86: 25.35854162 | AL86: 0 | AM86: 0 | AO86: 96.51 | AP86: 5741.590268 | AQ86: 2.392329278 | AS86: 0 | AT86: 0 | AV86: 0 | AW86: 0 | AX86: 0 | AZ86: 20403.01001 | BA86: 8.501254172
B87: 60 | C87: 926.49 | D87: 187.49 | E87: 739 | F87: 149254.37 | G87: -926.49 | K87: 1023 | L87: 207.02 | M87: 815.98 | N87: 164801.66 | O87: -1023 | S87: 60 | T87: 1023 | U87: 61883.49989 | V87: 25.78479162 | W87: =SUM(V76:V87) -> 281.2849994 | X87: =X86+Z87 -> 20505.02506 | Y87: 8.501254172 | Z87: =SUM(Y76:Y87) -> 102.0150501 | AA87: =C87 -> 926.49 | AB87: =AB86+AA87 -> 56045.39962 | AC87: 23.35224984 | AD87: =SUM(AC76:AC87) -> 254.7485231 | AE87: =AE86+AG87 -> 20505.02506 | AF87: 8.501254172 | AG87: =SUM(AF76:AF87) -> 102.0150501 | AH87: 1023 | AI87: 61883.49989 | AJ87: 25.78479162 | AK87: =SUM(AJ76:AJ87) -> 281.2849994 | AL87: =AL86+AN87 -> 0 | AM87: 0 | AN87: =SUM(AM76:AM87) -> 0 | AO87: 96.51 | AP87: 5838.100268 | AQ87: 2.432541778 | AR87: =SUM(AQ76:AQ87) -> 26.53647634 | AS87: =AS86+AU87 -> 0 | AT87: 0 | AU87: =SUM(AT76:AT87) -> 0 | AV87: 0 | AW87: 0 | AX87: 0 | AY87: =SUM(AX76:AX87) -> 0 | AZ87: =AZ86+BB87 -> 20505.02506 | BA87: 8.501254172 | BB87: =SUM(BA76:BA87) -> 102.0150501
B88: 61 | C88: 926.49 | D88: 186.57 | E88: 739.92 | F88: 148514.45 | G88: -926.49 | K88: 1023 | L88: 206 | M88: 817 | N88: 163984.66 | O88: -1023 | S88: 61 | T88: 1023 | U88: =U87+T88+W87 -> 63187.78489 | V88: 26.3282437 | X88: 20505.02506 | Y88: 8.543760443 | AA88: 926.49 | AB88: =AB87+AA88+AD87 -> 57226.63814 | AC88: 23.84443256 | AE88: 20505.02506 | AF88: 8.543760443 | AH88: 1023 | AI88: =AI87+AH88+AK87 -> 63187.78489 | AJ88: 26.3282437 | AL88: =AL87 -> 0 | AM88: 0 | AO88: 96.51 | AP88: =AP87+AO88+AR87 -> 5961.146744 | AQ88: 2.483811144 | AS88: 0 | AT88: 0 | AV88: 0 | AW88: =AW87+AV88+AY87 -> 0 | AX88: 0 | AZ88: =AZ87 -> 20505.02506 | BA88: 8.543760443
B89: 62 | C89: 926.49 | D89: 185.64 | E89: 740.85 | F89: 147773.6 | G89: -926.49 | K89: 1023 | L89: 204.98 | M89: 818.02 | N89: 163166.64 | O89: -1023 | S89: 62 | T89: 1023 | U89: 64210.78489 | V89: 26.7544937 | X89: 20505.02506 | Y89: 8.543760443 | AA89: 926.49 | AB89: 58153.12814 | AC89: 24.23047006 | AE89: 20505.02506 | AF89: 8.543760443 | AH89: 1023 | AI89: =AI88+AH89 -> 64210.78489 | AJ89: 26.7544937 | AL89: 0 | AM89: 0 | AO89: 96.51 | AP89: =AP88+AO89 -> 6057.656744 | AQ89: 2.524023644 | AS89: 0 | AT89: 0 | AV89: 0 | AW89: =AW88+AV89 -> 0 | AX89: 0 | AZ89: 20505.02506 | BA89: 8.543760443
B90: 63 | C90: 926.49 | D90: 184.72 | E90: 741.77 | F90: 147031.83 | G90: -926.49 | K90: 1023 | L90: 203.96 | M90: 819.04 | N90: 162347.6 | O90: -1023 | S90: 63 | T90: 1023 | U90: 65233.78489 | V90: 27.1807437 | X90: 20505.02506 | Y90: 8.543760443 | AA90: 926.49 | AB90: 59079.61814 | AC90: 24.61650756 | AE90: 20505.02506 | AF90: 8.543760443 | AH90: 1023 | AI90: 65233.78489 | AJ90: 27.1807437 | AL90: 0 | AM90: 0 | AO90: 96.51 | AP90: 6154.166744 | AQ90: 2.564236144 | AS90: 0 | AT90: 0 | AV90: 0 | AW90: 0 | AX90: 0 | AZ90: 20505.02506 | BA90: 8.543760443
B91: 64 | C91: 926.49 | D91: 183.79 | E91: 742.7 | F91: 146289.13 | G91: -926.49 | K91: 1023 | L91: 202.93 | M91: 820.07 | N91: 161527.53 | O91: -1023 | S91: 64 | T91: 1023 | U91: 66256.78489 | V91: 27.6069937 | X91: 20505.02506 | Y91: 8.543760443 | AA91: 926.49 | AB91: 60006.10814 | AC91: 25.00254506 | AE91: 20505.02506 | AF91: 8.543760443 | AH91: 1023 | AI91: 66256.78489 | AJ91: 27.6069937 | AL91: 0 | AM91: 0 | AO91: 96.51 | AP91: 6250.676744 | AQ91: 2.604448644 | AS91: 0 | AT91: 0 | AV91: 0 | AW91: 0 | AX91: 0 | AZ91: 20505.02506 | BA91: 8.543760443
B92: 65 | C92: =ROUND(-PMT($E$10/12,$E$9,$E$13,0,0),2) -> 926.49 | D92: =ROUND(F91*$E$10/12,2) -> 182.86 | E92: 743.63 | F92: 145545.5 | G92: -926.49 | K92: =ROUND(-PMT($E$10/12,$E$9,$E$14,0,0),2) -> 1023 | L92: =ROUND(N91*$E$10/12,2) -> 201.91 | M92: 821.09 | N92: 160706.44 | O92: -1023 | S92: 65 | T92: 1023 | U92: 67279.78489 | V92: =U92*$E$8/12 -> 28.0332437 | X92: 20505.02506 | Y92: =X91*$E$8/12 -> 8.543760443 | AA92: 926.49 | AB92: 60932.59814 | AC92: =AB92*$E$8/12 -> 25.38858256 | AE92: 20505.02506 | AF92: =AE91*$E$8/12 -> 8.543760443 | AH92: 1023 | AI92: 67279.78489 | AJ92: =AI92*$E$8/12 -> 28.0332437 | AL92: 0 | AM92: =AL91*$E$8/12 -> 0 | AO92: 96.51 | AP92: 6347.186744 | AQ92: =AP92*$E$8/12 -> 2.644661144 | AS92: 0 | AT92: =AS91*$E$8/12 -> 0 | AV92: 0 | AW92: 0 | AX92: =AW92*$E$8/12 -> 0 | AZ92: 20505.02506 | BA92: =AZ91*$E$8/12 -> 8.543760443
B93: 66 | C93: 926.49 | D93: 181.93 | E93: =C93-D93 -> 744.56 | F93: =F92-E93 -> 144800.94 | G93: =-C93 -> -926.49 | K93: 1023 | L93: 200.88 | M93: =K93-L93 -> 822.12 | N93: =N92-M93 -> 159884.32 | O93: =-K93 -> -1023 | S93: 66 | T93: =IF(C93>K93,C93,K93) -> 1023 | U93: 68302.78489 | V93: 28.4594937 | X93: =X92 -> 20505.02506 | Y93: 8.543760443 | AA93: 926.49 | AB93: 61859.08814 | AC93: 25.77462006 | AE93: =AE92 -> 20505.02506 | AF93: 8.543760443 | AH93: =K93 -> 1023 | AI93: 68302.78489 | AJ93: 28.4594937 | AL93: 0 | AM93: 0 | AO93: =T93-C93 -> 96.51 | AP93: 6443.696744 | AQ93: 2.684873644 | AS93: =AS92 -> 0 | AT93: 0 | AV93: =T93-K93 -> 0 | AW93: 0 | AX93: 0 | AZ93: 20505.02506 | BA93: 8.543760443
B94: 67 | C94: 926.49 | D94: 181 | E94: 745.49 | F94: 144055.45 | G94: -926.49 | K94: 1023 | L94: 199.86 | M94: 823.14 | N94: 159061.18 | O94: -1023 | S94: 67 | T94: 1023 | U94: =U93+T94 -> 69325.78489 | V94: 28.8857437 | X94: 20505.02506 | Y94: 8.543760443 | AA94: =C94 -> 926.49 | AB94: =AB93+AA94 -> 62785.57814 | AC94: 26.16065756 | AE94: 20505.02506 | AF94: 8.543760443 | AH94: 1023 | AI94: 69325.78489 | AJ94: 28.8857437 | AL94: 0 | AM94: 0 | AO94: 96.51 | AP94: 6540.206744 | AQ94: 2.725086144 | AS94: 0 | AT94: 0 | AV94: 0 | AW94: 0 | AX94: 0 | AZ94: 20505.02506 | BA94: 8.543760443
B95: 68 | C95: 926.49 | D95: 180.07 | E95: 746.42 | F95: 143309.03 | G95: -926.49 | K95: 1023 | L95: 198.83 | M95: 824.17 | N95: 158237.01 | O95: -1023 | S95: 68 | T95: 1023 | U95: 70348.78489 | V95: 29.3119937 | X95: 20505.02506 | Y95: 8.543760443 | AA95: 926.49 | AB95: 63712.06814 | AC95: 26.54669506 | AE95: 20505.02506 | AF95: 8.543760443 | AH95: 1023 | AI95: 70348.78489 | AJ95: 29.3119937 | AL95: 0 | AM95: 0 | AO95: 96.51 | AP95: 6636.716744 | AQ95: 2.765298644 | AS95: 0 | AT95: 0 | AV95: 0 | AW95: 0 | AX95: 0 | AZ95: 20505.02506 | BA95: 8.543760443
B96: 69 | C96: 926.49 | D96: 179.14 | E96: 747.35 | F96: 142561.68 | G96: -926.49 | K96: 1023 | L96: 197.8 | M96: 825.2 | N96: 157411.81 | O96: -1023 | S96: 69 | T96: 1023 | U96: 71371.78489 | V96: 29.7382437 | X96: 20505.02506 | Y96: 8.543760443 | AA96: 926.49 | AB96: 64638.55814 | AC96: 26.93273256 | AE96: 20505.02506 | AF96: 8.543760443 | AH96: 1023 | AI96: 71371.78489 | AJ96: 29.7382437 | AL96: 0 | AM96: 0 | AO96: 96.51 | AP96: 6733.226744 | AQ96: 2.805511144 | AS96: 0 | AT96: 0 | AV96: 0 | AW96: 0 | AX96: 0 | AZ96: 20505.02506 | BA96: 8.543760443
B97: 70 | C97: 926.49 | D97: 178.2 | E97: 748.29 | F97: 141813.39 | G97: -926.49 | K97: 1023 | L97: 196.76 | M97: 826.24 | N97: 156585.57 | O97: -1023 | S97: 70 | T97: 1023 | U97: 72394.78489 | V97: 30.1644937 | X97: 20505.02506 | Y97: 8.543760443 | AA97: 926.49 | AB97: 65565.04814 | AC97: 27.31877006 | AE97: 20505.02506 | AF97: 8.543760443 | AH97: 1023 | AI97: 72394.78489 | AJ97: 30.1644937 | AL97: 0 | AM97: 0 | AO97: 96.51 | AP97: 6829.736744 | AQ97: 2.845723644 | AS97: 0 | AT97: 0 | AV97: 0 | AW97: 0 | AX97: 0 | AZ97: 20505.02506 | BA97: 8.543760443
B98: 71 | C98: 926.49 | D98: 177.27 | E98: 749.22 | F98: 141064.17 | G98: -926.49 | K98: 1023 | L98: 195.73 | M98: 827.27 | N98: 155758.3 | O98: -1023 | S98: 71 | T98: 1023 | U98: 73417.78489 | V98: 30.5907437 | X98: 20505.02506 | Y98: 8.543760443 | AA98: 926.49 | AB98: 66491.53814 | AC98: 27.70480756 | AE98: 20505.02506 | AF98: 8.543760443 | AH98: 1023 | AI98: 73417.78489 | AJ98: 30.5907437 | AL98: 0 | AM98: 0 | AO98: 96.51 | AP98: 6926.246744 | AQ98: 2.885936144 | AS98: 0 | AT98: 0 | AV98: 0 | AW98: 0 | AX98: 0 | AZ98: 20505.02506 | BA98: 8.543760443
B99: 72 | C99: 926.49 | D99: 176.33 | E99: 750.16 | F99: 140314.01 | G99: -926.49 | K99: 1023 | L99: 194.7 | M99: 828.3 | N99: 154930 | O99: -1023 | S99: 72 | T99: 1023 | U99: 74440.78489 | V99: 31.0169937 | W99: =SUM(V88:V99) -> 344.0714244 | X99: =X98+Z99 -> 20607.55019 | Y99: 8.543760443 | Z99: =SUM(Y88:Y99) -> 102.5251253 | AA99: 926.49 | AB99: 67418.02814 | AC99: 28.09084506 | AD99: =SUM(AC88:AC99) -> 311.6116657 | AE99: =AE98+AG99 -> 20607.55019 | AF99: 8.543760443 | AG99: =SUM(AF88:AF99) -> 102.5251253 | AH99: 1023 | AI99: 74440.78489 | AJ99: 31.0169937 | AK99: =SUM(AJ88:AJ99) -> 344.0714244 | AL99: =AL98+AN99 -> 0 | AM99: 0 | AN99: =SUM(AM88:AM99) -> 0 | AO99: 96.51 | AP99: 7022.756744 | AQ99: 2.926148644 | AR99: =SUM(AQ88:AQ99) -> 32.45975872 | AS99: =AS98+AU99 -> 0 | AT99: 0 | AU99: =SUM(AT88:AT99) -> 0 | AV99: 0 | AW99: 0 | AX99: 0 | AY99: =SUM(AX88:AX99) -> 0 | AZ99: =AZ98+BB99 -> 20607.55019 | BA99: 8.543760443 | BB99: =SUM(BA88:BA99) -> 102.5251253
B100: 73 | C100: 926.49 | D100: 175.39 | E100: 751.1 | F100: 139562.91 | G100: -926.49 | K100: 1023 | L100: 193.66 | M100: 829.34 | N100: 154100.66 | O100: -1023 | S100: 73 | T100: 1023 | U100: =U99+T100+W99 -> 75807.85631 | V100: 31.5866068 | X100: 20607.55019 | Y100: 8.586479245 | AA100: 926.49 | AB100: =AB99+AA100+AD99 -> 68656.12981 | AC100: 28.60672075 | AE100: 20607.55019 | AF100: 8.586479245 | AH100: 1023 | AI100: =AI99+AH100+AK99 -> 75807.85631 | AJ100: 31.5866068 | AL100: =AL99 -> 0 | AM100: 0 | AO100: 96.51 | AP100: =AP99+AO100+AR99 -> 7151.726503 | AQ100: 2.979886043 | AS100: 0 | AT100: 0 | AV100: 0 | AW100: =AW99+AV100+AY99 -> 0 | AX100: 0 | AZ100: =AZ99 -> 20607.55019 | BA100: 8.586479245
B101: 74 | C101: 926.49 | D101: 174.45 | E101: 752.04 | F101: 138810.87 | G101: -926.49 | K101: 1023 | L101: 192.63 | M101: 830.37 | N101: 153270.29 | O101: -1023 | S101: 74 | T101: 1023 | U101: 76830.85631 | V101: 32.0128568 | X101: 20607.55019 | Y101: 8.586479245 | AA101: 926.49 | AB101: 69582.61981 | AC101: 28.99275825 | AE101: 20607.55019 | AF101: 8.586479245 | AH101: 1023 | AI101: =AI100+AH101 -> 76830.85631 | AJ101: 32.0128568 | AL101: 0 | AM101: 0 | AO101: 96.51 | AP101: =AP100+AO101 -> 7248.236503 | AQ101: 3.020098543 | AS101: 0 | AT101: 0 | AV101: 0 | AW101: =AW100+AV101 -> 0 | AX101: 0 | AZ101: 20607.55019 | BA101: 8.586479245
B102: 75 | C102: 926.49 | D102: 173.51 | E102: 752.98 | F102: 138057.89 | G102: -926.49 | K102: 1023 | L102: 191.59 | M102: 831.41 | N102: 152438.88 | O102: -1023 | S102: 75 | T102: 1023 | U102: 77853.85631 | V102: 32.4391068 | X102: 20607.55019 | Y102: 8.586479245 | AA102: 926.49 | AB102: 70509.10981 | AC102: 29.37879575 | AE102: 20607.55019 | AF102: 8.586479245 | AH102: 1023 | AI102: 77853.85631 | AJ102: 32.4391068 | AL102: 0 | AM102: 0 | AO102: 96.51 | AP102: 7344.746503 | AQ102: 3.060311043 | AS102: 0 | AT102: 0 | AV102: 0 | AW102: 0 | AX102: 0 | AZ102: 20607.55019 | BA102: 8.586479245
B103: 76 | C103: 926.49 | D103: 172.57 | E103: 753.92 | F103: 137303.97 | G103: -926.49 | K103: 1023 | L103: 190.55 | M103: 832.45 | N103: 151606.43 | O103: -1023 | S103: 76 | T103: 1023 | U103: 78876.85631 | V103: 32.8653568 | X103: 20607.55019 | Y103: 8.586479245 | AA103: 926.49 | AB103: 71435.59981 | AC103: 29.76483325 | AE103: 20607.55019 | AF103: 8.586479245 | AH103: 1023 | AI103: 78876.85631 | AJ103: 32.8653568 | AL103: 0 | AM103: 0 | AO103: 96.51 | AP103: 7441.256503 | AQ103: 3.100523543 | AS103: 0 | AT103: 0 | AV103: 0 | AW103: 0 | AX103: 0 | AZ103: 20607.55019 | BA103: 8.586479245
B104: 77 | C104: 926.49 | D104: 171.63 | E104: 754.86 | F104: 136549.11 | G104: -926.49 | K104: 1023 | L104: 189.51 | M104: 833.49 | N104: 150772.94 | O104: -1023 | S104: 77 | T104: 1023 | U104: 79899.85631 | V104: 33.2916068 | X104: 20607.55019 | Y104: 8.586479245 | AA104: 926.49 | AB104: 72362.08981 | AC104: 30.15087075 | AE104: 20607.55019 | AF104: 8.586479245 | AH104: 1023 | AI104: 79899.85631 | AJ104: 33.2916068 | AL104: 0 | AM104: 0 | AO104: 96.51 | AP104: 7537.766503 | AQ104: 3.140736043 | AS104: 0 | AT104: 0 | AV104: 0 | AW104: 0 | AX104: 0 | AZ104: 20607.55019 | BA104: 8.586479245
B105: 78 | C105: 926.49 | D105: 170.69 | E105: 755.8 | F105: 135793.31 | G105: -926.49 | K105: 1023 | L105: 188.47 | M105: 834.53 | N105: 149938.41 | O105: -1023 | S105: 78 | T105: 1023 | U105: 80922.85631 | V105: 33.7178568 | X105: 20607.55019 | Y105: 8.586479245 | AA105: 926.49 | AB105: 73288.57981 | AC105: 30.53690825 | AE105: 20607.55019 | AF105: 8.586479245 | AH105: 1023 | AI105: 80922.85631 | AJ105: 33.7178568 | AL105: 0 | AM105: 0 | AO105: 96.51 | AP105: 7634.276503 | AQ105: 3.180948543 | AS105: 0 | AT105: 0 | AV105: 0 | AW105: 0 | AX105: 0 | AZ105: 20607.55019 | BA105: 8.586479245
B106: 79 | C106: 926.49 | D106: 169.74 | E106: 756.75 | F106: 135036.56 | G106: -926.49 | K106: 1023 | L106: 187.42 | M106: 835.58 | N106: 149102.83 | O106: -1023 | S106: 79 | T106: 1023 | U106: 81945.85631 | V106: 34.1441068 | X106: 20607.55019 | Y106: 8.586479245 | AA106: 926.49 | AB106: 74215.06981 | AC106: 30.92294575 | AE106: 20607.55019 | AF106: 8.586479245 | AH106: 1023 | AI106: 81945.85631 | AJ106: 34.1441068 | AL106: 0 | AM106: 0 | AO106: 96.51 | AP106: 7730.786503 | AQ106: 3.221161043 | AS106: 0 | AT106: 0 | AV106: 0 | AW106: 0 | AX106: 0 | AZ106: 20607.55019 | BA106: 8.586479245
B107: 80 | C107: 926.49 | D107: 168.8 | E107: 757.69 | F107: 134278.87 | G107: -926.49 | K107: 1023 | L107: 186.38 | M107: 836.62 | N107: 148266.21 | O107: -1023 | S107: 80 | T107: 1023 | U107: 82968.85631 | V107: 34.5703568 | X107: 20607.55019 | Y107: 8.586479245 | AA107: 926.49 | AB107: 75141.55981 | AC107: 31.30898325 | AE107: 20607.55019 | AF107: 8.586479245 | AH107: 1023 | AI107: 82968.85631 | AJ107: 34.5703568 | AL107: 0 | AM107: 0 | AO107: 96.51 | AP107: 7827.296503 | AQ107: 3.261373543 | AS107: 0 | AT107: 0 | AV107: 0 | AW107: 0 | AX107: 0 | AZ107: 20607.55019 | BA107: 8.586479245
B108: 81 | C108: 926.49 | D108: 167.85 | E108: 758.64 | F108: 133520.23 | G108: -926.49 | K108: 1023 | L108: 185.33 | M108: 837.67 | N108: 147428.54 | O108: -1023 | S108: 81 | T108: 1023 | U108: 83991.85631 | V108: 34.9966068 | X108: 20607.55019 | Y108: 8.586479245 | AA108: 926.49 | AB108: 76068.04981 | AC108: 31.69502075 | AE108: 20607.55019 | AF108: 8.586479245 | AH108: 1023 | AI108: 83991.85631 | AJ108: 34.9966068 | AL108: 0 | AM108: 0 | AO108: 96.51 | AP108: 7923.806503 | AQ108: 3.301586043 | AS108: 0 | AT108: 0 | AV108: 0 | AW108: 0 | AX108: 0 | AZ108: 20607.55019 | BA108: 8.586479245
B109: 82 | C109: 926.49 | D109: 166.9 | E109: 759.59 | F109: 132760.64 | G109: -926.49 | K109: 1023 | L109: 184.29 | M109: 838.71 | N109: 146589.83 | O109: -1023 | S109: 82 | T109: 1023 | U109: 85014.85631 | V109: 35.4228568 | X109: 20607.55019 | Y109: 8.586479245 | AA109: 926.49 | AB109: 76994.53981 | AC109: 32.08105825 | AE109: 20607.55019 | AF109: 8.586479245 | AH109: 1023 | AI109: 85014.85631 | AJ109: 35.4228568 | AL109: 0 | AM109: 0 | AO109: 96.51 | AP109: 8020.316503 | AQ109: 3.341798543 | AS109: 0 | AT109: 0 | AV109: 0 | AW109: 0 | AX109: 0 | AZ109: 20607.55019 | BA109: 8.586479245
B110: 83 | C110: 926.49 | D110: 165.95 | E110: 760.54 | F110: 132000.1 | G110: -926.49 | K110: 1023 | L110: 183.24 | M110: 839.76 | N110: 145750.07 | O110: -1023 | S110: 83 | T110: 1023 | U110: 86037.85631 | V110: 35.8491068 | X110: 20607.55019 | Y110: 8.586479245 | AA110: 926.49 | AB110: 77921.02981 | AC110: 32.46709575 | AE110: 20607.55019 | AF110: 8.586479245 | AH110: 1023 | AI110: 86037.85631 | AJ110: 35.8491068 | AL110: 0 | AM110: 0 | AO110: 96.51 | AP110: 8116.826503 | AQ110: 3.382011043 | AS110: 0 | AT110: 0 | AV110: 0 | AW110: 0 | AX110: 0 | AZ110: 20607.55019 | BA110: 8.586479245
B111: 84 | C111: 926.49 | D111: 165 | E111: 761.49 | F111: 131238.61 | G111: -926.49 | K111: 1023 | L111: 182.19 | M111: 840.81 | N111: 144909.26 | O111: -1023 | S111: 84 | T111: 1023 | U111: 87060.85631 | V111: 36.2753568 | W111: =SUM(V100:V111) -> 407.1717816 | X111: =X110+Z111 -> 20710.58794 | Y111: 8.586479245 | Z111: =SUM(Y100:Y111) -> 103.0377509 | AA111: 926.49 | AB111: 78847.51981 | AC111: 32.85313325 | AD111: =SUM(AC100:AC111) -> 368.759124 | AE111: =AE110+AG111 -> 20710.58794 | AF111: 8.586479245 | AG111: =SUM(AF100:AF111) -> 103.0377509 | AH111: 1023 | AI111: 87060.85631 | AJ111: 36.2753568 | AK111: =SUM(AJ100:AJ111) -> 407.1717816 | AL111: =AL110+AN111 -> 0 | AM111: 0 | AN111: =SUM(AM100:AM111) -> 0 | AO111: 96.51 | AP111: 8213.336503 | AQ111: 3.422223543 | AR111: =SUM(AQ100:AQ111) -> 38.41265752 | AS111: =AS110+AU111 -> 0 | AT111: 0 | AU111: =SUM(AT100:AT111) -> 0 | AV111: 0 | AW111: 0 | AX111: 0 | AY111: =SUM(AX100:AX111) -> 0 | AZ111: =AZ110+BB111 -> 20710.58794 | BA111: 8.586479245 | BB111: =SUM(BA100:BA111) -> 103.0377509
B112: 85 | C112: 926.49 | D112: 164.05 | E112: 762.44 | F112: 130476.17 | G112: -926.49 | K112: 1023 | L112: 181.14 | M112: 841.86 | N112: 144067.4 | O112: -1023 | S112: 85 | T112: 1023 | U112: =U111+T112+W111 -> 88491.02809 | V112: 36.87126171 | X112: 20710.58794 | Y112: 8.629411641 | AA112: 926.49 | AB112: =AB111+AA112+AD111 -> 80142.76893 | AC112: 33.39282039 | AE112: 20710.58794 | AF112: 8.629411641 | AH112: 1023 | AI112: =AI111+AH112+AK111 -> 88491.02809 | AJ112: 36.87126171 | AL112: =AL111 -> 0 | AM112: 0 | AO112: 96.51 | AP112: =AP111+AO112+AR111 -> 8348.259161 | AQ112: 3.478441317 | AS112: 0 | AT112: 0 | AV112: 0 | AW112: =AW111+AV112+AY111 -> 0 | AX112: 0 | AZ112: =AZ111 -> 20710.58794 | BA112: 8.629411641
B113: 86 | C113: 926.49 | D113: 163.1 | E113: 763.39 | F113: 129712.78 | G113: -926.49 | K113: 1023 | L113: 180.08 | M113: 842.92 | N113: 143224.48 | O113: -1023 | S113: 86 | T113: 1023 | U113: 89514.02809 | V113: 37.29751171 | X113: 20710.58794 | Y113: 8.629411641 | AA113: 926.49 | AB113: 81069.25893 | AC113: 33.77885789 | AE113: 20710.58794 | AF113: 8.629411641 | AH113: 1023 | AI113: =AI112+AH113 -> 89514.02809 | AJ113: 37.29751171 | AL113: 0 | AM113: 0 | AO113: 96.51 | AP113: =AP112+AO113 -> 8444.769161 | AQ113: 3.518653817 | AS113: 0 | AT113: 0 | AV113: 0 | AW113: =AW112+AV113 -> 0 | AX113: 0 | AZ113: 20710.58794 | BA113: 8.629411641
B114: 87 | C114: 926.49 | D114: 162.14 | E114: 764.35 | F114: 128948.43 | G114: -926.49 | K114: 1023 | L114: 179.03 | M114: 843.97 | N114: 142380.51 | O114: -1023 | S114: 87 | T114: 1023 | U114: 90537.02809 | V114: 37.72376171 | X114: 20710.58794 | Y114: 8.629411641 | AA114: 926.49 | AB114: 81995.74893 | AC114: 34.16489539 | AE114: 20710.58794 | AF114: 8.629411641 | AH114: 1023 | AI114: 90537.02809 | AJ114: 37.72376171 | AL114: 0 | AM114: 0 | AO114: 96.51 | AP114: 8541.279161 | AQ114: 3.558866317 | AS114: 0 | AT114: 0 | AV114: 0 | AW114: 0 | AX114: 0 | AZ114: 20710.58794 | BA114: 8.629411641
B115: 88 | C115: 926.49 | D115: 161.19 | E115: 765.3 | F115: 128183.13 | G115: -926.49 | K115: 1023 | L115: 177.98 | M115: 845.02 | N115: 141535.49 | O115: -1023 | S115: 88 | T115: 1023 | U115: 91560.02809 | V115: 38.15001171 | X115: 20710.58794 | Y115: 8.629411641 | AA115: 926.49 | AB115: 82922.23893 | AC115: 34.55093289 | AE115: 20710.58794 | AF115: 8.629411641 | AH115: 1023 | AI115: 91560.02809 | AJ115: 38.15001171 | AL115: 0 | AM115: 0 | AO115: 96.51 | AP115: 8637.789161 | AQ115: 3.599078817 | AS115: 0 | AT115: 0 | AV115: 0 | AW115: 0 | AX115: 0 | AZ115: 20710.58794 | BA115: 8.629411641
B116: 89 | C116: 926.49 | D116: 160.23 | E116: 766.26 | F116: 127416.87 | G116: -926.49 | K116: 1023 | L116: 176.92 | M116: 846.08 | N116: 140689.41 | O116: -1023 | S116: 89 | T116: 1023 | U116: 92583.02809 | V116: 38.57626171 | X116: 20710.58794 | Y116: 8.629411641 | AA116: 926.49 | AB116: 83848.72893 | AC116: 34.93697039 | AE116: 20710.58794 | AF116: 8.629411641 | AH116: 1023 | AI116: 92583.02809 | AJ116: 38.57626171 | AL116: 0 | AM116: 0 | AO116: 96.51 | AP116: 8734.299161 | AQ116: 3.639291317 | AS116: 0 | AT116: 0 | AV116: 0 | AW116: 0 | AX116: 0 | AZ116: 20710.58794 | BA116: 8.629411641
B117: 90 | C117: 926.49 | D117: 159.27 | E117: 767.22 | F117: 126649.65 | G117: -926.49 | K117: 1023 | L117: 175.86 | M117: 847.14 | N117: 139842.27 | O117: -1023 | S117: 90 | T117: 1023 | U117: 93606.02809 | V117: 39.00251171 | X117: 20710.58794 | Y117: 8.629411641 | AA117: 926.49 | AB117: 84775.21893 | AC117: 35.32300789 | AE117: 20710.58794 | AF117: 8.629411641 | AH117: 1023 | AI117: 93606.02809 | AJ117: 39.00251171 | AL117: 0 | AM117: 0 | AO117: 96.51 | AP117: 8830.809161 | AQ117: 3.679503817 | AS117: 0 | AT117: 0 | AV117: 0 | AW117: 0 | AX117: 0 | AZ117: 20710.58794 | BA117: 8.629411641
B118: 91 | C118: 926.49 | D118: 158.31 | E118: 768.18 | F118: 125881.47 | G118: -926.49 | K118: 1023 | L118: 174.8 | M118: 848.2 | N118: 138994.07 | O118: -1023 | S118: 91 | T118: 1023 | U118: 94629.02809 | V118: 39.42876171 | X118: 20710.58794 | Y118: 8.629411641 | AA118: 926.49 | AB118: 85701.70893 | AC118: 35.70904539 | AE118: 20710.58794 | AF118: 8.629411641 | AH118: 1023 | AI118: 94629.02809 | AJ118: 39.42876171 | AL118: 0 | AM118: 0 | AO118: 96.51 | AP118: 8927.319161 | AQ118: 3.719716317 | AS118: 0 | AT118: 0 | AV118: 0 | AW118: 0 | AX118: 0 | AZ118: 20710.58794 | BA118: 8.629411641
B119: 92 | C119: 926.49 | D119: 157.35 | E119: 769.14 | F119: 125112.33 | G119: -926.49 | K119: 1023 | L119: 173.74 | M119: 849.26 | N119: 138144.81 | O119: -1023 | S119: 92 | T119: 1023 | U119: 95652.02809 | V119: 39.85501171 | X119: 20710.58794 | Y119: 8.629411641 | AA119: 926.49 | AB119: 86628.19893 | AC119: 36.09508289 | AE119: 20710.58794 | AF119: 8.629411641 | AH119: 1023 | AI119: 95652.02809 | AJ119: 39.85501171 | AL119: 0 | AM119: 0 | AO119: 96.51 | AP119: 9023.829161 | AQ119: 3.759928817 | AS119: 0 | AT119: 0 | AV119: 0 | AW119: 0 | AX119: 0 | AZ119: 20710.58794 | BA119: 8.629411641
B120: 93 | C120: 926.49 | D120: 156.39 | E120: 770.1 | F120: 124342.23 | G120: -926.49 | K120: 1023 | L120: 172.68 | M120: 850.32 | N120: 137294.49 | O120: -1023 | S120: 93 | T120: 1023 | U120: 96675.02809 | V120: 40.28126171 | X120: 20710.58794 | Y120: 8.629411641 | AA120: 926.49 | AB120: 87554.68893 | AC120: 36.48112039 | AE120: 20710.58794 | AF120: 8.629411641 | AH120: 1023 | AI120: 96675.02809 | AJ120: 40.28126171 | AL120: 0 | AM120: 0 | AO120: 96.51 | AP120: 9120.339161 | AQ120: 3.800141317 | AS120: 0 | AT120: 0 | AV120: 0 | AW120: 0 | AX120: 0 | AZ120: 20710.58794 | BA120: 8.629411641
B121: 94 | C121: 926.49 | D121: 155.43 | E121: 771.06 | F121: 123571.17 | G121: -926.49 | K121: 1023 | L121: 171.62 | M121: 851.38 | N121: 136443.11 | O121: -1023 | S121: 94 | T121: 1023 | U121: 97698.02809 | V121: 40.70751171 | X121: 20710.58794 | Y121: 8.629411641 | AA121: 926.49 | AB121: 88481.17893 | AC121: 36.86715789 | AE121: 20710.58794 | AF121: 8.629411641 | AH121: 1023 | AI121: 97698.02809 | AJ121: 40.70751171 | AL121: 0 | AM121: 0 | AO121: 96.51 | AP121: 9216.849161 | AQ121: 3.840353817 | AS121: 0 | AT121: 0 | AV121: 0 | AW121: 0 | AX121: 0 | AZ121: 20710.58794 | BA121: 8.629411641
B122: 95 | C122: 926.49 | D122: 154.46 | E122: 772.03 | F122: 122799.14 | G122: -926.49 | K122: 1023 | L122: 170.55 | M122: 852.45 | N122: 135590.66 | O122: -1023 | S122: 95 | T122: 1023 | U122: 98721.02809 | V122: 41.13376171 | X122: 20710.58794 | Y122: 8.629411641 | AA122: 926.49 | AB122: 89407.66893 | AC122: 37.25319539 | AE122: 20710.58794 | AF122: 8.629411641 | AH122: 1023 | AI122: 98721.02809 | AJ122: 41.13376171 | AL122: 0 | AM122: 0 | AO122: 96.51 | AP122: 9313.359161 | AQ122: 3.880566317 | AS122: 0 | AT122: 0 | AV122: 0 | AW122: 0 | AX122: 0 | AZ122: 20710.58794 | BA122: 8.629411641
B123: 96 | C123: 926.49 | D123: 153.5 | E123: 772.99 | F123: 122026.15 | G123: -926.49 | K123: 1023 | L123: 169.49 | M123: 853.51 | N123: 134737.15 | O123: -1023 | S123: 96 | T123: 1023 | U123: 99744.02809 | V123: 41.56001171 | W123: =SUM(V112:V123) -> 470.5876405 | X123: =X122+Z123 -> 20814.14088 | Y123: 8.629411641 | Z123: =SUM(Y112:Y123) -> 103.5529397 | AA123: 926.49 | AB123: 90334.15893 | AC123: 37.63923289 | AD123: =SUM(AC112:AC123) -> 426.1923197 | AE123: =AE122+AG123 -> 20814.14088 | AF123: 8.629411641 | AG123: =SUM(AF112:AF123) -> 103.5529397 | AH123: 1023 | AI123: 99744.02809 | AJ123: 41.56001171 | AK123: =SUM(AJ112:AJ123) -> 470.5876405 | AL123: =AL122+AN123 -> 0 | AM123: 0 | AN123: =SUM(AM112:AM123) -> 0 | AO123: 96.51 | AP123: 9409.869161 | AQ123: 3.920778817 | AR123: =SUM(AQ112:AQ123) -> 44.3953208 | AS123: =AS122+AU123 -> 0 | AT123: 0 | AU123: =SUM(AT112:AT123) -> 0 | AV123: 0 | AW123: 0 | AX123: 0 | AY123: =SUM(AX112:AX123) -> 0 | AZ123: =AZ122+BB123 -> 20814.14088 | BA123: 8.629411641 | BB123: =SUM(BA112:BA123) -> 103.5529397
B124: 97 | C124: 926.49 | D124: 152.53 | E124: 773.96 | F124: 121252.19 | G124: -926.49 | K124: 1023 | L124: 168.42 | M124: 854.58 | N124: 133882.57 | O124: -1023 | S124: 97 | T124: 1023 | U124: =U123+T124+W123 -> 101237.6157 | V124: 42.18233989 | X124: 20814.14088 | Y124: 8.672558699 | AA124: 926.49 | AB124: =AB123+AA124+AD123 -> 91686.84125 | AC124: 38.20285052 | AE124: 20814.14088 | AF124: 8.672558699 | AH124: 1023 | AI124: =AI123+AH124+AK123 -> 101237.6157 | AJ124: 42.18233989 | AL124: =AL123 -> 0 | AM124: 0 | AO124: 96.51 | AP124: =AP123+AO124+AR123 -> 9550.774481 | AQ124: 3.979489367 | AS124: 0 | AT124: 0 | AV124: 0 | AW124: =AW123+AV124+AY123 -> 0 | AX124: 0 | AZ124: =AZ123 -> 20814.14088 | BA124: 8.672558699
B125: 98 | C125: 926.49 | D125: 151.57 | E125: 774.92 | F125: 120477.27 | G125: -926.49 | K125: 1023 | L125: 167.35 | M125: 855.65 | N125: 133026.92 | O125: -1023 | S125: 98 | T125: 1023 | U125: 102260.6157 | V125: 42.60858989 | X125: 20814.14088 | Y125: 8.672558699 | AA125: 926.49 | AB125: 92613.33125 | AC125: 38.58888802 | AE125: 20814.14088 | AF125: 8.672558699 | AH125: 1023 | AI125: =AI124+AH125 -> 102260.6157 | AJ125: 42.60858989 | AL125: 0 | AM125: 0 | AO125: 96.51 | AP125: =AP124+AO125 -> 9647.284481 | AQ125: 4.019701867 | AS125: 0 | AT125: 0 | AV125: 0 | AW125: =AW124+AV125 -> 0 | AX125: 0 | AZ125: 20814.14088 | BA125: 8.672558699
B126: 99 | C126: 926.49 | D126: 150.6 | E126: 775.89 | F126: 119701.38 | G126: -926.49 | K126: 1023 | L126: 166.28 | M126: 856.72 | N126: 132170.2 | O126: -1023 | S126: 99 | T126: 1023 | U126: 103283.6157 | V126: 43.03483989 | X126: 20814.14088 | Y126: 8.672558699 | AA126: 926.49 | AB126: 93539.82125 | AC126: 38.97492552 | AE126: 20814.14088 | AF126: 8.672558699 | AH126: 1023 | AI126: 103283.6157 | AJ126: 43.03483989 | AL126: 0 | AM126: 0 | AO126: 96.51 | AP126: 9743.794481 | AQ126: 4.059914367 | AS126: 0 | AT126: 0 | AV126: 0 | AW126: 0 | AX126: 0 | AZ126: 20814.14088 | BA126: 8.672558699
B127: 100 | C127: 926.49 | D127: 149.63 | E127: 776.86 | F127: 118924.52 | G127: -926.49 | K127: 1023 | L127: 165.21 | M127: 857.79 | N127: 131312.41 | O127: -1023 | S127: 100 | T127: 1023 | U127: 104306.6157 | V127: 43.46108989 | X127: 20814.14088 | Y127: 8.672558699 | AA127: 926.49 | AB127: 94466.31125 | AC127: 39.36096302 | AE127: 20814.14088 | AF127: 8.672558699 | AH127: 1023 | AI127: 104306.6157 | AJ127: 43.46108989 | AL127: 0 | AM127: 0 | AO127: 96.51 | AP127: 9840.304481 | AQ127: 4.100126867 | AS127: 0 | AT127: 0 | AV127: 0 | AW127: 0 | AX127: 0 | AZ127: 20814.14088 | BA127: 8.672558699
B128: 101 | C128: 926.49 | D128: 148.66 | E128: 777.83 | F128: 118146.69 | G128: -926.49 | K128: 1023 | L128: 164.14 | M128: 858.86 | N128: 130453.55 | O128: -1023 | S128: 101 | T128: 1023 | U128: 105329.6157 | V128: 43.88733989 | X128: 20814.14088 | Y128: 8.672558699 | AA128: 926.49 | AB128: 95392.80125 | AC128: 39.74700052 | AE128: 20814.14088 | AF128: 8.672558699 | AH128: 1023 | AI128: 105329.6157 | AJ128: 43.88733989 | AL128: 0 | AM128: 0 | AO128: 96.51 | AP128: 9936.814481 | AQ128: 4.140339367 | AS128: 0 | AT128: 0 | AV128: 0 | AW128: 0 | AX128: 0 | AZ128: 20814.14088 | BA128: 8.672558699
B129: 102 | C129: 926.49 | D129: 147.68 | E129: 778.81 | F129: 117367.88 | G129: -926.49 | K129: 1023 | L129: 163.07 | M129: 859.93 | N129: 129593.62 | O129: -1023 | S129: 102 | T129: 1023 | U129: 106352.6157 | V129: 44.31358989 | X129: 20814.14088 | Y129: 8.672558699 | AA129: 926.49 | AB129: 96319.29125 | AC129: 40.13303802 | AE129: 20814.14088 | AF129: 8.672558699 | AH129: 1023 | AI129: 106352.6157 | AJ129: 44.31358989 | AL129: 0 | AM129: 0 | AO129: 96.51 | AP129: 10033.32448 | AQ129: 4.180551867 | AS129: 0 | AT129: 0 | AV129: 0 | AW129: 0 | AX129: 0 | AZ129: 20814.14088 | BA129: 8.672558699
B130: 103 | C130: 926.49 | D130: 146.71 | E130: 779.78 | F130: 116588.1 | G130: -926.49 | K130: 1023 | L130: 161.99 | M130: 861.01 | N130: 128732.61 | O130: -1023 | S130: 103 | T130: 1023 | U130: 107375.6157 | V130: 44.73983989 | X130: 20814.14088 | Y130: 8.672558699 | AA130: 926.49 | AB130: 97245.78125 | AC130: 40.51907552 | AE130: 20814.14088 | AF130: 8.672558699 | AH130: 1023 | AI130: 107375.6157 | AJ130: 44.73983989 | AL130: 0 | AM130: 0 | AO130: 96.51 | AP130: 10129.83448 | AQ130: 4.220764367 | AS130: 0 | AT130: 0 | AV130: 0 | AW130: 0 | AX130: 0 | AZ130: 20814.14088 | BA130: 8.672558699
B131: 104 | C131: 926.49 | D131: 145.74 | E131: 780.75 | F131: 115807.35 | G131: -926.49 | K131: 1023 | L131: 160.92 | M131: 862.08 | N131: 127870.53 | O131: -1023 | S131: 104 | T131: 1023 | U131: 108398.6157 | V131: 45.16608989 | X131: 20814.14088 | Y131: 8.672558699 | AA131: 926.49 | AB131: 98172.27125 | AC131: 40.90511302 | AE131: 20814.14088 | AF131: 8.672558699 | AH131: 1023 | AI131: 108398.6157 | AJ131: 45.16608989 | AL131: 0 | AM131: 0 | AO131: 96.51 | AP131: 10226.34448 | AQ131: 4.260976867 | AS131: 0 | AT131: 0 | AV131: 0 | AW131: 0 | AX131: 0 | AZ131: 20814.14088 | BA131: 8.672558699
B132: 105 | C132: 926.49 | D132: 144.76 | E132: 781.73 | F132: 115025.62 | G132: -926.49 | K132: 1023 | L132: 159.84 | M132: 863.16 | N132: 127007.37 | O132: -1023 | S132: 105 | T132: 1023 | U132: 109421.6157 | V132: 45.59233989 | X132: 20814.14088 | Y132: 8.672558699 | AA132: 926.49 | AB132: 99098.76125 | AC132: 41.29115052 | AE132: 20814.14088 | AF132: 8.672558699 | AH132: 1023 | AI132: 109421.6157 | AJ132: 45.59233989 | AL132: 0 | AM132: 0 | AO132: 96.51 | AP132: 10322.85448 | AQ132: 4.301189367 | AS132: 0 | AT132: 0 | AV132: 0 | AW132: 0 | AX132: 0 | AZ132: 20814.14088 | BA132: 8.672558699
B133: 106 | C133: 926.49 | D133: 143.78 | E133: 782.71 | F133: 114242.91 | G133: -926.49 | K133: 1023 | L133: 158.76 | M133: 864.24 | N133: 126143.13 | O133: -1023 | S133: 106 | T133: 1023 | U133: 110444.6157 | V133: 46.01858989 | X133: 20814.14088 | Y133: 8.672558699 | AA133: 926.49 | AB133: 100025.2513 | AC133: 41.67718802 | AE133: 20814.14088 | AF133: 8.672558699 | AH133: 1023 | AI133: 110444.6157 | AJ133: 46.01858989 | AL133: 0 | AM133: 0 | AO133: 96.51 | AP133: 10419.36448 | AQ133: 4.341401867 | AS133: 0 | AT133: 0 | AV133: 0 | AW133: 0 | AX133: 0 | AZ133: 20814.14088 | BA133: 8.672558699
B134: 107 | C134: 926.49 | D134: 142.8 | E134: 783.69 | F134: 113459.22 | G134: -926.49 | K134: 1023 | L134: 157.68 | M134: 865.32 | N134: 125277.81 | O134: -1023 | S134: 107 | T134: 1023 | U134: 111467.6157 | V134: 46.44483989 | X134: 20814.14088 | Y134: 8.672558699 | AA134: 926.49 | AB134: 100951.7413 | AC134: 42.06322552 | AE134: 20814.14088 | AF134: 8.672558699 | AH134: 1023 | AI134: 111467.6157 | AJ134: 46.44483989 | AL134: 0 | AM134: 0 | AO134: 96.51 | AP134: 10515.87448 | AQ134: 4.381614367 | AS134: 0 | AT134: 0 | AV134: 0 | AW134: 0 | AX134: 0 | AZ134: 20814.14088 | BA134: 8.672558699
B135: 108 | C135: 926.49 | D135: 141.82 | E135: 784.67 | F135: 112674.55 | G135: -926.49 | K135: 1023 | L135: 156.6 | M135: 866.4 | N135: 124411.41 | O135: -1023 | S135: 108 | T135: 1023 | U135: 112490.6157 | V135: 46.87108989 | W135: =SUM(V124:V135) -> 534.3205787 | X135: =X134+Z135 -> 20918.21158 | Y135: 8.672558699 | Z135: =SUM(Y124:Y135) -> 104.0707044 | AA135: 926.49 | AB135: 101878.2313 | AC135: 42.44926302 | AD135: =SUM(AC124:AC135) -> 483.9126813 | AE135: =AE134+AG135 -> 20918.21158 | AF135: 8.672558699 | AG135: =SUM(AF124:AF135) -> 104.0707044 | AH135: 1023 | AI135: 112490.6157 | AJ135: 46.87108989 | AK135: =SUM(AJ124:AJ135) -> 534.3205787 | AL135: =AL134+AN135 -> 0 | AM135: 0 | AN135: =SUM(AM124:AM135) -> 0 | AO135: 96.51 | AP135: 10612.38448 | AQ135: 4.421826867 | AR135: =SUM(AQ124:AQ135) -> 50.40789741 | AS135: =AS134+AU135 -> 0 | AT135: 0 | AU135: =SUM(AT124:AT135) -> 0 | AV135: 0 | AW135: 0 | AX135: 0 | AY135: =SUM(AX124:AX135) -> 0 | AZ135: =AZ134+BB135 -> 20918.21158 | BA135: 8.672558699 | BB135: =SUM(BA124:BA135) -> 104.0707044
B136: 109 | C136: 926.49 | D136: 140.84 | E136: 785.65 | F136: 111888.9 | G136: -926.49 | K136: 1023 | L136: 155.51 | M136: 867.49 | N136: 123543.92 | O136: -1023 | S136: 109 | T136: 1023 | U136: =U135+T136+W135 -> 114047.9363 | V136: 47.51997346 | X136: 20918.21158 | Y136: 8.715921493 | AA136: 926.49 | AB136: =AB135+AA136+AD135 -> 103288.6339 | AC136: 43.03693081 | AE136: 20918.21158 | AF136: 8.715921493 | AH136: 1023 | AI136: =AI135+AH136+AK135 -> 114047.9363 | AJ136: 47.51997346 | AL136: =AL135 -> 0 | AM136: 0 | AO136: 96.51 | AP136: =AP135+AO136+AR135 -> 10759.30238 | AQ136: 4.483042658 | AS136: 0 | AT136: 0 | AV136: 0 | AW136: =AW135+AV136+AY135 -> 0 | AX136: 0 | AZ136: =AZ135 -> 20918.21158 | BA136: 8.715921493
B137: 110 | C137: 926.49 | D137: 139.86 | E137: 786.63 | F137: 111102.27 | G137: -926.49 | K137: 1023 | L137: 154.43 | M137: 868.57 | N137: 122675.35 | O137: -1023 | S137: 110 | T137: 1023 | U137: 115070.9363 | V137: 47.94622346 | X137: 20918.21158 | Y137: 8.715921493 | AA137: 926.49 | AB137: 104215.1239 | AC137: 43.42296831 | AE137: 20918.21158 | AF137: 8.715921493 | AH137: 1023 | AI137: =AI136+AH137 -> 115070.9363 | AJ137: 47.94622346 | AL137: 0 | AM137: 0 | AO137: 96.51 | AP137: =AP136+AO137 -> 10855.81238 | AQ137: 4.523255158 | AS137: 0 | AT137: 0 | AV137: 0 | AW137: =AW136+AV137 -> 0 | AX137: 0 | AZ137: 20918.21158 | BA137: 8.715921493
B138: 111 | C138: 926.49 | D138: 138.88 | E138: 787.61 | F138: 110314.66 | G138: -926.49 | K138: 1023 | L138: 153.34 | M138: 869.66 | N138: 121805.69 | O138: -1023 | S138: 111 | T138: 1023 | U138: 116093.9363 | V138: 48.37247346 | X138: 20918.21158 | Y138: 8.715921493 | AA138: 926.49 | AB138: 105141.6139 | AC138: 43.80900581 | AE138: 20918.21158 | AF138: 8.715921493 | AH138: 1023 | AI138: 116093.9363 | AJ138: 48.37247346 | AL138: 0 | AM138: 0 | AO138: 96.51 | AP138: 10952.32238 | AQ138: 4.563467658 | AS138: 0 | AT138: 0 | AV138: 0 | AW138: 0 | AX138: 0 | AZ138: 20918.21158 | BA138: 8.715921493
B139: 112 | C139: 926.49 | D139: 137.89 | E139: 788.6 | F139: 109526.06 | G139: -926.49 | K139: 1023 | L139: 152.26 | M139: 870.74 | N139: 120934.95 | O139: -1023 | S139: 112 | T139: 1023 | U139: 117116.9363 | V139: 48.79872346 | X139: 20918.21158 | Y139: 8.715921493 | AA139: 926.49 | AB139: 106068.1039 | AC139: 44.19504331 | AE139: 20918.21158 | AF139: 8.715921493 | AH139: 1023 | AI139: 117116.9363 | AJ139: 48.79872346 | AL139: 0 | AM139: 0 | AO139: 96.51 | AP139: 11048.83238 | AQ139: 4.603680158 | AS139: 0 | AT139: 0 | AV139: 0 | AW139: 0 | AX139: 0 | AZ139: 20918.21158 | BA139: 8.715921493
B140: 113 | C140: 926.49 | D140: 136.91 | E140: 789.58 | F140: 108736.48 | G140: -926.49 | K140: 1023 | L140: 151.17 | M140: 871.83 | N140: 120063.12 | O140: -1023 | S140: 113 | T140: 1023 | U140: 118139.9363 | V140: 49.22497346 | X140: 20918.21158 | Y140: 8.715921493 | AA140: 926.49 | AB140: 106994.5939 | AC140: 44.58108081 | AE140: 20918.21158 | AF140: 8.715921493 | AH140: 1023 | AI140: 118139.9363 | AJ140: 49.22497346 | AL140: 0 | AM140: 0 | AO140: 96.51 | AP140: 11145.34238 | AQ140: 4.643892658 | AS140: 0 | AT140: 0 | AV140: 0 | AW140: 0 | AX140: 0 | AZ140: 20918.21158 | BA140: 8.715921493
B141: 114 | C141: 926.49 | D141: 135.92 | E141: 790.57 | F141: 107945.91 | G141: -926.49 | K141: 1023 | L141: 150.08 | M141: 872.92 | N141: 119190.2 | O141: -1023 | S141: 114 | T141: 1023 | U141: 119162.9363 | V141: 49.65122346 | X141: 20918.21158 | Y141: 8.715921493 | AA141: 926.49 | AB141: 107921.0839 | AC141: 44.96711831 | AE141: 20918.21158 | AF141: 8.715921493 | AH141: 1023 | AI141: 119162.9363 | AJ141: 49.65122346 | AL141: 0 | AM141: 0 | AO141: 96.51 | AP141: 11241.85238 | AQ141: 4.684105158 | AS141: 0 | AT141: 0 | AV141: 0 | AW141: 0 | AX141: 0 | AZ141: 20918.21158 | BA141: 8.715921493
B142: 115 | C142: 926.49 | D142: 134.93 | E142: 791.56 | F142: 107154.35 | G142: -926.49 | K142: 1023 | L142: 148.99 | M142: 874.01 | N142: 118316.19 | O142: -1023 | S142: 115 | T142: 1023 | U142: 120185.9363 | V142: 50.07747346 | X142: 20918.21158 | Y142: 8.715921493 | AA142: 926.49 | AB142: 108847.5739 | AC142: 45.35315581 | AE142: 20918.21158 | AF142: 8.715921493 | AH142: 1023 | AI142: 120185.9363 | AJ142: 50.07747346 | AL142: 0 | AM142: 0 | AO142: 96.51 | AP142: 11338.36238 | AQ142: 4.724317658 | AS142: 0 | AT142: 0 | AV142: 0 | AW142: 0 | AX142: 0 | AZ142: 20918.21158 | BA142: 8.715921493
B143: 116 | C143: 926.49 | D143: 133.94 | E143: 792.55 | F143: 106361.8 | G143: -926.49 | K143: 1023 | L143: 147.9 | M143: 875.1 | N143: 117441.09 | O143: -1023 | S143: 116 | T143: 1023 | U143: 121208.9363 | V143: 50.50372346 | X143: 20918.21158 | Y143: 8.715921493 | AA143: 926.49 | AB143: 109774.0639 | AC143: 45.73919331 | AE143: 20918.21158 | AF143: 8.715921493 | AH143: 1023 | AI143: 121208.9363 | AJ143: 50.50372346 | AL143: 0 | AM143: 0 | AO143: 96.51 | AP143: 11434.87238 | AQ143: 4.764530158 | AS143: 0 | AT143: 0 | AV143: 0 | AW143: 0 | AX143: 0 | AZ143: 20918.21158 | BA143: 8.715921493
B144: 117 | C144: 926.49 | D144: 132.95 | E144: 793.54 | F144: 105568.26 | G144: -926.49 | K144: 1023 | L144: 146.8 | M144: 876.2 | N144: 116564.89 | O144: -1023 | S144: 117 | T144: 1023 | U144: 122231.9363 | V144: 50.92997346 | X144: 20918.21158 | Y144: 8.715921493 | AA144: 926.49 | AB144: 110700.5539 | AC144: 46.12523081 | AE144: 20918.21158 | AF144: 8.715921493 | AH144: 1023 | AI144: 122231.9363 | AJ144: 50.92997346 | AL144: 0 | AM144: 0 | AO144: 96.51 | AP144: 11531.38238 | AQ144: 4.804742658 | AS144: 0 | AT144: 0 | AV144: 0 | AW144: 0 | AX144: 0 | AZ144: 20918.21158 | BA144: 8.715921493
B145: 118 | C145: 926.49 | D145: 131.96 | E145: 794.53 | F145: 104773.73 | G145: -926.49 | K145: 1023 | L145: 145.71 | M145: 877.29 | N145: 115687.6 | O145: -1023 | S145: 118 | T145: 1023 | U145: 123254.9363 | V145: 51.35622346 | X145: 20918.21158 | Y145: 8.715921493 | AA145: 926.49 | AB145: 111627.0439 | AC145: 46.51126831 | AE145: 20918.21158 | AF145: 8.715921493 | AH145: 1023 | AI145: 123254.9363 | AJ145: 51.35622346 | AL145: 0 | AM145: 0 | AO145: 96.51 | AP145: 11627.89238 | AQ145: 4.844955158 | AS145: 0 | AT145: 0 | AV145: 0 | AW145: 0 | AX145: 0 | AZ145: 20918.21158 | BA145: 8.715921493
B146: 119 | C146: 926.49 | D146: 130.97 | E146: 795.52 | F146: 103978.21 | G146: -926.49 | K146: 1023 | L146: 144.61 | M146: 878.39 | N146: 114809.21 | O146: -1023 | S146: 119 | T146: 1023 | U146: 124277.9363 | V146: 51.78247346 | X146: 20918.21158 | Y146: 8.715921493 | AA146: 926.49 | AB146: 112553.5339 | AC146: 46.89730581 | AE146: 20918.21158 | AF146: 8.715921493 | AH146: 1023 | AI146: 124277.9363 | AJ146: 51.78247346 | AL146: 0 | AM146: 0 | AO146: 96.51 | AP146: 11724.40238 | AQ146: 4.885167658 | AS146: 0 | AT146: 0 | AV146: 0 | AW146: 0 | AX146: 0 | AZ146: 20918.21158 | BA146: 8.715921493
B147: 120 | C147: 926.49 | D147: 129.97 | E147: 796.52 | F147: 103181.69 | G147: -926.49 | K147: 1023 | L147: 143.51 | M147: 879.49 | N147: 113929.72 | O147: -1023 | S147: 120 | T147: 1023 | U147: 125300.9363 | V147: 52.20872346 | W147: =SUM(V136:V147) -> 598.3721816 | X147: =X146+Z147 -> 21022.80264 | Y147: 8.715921493 | Z147: =SUM(Y136:Y147) -> 104.5910579 | AA147: 926.49 | AB147: 113480.0239 | AC147: 47.28334331 | AD147: =SUM(AC136:AC147) -> 541.9216447 | AE147: =AE146+AG147 -> 21022.80264 | AF147: 8.715921493 | AG147: =SUM(AF136:AF147) -> 104.5910579 | AH147: 1023 | AI147: 125300.9363 | AJ147: 52.20872346 | AK147: =SUM(AJ136:AJ147) -> 598.3721816 | AL147: =AL146+AN147 -> 0 | AM147: 0 | AN147: =SUM(AM136:AM147) -> 0 | AO147: 96.51 | AP147: 11820.91238 | AQ147: 4.925380158 | AR147: =SUM(AQ136:AQ147) -> 56.45053689 | AS147: =AS146+AU147 -> 0 | AT147: 0 | AU147: =SUM(AT136:AT147) -> 0 | AV147: 0 | AW147: 0 | AX147: 0 | AY147: =SUM(AX136:AX147) -> 0 | AZ147: =AZ146+BB147 -> 21022.80264 | BA147: 8.715921493 | BB147: =SUM(BA136:BA147) -> 104.5910579
B148: 121 | C148: 926.49 | D148: 128.98 | E148: 797.51 | F148: 102384.18 | G148: -926.49 | K148: 1023 | L148: 142.41 | M148: 880.59 | N148: 113049.13 | O148: -1023 | S148: 121 | T148: 1023 | U148: =U147+T148+W147 -> 126922.3085 | V148: 52.88429521 | X148: 21022.80264 | Y148: 8.7595011 | AA148: 926.49 | AB148: =AB147+AA148+AD147 -> 114948.4356 | AC148: 47.89518149 | AE148: 21022.80264 | AF148: 8.7595011 | AH148: 1023 | AI148: =AI147+AH148+AK147 -> 126922.3085 | AJ148: 52.88429521 | AL148: =AL147 -> 0 | AM148: 0 | AO148: 96.51 | AP148: =AP147+AO148+AR147 -> 11973.87292 | AQ148: 4.989113715 | AS148: 0 | AT148: 0 | AV148: 0 | AW148: =AW147+AV148+AY147 -> 0 | AX148: 0 | AZ148: =AZ147 -> 21022.80264 | BA148: 8.7595011
B149: 122 | C149: 926.49 | D149: 127.98 | E149: 798.51 | F149: 101585.67 | G149: -926.49 | K149: 1023 | L149: 141.31 | M149: 881.69 | N149: 112167.44 | O149: -1023 | S149: 122 | T149: 1023 | U149: 127945.3085 | V149: 53.31054521 | X149: 21022.80264 | Y149: 8.7595011 | AA149: 926.49 | AB149: 115874.9256 | AC149: 48.28121899 | AE149: 21022.80264 | AF149: 8.7595011 | AH149: 1023 | AI149: =AI148+AH149 -> 127945.3085 | AJ149: 53.31054521 | AL149: 0 | AM149: 0 | AO149: 96.51 | AP149: =AP148+AO149 -> 12070.38292 | AQ149: 5.029326215 | AS149: 0 | AT149: 0 | AV149: 0 | AW149: =AW148+AV149 -> 0 | AX149: 0 | AZ149: 21022.80264 | BA149: 8.7595011
B150: 123 | C150: 926.49 | D150: 126.98 | E150: 799.51 | F150: 100786.16 | G150: -926.49 | K150: 1023 | L150: 140.21 | M150: 882.79 | N150: 111284.65 | O150: -1023 | S150: 123 | T150: 1023 | U150: 128968.3085 | V150: 53.73679521 | X150: 21022.80264 | Y150: 8.7595011 | AA150: 926.49 | AB150: 116801.4156 | AC150: 48.66725649 | AE150: 21022.80264 | AF150: 8.7595011 | AH150: 1023 | AI150: 128968.3085 | AJ150: 53.73679521 | AL150: 0 | AM150: 0 | AO150: 96.51 | AP150: 12166.89292 | AQ150: 5.069538715 | AS150: 0 | AT150: 0 | AV150: 0 | AW150: 0 | AX150: 0 | AZ150: 21022.80264 | BA150: 8.7595011
B151: 124 | C151: 926.49 | D151: 125.98 | E151: 800.51 | F151: 99985.65 | G151: -926.49 | K151: 1023 | L151: 139.11 | M151: 883.89 | N151: 110400.76 | O151: -1023 | S151: 124 | T151: 1023 | U151: 129991.3085 | V151: 54.16304521 | X151: 21022.80264 | Y151: 8.7595011 | AA151: 926.49 | AB151: 117727.9056 | AC151: 49.05329399 | AE151: 21022.80264 | AF151: 8.7595011 | AH151: 1023 | AI151: 129991.3085 | AJ151: 54.16304521 | AL151: 0 | AM151: 0 | AO151: 96.51 | AP151: 12263.40292 | AQ151: 5.109751215 | AS151: 0 | AT151: 0 | AV151: 0 | AW151: 0 | AX151: 0 | AZ151: 21022.80264 | BA151: 8.7595011
B152: 125 | C152: 926.49 | D152: 124.98 | E152: 801.51 | F152: 99184.14 | G152: -926.49 | K152: 1023 | L152: 138 | M152: 885 | N152: 109515.76 | O152: -1023 | S152: 125 | T152: 1023 | U152: 131014.3085 | V152: 54.58929521 | X152: 21022.80264 | Y152: 8.7595011 | AA152: 926.49 | AB152: 118654.3956 | AC152: 49.43933149 | AE152: 21022.80264 | AF152: 8.7595011 | AH152: 1023 | AI152: 131014.3085 | AJ152: 54.58929521 | AL152: 0 | AM152: 0 | AO152: 96.51 | AP152: 12359.91292 | AQ152: 5.149963715 | AS152: 0 | AT152: 0 | AV152: 0 | AW152: 0 | AX152: 0 | AZ152: 21022.80264 | BA152: 8.7595011
B153: 126 | C153: 926.49 | D153: 123.98 | E153: 802.51 | F153: 98381.63 | G153: -926.49 | K153: 1023 | L153: 136.89 | M153: 886.11 | N153: 108629.65 | O153: -1023 | S153: 126 | T153: 1023 | U153: 132037.3085 | V153: 55.01554521 | X153: 21022.80264 | Y153: 8.7595011 | AA153: 926.49 | AB153: 119580.8856 | AC153: 49.82536899 | AE153: 21022.80264 | AF153: 8.7595011 | AH153: 1023 | AI153: 132037.3085 | AJ153: 55.01554521 | AL153: 0 | AM153: 0 | AO153: 96.51 | AP153: 12456.42292 | AQ153: 5.190176215 | AS153: 0 | AT153: 0 | AV153: 0 | AW153: 0 | AX153: 0 | AZ153: 21022.80264 | BA153: 8.7595011
B154: 127 | C154: 926.49 | D154: 122.98 | E154: 803.51 | F154: 97578.12 | G154: -926.49 | K154: 1023 | L154: 135.79 | M154: 887.21 | N154: 107742.44 | O154: -1023 | S154: 127 | T154: 1023 | U154: 133060.3085 | V154: 55.44179521 | X154: 21022.80264 | Y154: 8.7595011 | AA154: 926.49 | AB154: 120507.3756 | AC154: 50.21140649 | AE154: 21022.80264 | AF154: 8.7595011 | AH154: 1023 | AI154: 133060.3085 | AJ154: 55.44179521 | AL154: 0 | AM154: 0 | AO154: 96.51 | AP154: 12552.93292 | AQ154: 5.230388715 | AS154: 0 | AT154: 0 | AV154: 0 | AW154: 0 | AX154: 0 | AZ154: 21022.80264 | BA154: 8.7595011
B155: 128 | C155: 926.49 | D155: 121.97 | E155: 804.52 | F155: 96773.6 | G155: -926.49 | K155: 1023 | L155: 134.68 | M155: 888.32 | N155: 106854.12 | O155: -1023 | S155: 128 | T155: 1023 | U155: 134083.3085 | V155: 55.86804521 | X155: 21022.80264 | Y155: 8.7595011 | AA155: 926.49 | AB155: 121433.8656 | AC155: 50.59744399 | AE155: 21022.80264 | AF155: 8.7595011 | AH155: 1023 | AI155: 134083.3085 | AJ155: 55.86804521 | AL155: 0 | AM155: 0 | AO155: 96.51 | AP155: 12649.44292 | AQ155: 5.270601215 | AS155: 0 | AT155: 0 | AV155: 0 | AW155: 0 | AX155: 0 | AZ155: 21022.80264 | BA155: 8.7595011
B156: 129 | C156: =ROUND(-PMT($E$10/12,$E$9,$E$13,0,0),2) -> 926.49 | D156: =ROUND(F155*$E$10/12,2) -> 120.97 | E156: 805.52 | F156: 95968.08 | G156: -926.49 | K156: =ROUND(-PMT($E$10/12,$E$9,$E$14,0,0),2) -> 1023 | L156: =ROUND(N155*$E$10/12,2) -> 133.57 | M156: 889.43 | N156: 105964.69 | O156: -1023 | S156: 129 | T156: 1023 | U156: 135106.3085 | V156: =U156*$E$8/12 -> 56.29429521 | X156: 21022.80264 | Y156: =X155*$E$8/12 -> 8.7595011 | AA156: 926.49 | AB156: 122360.3556 | AC156: =AB156*$E$8/12 -> 50.98348149 | AE156: 21022.80264 | AF156: =AE155*$E$8/12 -> 8.7595011 | AH156: 1023 | AI156: 135106.3085 | AJ156: =AI156*$E$8/12 -> 56.29429521 | AL156: 0 | AM156: =AL155*$E$8/12 -> 0 | AO156: 96.51 | AP156: 12745.95292 | AQ156: =AP156*$E$8/12 -> 5.310813715 | AS156: 0 | AT156: =AS155*$E$8/12 -> 0 | AV156: 0 | AW156: 0 | AX156: =AW156*$E$8/12 -> 0 | AZ156: 21022.80264 | BA156: =AZ155*$E$8/12 -> 8.7595011
B157: 130 | C157: 926.49 | D157: 119.96 | E157: =C157-D157 -> 806.53 | F157: =F156-E157 -> 95161.55 | G157: =-C157 -> -926.49 | K157: 1023 | L157: 132.46 | M157: =K157-L157 -> 890.54 | N157: =N156-M157 -> 105074.15 | O157: =-K157 -> -1023 | S157: 130 | T157: =IF(C157>K157,C157,K157) -> 1023 | U157: 136129.3085 | V157: 56.72054521 | X157: =X156 -> 21022.80264 | Y157: 8.7595011 | AA157: 926.49 | AB157: 123286.8456 | AC157: 51.36951899 | AE157: =AE156 -> 21022.80264 | AF157: 8.7595011 | AH157: =K157 -> 1023 | AI157: 136129.3085 | AJ157: 56.72054521 | AL157: 0 | AM157: 0 | AO157: =T157-C157 -> 96.51 | AP157: 12842.46292 | AQ157: 5.351026215 | AS157: =AS156 -> 0 | AT157: 0 | AV157: =T157-K157 -> 0 | AW157: 0 | AX157: 0 | AZ157: 21022.80264 | BA157: 8.7595011
B158: 131 | C158: 926.49 | D158: 118.95 | E158: 807.54 | F158: 94354.01 | G158: -926.49 | K158: 1023 | L158: 131.34 | M158: 891.66 | N158: 104182.49 | O158: -1023 | S158: 131 | T158: 1023 | U158: =U157+T158 -> 137152.3085 | V158: 57.14679521 | X158: 21022.80264 | Y158: 8.7595011 | AA158: =C158 -> 926.49 | AB158: =AB157+AA158 -> 124213.3356 | AC158: 51.75555649 | AE158: 21022.80264 | AF158: 8.7595011 | AH158: 1023 | AI158: 137152.3085 | AJ158: 57.14679521 | AL158: 0 | AM158: 0 | AO158: 96.51 | AP158: 12938.97292 | AQ158: 5.391238715 | AS158: 0 | AT158: 0 | AV158: 0 | AW158: 0 | AX158: 0 | AZ158: 21022.80264 | BA158: 8.7595011
B159: 132 | C159: 926.49 | D159: 117.94 | E159: 808.55 | F159: 93545.46 | G159: -926.49 | K159: 1023 | L159: 130.23 | M159: 892.77 | N159: 103289.72 | O159: -1023 | S159: 132 | T159: 1023 | U159: 138175.3085 | V159: 57.57304521 | W159: =SUM(V148:V159) -> 662.7440425 | X159: =X158+Z159 -> 21127.91665 | Y159: 8.7595011 | Z159: =SUM(Y148:Y159) -> 105.1140132 | AA159: 926.49 | AB159: 125139.8256 | AC159: 52.14159399 | AD159: =SUM(AC148:AC159) -> 600.2206529 | AE159: =AE158+AG159 -> 21127.91665 | AF159: 8.7595011 | AG159: =SUM(AF148:AF159) -> 105.1140132 | AH159: 1023 | AI159: 138175.3085 | AJ159: 57.57304521 | AK159: =SUM(AJ148:AJ159) -> 662.7440425 | AL159: =AL158+AN159 -> 0 | AM159: 0 | AN159: =SUM(AM148:AM159) -> 0 | AO159: 96.51 | AP159: 13035.48292 | AQ159: 5.431451215 | AR159: =SUM(AQ148:AQ159) -> 62.52338958 | AS159: =AS158+AU159 -> 0 | AT159: 0 | AU159: =SUM(AT148:AT159) -> 0 | AV159: 0 | AW159: 0 | AX159: 0 | AY159: =SUM(AX148:AX159) -> 0 | AZ159: =AZ158+BB159 -> 21127.91665 | BA159: 8.7595011 | BB159: =SUM(BA148:BA159) -> 105.1140132
B160: 133 | C160: 926.49 | D160: 116.93 | E160: 809.56 | F160: 92735.9 | G160: -926.49 | K160: 1023 | L160: 129.11 | M160: 893.89 | N160: 102395.83 | O160: -1023 | S160: 133 | T160: 1023 | U160: =U159+T160+W159 -> 139861.0525 | V160: 58.27543856 | X160: 21127.91665 | Y160: 8.803298606 | AA160: 926.49 | AB160: =AB159+AA160+AD159 -> 126666.5362 | AC160: 52.77772343 | AE160: 21127.91665 | AF160: 8.803298606 | AH160: 1023 | AI160: =AI159+AH160+AK159 -> 139861.0525 | AJ160: 58.27543856 | AL160: =AL159 -> 0 | AM160: 0 | AO160: 96.51 | AP160: =AP159+AO160+AR159 -> 13194.51631 | AQ160: 5.497715127 | AS160: 0 | AT160: 0 | AV160: 0 | AW160: =AW159+AV160+AY159 -> 0 | AX160: 0 | AZ160: =AZ159 -> 21127.91665 | BA160: 8.803298606
B161: 134 | C161: 926.49 | D161: 115.92 | E161: 810.57 | F161: 91925.33 | G161: -926.49 | K161: 1023 | L161: 127.99 | M161: 895.01 | N161: 101500.82 | O161: -1023 | S161: 134 | T161: 1023 | U161: 140884.0525 | V161: 58.70168856 | X161: 21127.91665 | Y161: 8.803298606 | AA161: 926.49 | AB161: 127593.0262 | AC161: 53.16376093 | AE161: 21127.91665 | AF161: 8.803298606 | AH161: 1023 | AI161: =AI160+AH161 -> 140884.0525 | AJ161: 58.70168856 | AL161: 0 | AM161: 0 | AO161: 96.51 | AP161: =AP160+AO161 -> 13291.02631 | AQ161: 5.537927627 | AS161: 0 | AT161: 0 | AV161: 0 | AW161: =AW160+AV161 -> 0 | AX161: 0 | AZ161: 21127.91665 | BA161: 8.803298606
B162: 135 | C162: 926.49 | D162: 114.91 | E162: 811.58 | F162: 91113.75 | G162: -926.49 | K162: 1023 | L162: 126.88 | M162: 896.12 | N162: 100604.7 | O162: -1023 | S162: 135 | T162: 1023 | U162: 141907.0525 | V162: 59.12793856 | X162: 21127.91665 | Y162: 8.803298606 | AA162: 926.49 | AB162: 128519.5162 | AC162: 53.54979843 | AE162: 21127.91665 | AF162: 8.803298606 | AH162: 1023 | AI162: 141907.0525 | AJ162: 59.12793856 | AL162: 0 | AM162: 0 | AO162: 96.51 | AP162: 13387.53631 | AQ162: 5.578140127 | AS162: 0 | AT162: 0 | AV162: 0 | AW162: 0 | AX162: 0 | AZ162: 21127.91665 | BA162: 8.803298606
B163: 136 | C163: 926.49 | D163: 113.89 | E163: 812.6 | F163: 90301.15 | G163: -926.49 | K163: 1023 | L163: 125.76 | M163: 897.24 | N163: 99707.46 | O163: -1023 | S163: 136 | T163: 1023 | U163: 142930.0525 | V163: 59.55418856 | X163: 21127.91665 | Y163: 8.803298606 | AA163: 926.49 | AB163: 129446.0062 | AC163: 53.93583593 | AE163: 21127.91665 | AF163: 8.803298606 | AH163: 1023 | AI163: 142930.0525 | AJ163: 59.55418856 | AL163: 0 | AM163: 0 | AO163: 96.51 | AP163: 13484.04631 | AQ163: 5.618352627 | AS163: 0 | AT163: 0 | AV163: 0 | AW163: 0 | AX163: 0 | AZ163: 21127.91665 | BA163: 8.803298606
B164: 137 | C164: 926.49 | D164: 112.88 | E164: 813.61 | F164: 89487.54 | G164: -926.49 | K164: 1023 | L164: 124.63 | M164: 898.37 | N164: 98809.09 | O164: -1023 | S164: 137 | T164: 1023 | U164: 143953.0525 | V164: 59.98043856 | X164: 21127.91665 | Y164: 8.803298606 | AA164: 926.49 | AB164: 130372.4962 | AC164: 54.32187343 | AE164: 21127.91665 | AF164: 8.803298606 | AH164: 1023 | AI164: 143953.0525 | AJ164: 59.98043856 | AL164: 0 | AM164: 0 | AO164: 96.51 | AP164: 13580.55631 | AQ164: 5.658565127 | AS164: 0 | AT164: 0 | AV164: 0 | AW164: 0 | AX164: 0 | AZ164: 21127.91665 | BA164: 8.803298606
B165: 138 | C165: 926.49 | D165: 111.86 | E165: 814.63 | F165: 88672.91 | G165: -926.49 | K165: 1023 | L165: 123.51 | M165: 899.49 | N165: 97909.6 | O165: -1023 | S165: 138 | T165: 1023 | U165: 144976.0525 | V165: 60.40668856 | X165: 21127.91665 | Y165: 8.803298606 | AA165: 926.49 | AB165: 131298.9862 | AC165: 54.70791093 | AE165: 21127.91665 | AF165: 8.803298606 | AH165: 1023 | AI165: 144976.0525 | AJ165: 60.40668856 | AL165: 0 | AM165: 0 | AO165: 96.51 | AP165: 13677.06631 | AQ165: 5.698777627 | AS165: 0 | AT165: 0 | AV165: 0 | AW165: 0 | AX165: 0 | AZ165: 21127.91665 | BA165: 8.803298606
B166: 139 | C166: 926.49 | D166: 110.84 | E166: 815.65 | F166: 87857.26 | G166: -926.49 | K166: 1023 | L166: 122.39 | M166: 900.61 | N166: 97008.99 | O166: -1023 | S166: 139 | T166: 1023 | U166: 145999.0525 | V166: 60.83293856 | X166: 21127.91665 | Y166: 8.803298606 | AA166: 926.49 | AB166: 132225.4762 | AC166: 55.09394843 | AE166: 21127.91665 | AF166: 8.803298606 | AH166: 1023 | AI166: 145999.0525 | AJ166: 60.83293856 | AL166: 0 | AM166: 0 | AO166: 96.51 | AP166: 13773.57631 | AQ166: 5.738990127 | AS166: 0 | AT166: 0 | AV166: 0 | AW166: 0 | AX166: 0 | AZ166: 21127.91665 | BA166: 8.803298606
B167: 140 | C167: 926.49 | D167: 109.82 | E167: 816.67 | F167: 87040.59 | G167: -926.49 | K167: 1023 | L167: 121.26 | M167: 901.74 | N167: 96107.25 | O167: -1023 | S167: 140 | T167: 1023 | U167: 147022.0525 | V167: 61.25918856 | X167: 21127.91665 | Y167: 8.803298606 | AA167: 926.49 | AB167: 133151.9662 | AC167: 55.47998593 | AE167: 21127.91665 | AF167: 8.803298606 | AH167: 1023 | AI167: 147022.0525 | AJ167: 61.25918856 | AL167: 0 | AM167: 0 | AO167: 96.51 | AP167: 13870.08631 | AQ167: 5.779202627 | AS167: 0 | AT167: 0 | AV167: 0 | AW167: 0 | AX167: 0 | AZ167: 21127.91665 | BA167: 8.803298606
B168: 141 | C168: 926.49 | D168: 108.8 | E168: 817.69 | F168: 86222.9 | G168: -926.49 | K168: 1023 | L168: 120.13 | M168: 902.87 | N168: 95204.38 | O168: -1023 | S168: 141 | T168: 1023 | U168: 148045.0525 | V168: 61.68543856 | X168: 21127.91665 | Y168: 8.803298606 | AA168: 926.49 | AB168: 134078.4562 | AC168: 55.86602343 | AE168: 21127.91665 | AF168: 8.803298606 | AH168: 1023 | AI168: 148045.0525 | AJ168: 61.68543856 | AL168: 0 | AM168: 0 | AO168: 96.51 | AP168: 13966.59631 | AQ168: 5.819415127 | AS168: 0 | AT168: 0 | AV168: 0 | AW168: 0 | AX168: 0 | AZ168: 21127.91665 | BA168: 8.803298606
B169: 142 | C169: 926.49 | D169: 107.78 | E169: 818.71 | F169: 85404.19 | G169: -926.49 | K169: 1023 | L169: 119.01 | M169: 903.99 | N169: 94300.39 | O169: -1023 | S169: 142 | T169: 1023 | U169: 149068.0525 | V169: 62.11168856 | X169: 21127.91665 | Y169: 8.803298606 | AA169: 926.49 | AB169: 135004.9462 | AC169: 56.25206093 | AE169: 21127.91665 | AF169: 8.803298606 | AH169: 1023 | AI169: 149068.0525 | AJ169: 62.11168856 | AL169: 0 | AM169: 0 | AO169: 96.51 | AP169: 14063.10631 | AQ169: 5.859627627 | AS169: 0 | AT169: 0 | AV169: 0 | AW169: 0 | AX169: 0 | AZ169: 21127.91665 | BA169: 8.803298606
B170: 143 | C170: 926.49 | D170: 106.76 | E170: 819.73 | F170: 84584.46 | G170: -926.49 | K170: 1023 | L170: 117.88 | M170: 905.12 | N170: 93395.27 | O170: -1023 | S170: 143 | T170: 1023 | U170: 150091.0525 | V170: 62.53793856 | X170: 21127.91665 | Y170: 8.803298606 | AA170: 926.49 | AB170: 135931.4362 | AC170: 56.63809843 | AE170: 21127.91665 | AF170: 8.803298606 | AH170: 1023 | AI170: 150091.0525 | AJ170: 62.53793856 | AL170: 0 | AM170: 0 | AO170: 96.51 | AP170: 14159.61631 | AQ170: 5.899840127 | AS170: 0 | AT170: 0 | AV170: 0 | AW170: 0 | AX170: 0 | AZ170: 21127.91665 | BA170: 8.803298606
B171: 144 | C171: 926.49 | D171: 105.73 | E171: 820.76 | F171: 83763.7 | G171: -926.49 | K171: 1023 | L171: 116.74 | M171: 906.26 | N171: 92489.01 | O171: -1023 | S171: 144 | T171: 1023 | U171: 151114.0525 | V171: 62.96418856 | W171: =SUM(V160:V171) -> 727.4377627 | X171: =X170+Z171 -> 21233.55624 | Y171: 8.803298606 | Z171: =SUM(Y160:Y171) -> 105.6395833 | AA171: 926.49 | AB171: 136857.9262 | AC171: 57.02413593 | AD171: =SUM(AC160:AC171) -> 658.8111562 | AE171: =AE170+AG171 -> 21233.55624 | AF171: 8.803298606 | AG171: =SUM(AF160:AF171) -> 105.6395833 | AH171: 1023 | AI171: 151114.0525 | AJ171: 62.96418856 | AK171: =SUM(AJ160:AJ171) -> 727.4377627 | AL171: =AL170+AN171 -> 0 | AM171: 0 | AN171: =SUM(AM160:AM171) -> 0 | AO171: 96.51 | AP171: 14256.12631 | AQ171: 5.940052627 | AR171: =SUM(AQ160:AQ171) -> 68.62660653 | AS171: =AS170+AU171 -> 0 | AT171: 0 | AU171: =SUM(AT160:AT171) -> 0 | AV171: 0 | AW171: 0 | AX171: 0 | AY171: =SUM(AX160:AX171) -> 0 | AZ171: =AZ170+BB171 -> 21233.55624 | BA171: 8.803298606 | BB171: =SUM(BA160:BA171) -> 105.6395833
B172: 145 | C172: 926.49 | D172: 104.7 | E172: 821.79 | F172: 82941.91 | G172: -926.49 | K172: 1023 | L172: 115.61 | M172: 907.39 | N172: 91581.62 | O172: -1023 | S172: 145 | T172: 1023 | U172: =U171+T172+W171 -> 152864.4903 | V172: 63.69353762 | X172: 21233.55624 | Y172: 8.847315099 | AA172: 926.49 | AB172: =AB171+AA172+AD171 -> 138443.2274 | AC172: 57.68467808 | AE172: 21233.55624 | AF172: 8.847315099 | AH172: 1023 | AI172: =AI171+AH172+AK171 -> 152864.4903 | AJ172: 63.69353762 | AL172: =AL171 -> 0 | AM172: 0 | AO172: 96.51 | AP172: =AP171+AO172+AR171 -> 14421.26291 | AQ172: 6.008859547 | AS172: 0 | AT172: 0 | AV172: 0 | AW172: =AW171+AV172+AY171 -> 0 | AX172: 0 | AZ172: =AZ171 -> 21233.55624 | BA172: 8.847315099
B173: 146 | C173: 926.49 | D173: 103.68 | E173: 822.81 | F173: 82119.1 | G173: -926.49 | K173: 1023 | L173: 114.48 | M173: 908.52 | N173: 90673.1 | O173: -1023 | S173: 146 | T173: 1023 | U173: 153887.4903 | V173: 64.11978762 | X173: 21233.55624 | Y173: 8.847315099 | AA173: 926.49 | AB173: 139369.7174 | AC173: 58.07071558 | AE173: 21233.55624 | AF173: 8.847315099 | AH173: 1023 | AI173: =AI172+AH173 -> 153887.4903 | AJ173: 64.11978762 | AL173: 0 | AM173: 0 | AO173: 96.51 | AP173: =AP172+AO173 -> 14517.77291 | AQ173: 6.049072047 | AS173: 0 | AT173: 0 | AV173: 0 | AW173: =AW172+AV173 -> 0 | AX173: 0 | AZ173: 21233.55624 | BA173: 8.847315099
B174: 147 | C174: 926.49 | D174: 102.65 | E174: 823.84 | F174: 81295.26 | G174: -926.49 | K174: 1023 | L174: 113.34 | M174: 909.66 | N174: 89763.44 | O174: -1023 | S174: 147 | T174: 1023 | U174: 154910.4903 | V174: 64.54603762 | X174: 21233.55624 | Y174: 8.847315099 | AA174: 926.49 | AB174: 140296.2074 | AC174: 58.45675308 | AE174: 21233.55624 | AF174: 8.847315099 | AH174: 1023 | AI174: 154910.4903 | AJ174: 64.54603762 | AL174: 0 | AM174: 0 | AO174: 96.51 | AP174: 14614.28291 | AQ174: 6.089284547 | AS174: 0 | AT174: 0 | AV174: 0 | AW174: 0 | AX174: 0 | AZ174: 21233.55624 | BA174: 8.847315099
B175: 148 | C175: 926.49 | D175: 101.62 | E175: 824.87 | F175: 80470.39 | G175: -926.49 | K175: 1023 | L175: 112.2 | M175: 910.8 | N175: 88852.64 | O175: -1023 | S175: 148 | T175: 1023 | U175: 155933.4903 | V175: 64.97228762 | X175: 21233.55624 | Y175: 8.847315099 | AA175: 926.49 | AB175: 141222.6974 | AC175: 58.84279058 | AE175: 21233.55624 | AF175: 8.847315099 | AH175: 1023 | AI175: 155933.4903 | AJ175: 64.97228762 | AL175: 0 | AM175: 0 | AO175: 96.51 | AP175: 14710.79291 | AQ175: 6.129497047 | AS175: 0 | AT175: 0 | AV175: 0 | AW175: 0 | AX175: 0 | AZ175: 21233.55624 | BA175: 8.847315099
B176: 149 | C176: 926.49 | D176: 100.59 | E176: 825.9 | F176: 79644.49 | G176: -926.49 | K176: 1023 | L176: 111.07 | M176: 911.93 | N176: 87940.71 | O176: -1023 | S176: 149 | T176: 1023 | U176: 156956.4903 | V176: 65.39853762 | X176: 21233.55624 | Y176: 8.847315099 | AA176: 926.49 | AB176: 142149.1874 | AC176: 59.22882808 | AE176: 21233.55624 | AF176: 8.847315099 | AH176: 1023 | AI176: 156956.4903 | AJ176: 65.39853762 | AL176: 0 | AM176: 0 | AO176: 96.51 | AP176: 14807.30291 | AQ176: 6.169709547 | AS176: 0 | AT176: 0 | AV176: 0 | AW176: 0 | AX176: 0 | AZ176: 21233.55624 | BA176: 8.847315099
B177: 150 | C177: 926.49 | D177: 99.56 | E177: 826.93 | F177: 78817.56 | G177: -926.49 | K177: 1023 | L177: 109.93 | M177: 913.07 | N177: 87027.64 | O177: -1023 | S177: 150 | T177: 1023 | U177: 157979.4903 | V177: 65.82478762 | X177: 21233.55624 | Y177: 8.847315099 | AA177: 926.49 | AB177: 143075.6774 | AC177: 59.61486558 | AE177: 21233.55624 | AF177: 8.847315099 | AH177: 1023 | AI177: 157979.4903 | AJ177: 65.82478762 | AL177: 0 | AM177: 0 | AO177: 96.51 | AP177: 14903.81291 | AQ177: 6.209922047 | AS177: 0 | AT177: 0 | AV177: 0 | AW177: 0 | AX177: 0 | AZ177: 21233.55624 | BA177: 8.847315099
B178: 151 | C178: 926.49 | D178: 98.52 | E178: 827.97 | F178: 77989.59 | G178: -926.49 | K178: 1023 | L178: 108.78 | M178: 914.22 | N178: 86113.42 | O178: -1023 | S178: 151 | T178: 1023 | U178: 159002.4903 | V178: 66.25103762 | X178: 21233.55624 | Y178: 8.847315099 | AA178: 926.49 | AB178: 144002.1674 | AC178: 60.00090308 | AE178: 21233.55624 | AF178: 8.847315099 | AH178: 1023 | AI178: 159002.4903 | AJ178: 66.25103762 | AL178: 0 | AM178: 0 | AO178: 96.51 | AP178: 15000.32291 | AQ178: 6.250134547 | AS178: 0 | AT178: 0 | AV178: 0 | AW178: 0 | AX178: 0 | AZ178: 21233.55624 | BA178: 8.847315099
B179: 152 | C179: 926.49 | D179: 97.49 | E179: 829 | F179: 77160.59 | G179: -926.49 | K179: 1023 | L179: 107.64 | M179: 915.36 | N179: 85198.06 | O179: -1023 | S179: 152 | T179: 1023 | U179: 160025.4903 | V179: 66.67728762 | X179: 21233.55624 | Y179: 8.847315099 | AA179: 926.49 | AB179: 144928.6574 | AC179: 60.38694058 | AE179: 21233.55624 | AF179: 8.847315099 | AH179: 1023 | AI179: 160025.4903 | AJ179: 66.67728762 | AL179: 0 | AM179: 0 | AO179: 96.51 | AP179: 15096.83291 | AQ179: 6.290347047 | AS179: 0 | AT179: 0 | AV179: 0 | AW179: 0 | AX179: 0 | AZ179: 21233.55624 | BA179: 8.847315099
B180: 153 | C180: 926.49 | D180: 96.45 | E180: 830.04 | F180: 76330.55 | G180: -926.49 | K180: 1023 | L180: 106.5 | M180: 916.5 | N180: 84281.56 | O180: -1023 | S180: 153 | T180: 1023 | U180: 161048.4903 | V180: 67.10353762 | X180: 21233.55624 | Y180: 8.847315099 | AA180: 926.49 | AB180: 145855.1474 | AC180: 60.77297808 | AE180: 21233.55624 | AF180: 8.847315099 | AH180: 1023 | AI180: 161048.4903 | AJ180: 67.10353762 | AL180: 0 | AM180: 0 | AO180: 96.51 | AP180: 15193.34291 | AQ180: 6.330559547 | AS180: 0 | AT180: 0 | AV180: 0 | AW180: 0 | AX180: 0 | AZ180: 21233.55624 | BA180: 8.847315099
B181: 154 | C181: 926.49 | D181: 95.41 | E181: 831.08 | F181: 75499.47 | G181: -926.49 | K181: 1023 | L181: 105.35 | M181: 917.65 | N181: 83363.91 | O181: -1023 | S181: 154 | T181: 1023 | U181: 162071.4903 | V181: 67.52978762 | X181: 21233.55624 | Y181: 8.847315099 | AA181: 926.49 | AB181: 146781.6374 | AC181: 61.15901558 | AE181: 21233.55624 | AF181: 8.847315099 | AH181: 1023 | AI181: 162071.4903 | AJ181: 67.52978762 | AL181: 0 | AM181: 0 | AO181: 96.51 | AP181: 15289.85291 | AQ181: 6.370772047 | AS181: 0 | AT181: 0 | AV181: 0 | AW181: 0 | AX181: 0 | AZ181: 21233.55624 | BA181: 8.847315099
B182: 155 | C182: 926.49 | D182: 94.37 | E182: 832.12 | F182: 74667.35 | G182: -926.49 | K182: 1023 | L182: 104.2 | M182: 918.8 | N182: 82445.11 | O182: -1023 | S182: 155 | T182: 1023 | U182: 163094.4903 | V182: 67.95603762 | X182: 21233.55624 | Y182: 8.847315099 | AA182: 926.49 | AB182: 147708.1274 | AC182: 61.54505308 | AE182: 21233.55624 | AF182: 8.847315099 | AH182: 1023 | AI182: 163094.4903 | AJ182: 67.95603762 | AL182: 0 | AM182: 0 | AO182: 96.51 | AP182: 15386.36291 | AQ182: 6.410984547 | AS182: 0 | AT182: 0 | AV182: 0 | AW182: 0 | AX182: 0 | AZ182: 21233.55624 | BA182: 8.847315099
B183: 156 | C183: 926.49 | D183: 93.33 | E183: 833.16 | F183: 73834.19 | G183: -926.49 | K183: 1023 | L183: 103.06 | M183: 919.94 | N183: 81525.17 | O183: -1023 | S183: 156 | T183: 1023 | U183: 164117.4903 | V183: 68.38228762 | W183: =SUM(V172:V183) -> 792.4549515 | X183: =X182+Z183 -> 21339.72402 | Y183: 8.847315099 | Z183: =SUM(Y172:Y183) -> 106.1677812 | AA183: 926.49 | AB183: 148634.6174 | AC183: 61.93109058 | AD183: =SUM(AC172:AC183) -> 717.6946119 | AE183: =AE182+AG183 -> 21339.72402 | AF183: 8.847315099 | AG183: =SUM(AF172:AF183) -> 106.1677812 | AH183: 1023 | AI183: 164117.4903 | AJ183: 68.38228762 | AK183: =SUM(AJ172:AJ183) -> 792.4549515 | AL183: =AL182+AN183 -> 0 | AM183: 0 | AN183: =SUM(AM172:AM183) -> 0 | AO183: 96.51 | AP183: 15482.87291 | AQ183: 6.451197047 | AR183: =SUM(AQ172:AQ183) -> 74.76033956 | AS183: =AS182+AU183 -> 0 | AT183: 0 | AU183: =SUM(AT172:AT183) -> 0 | AV183: 0 | AW183: 0 | AX183: 0 | AY183: =SUM(AX172:AX183) -> 0 | AZ183: =AZ182+BB183 -> 21339.72402 | BA183: 8.847315099 | BB183: =SUM(BA172:BA183) -> 106.1677812
B184: 157 | C184: 926.49 | D184: 92.29 | E184: 834.2 | F184: 72999.99 | G184: -926.49 | K184: 1023 | L184: 101.91 | M184: 921.09 | N184: 80604.08 | O184: -1023 | S184: 157 | T184: 1023 | U184: =U183+T184+W183 -> 165932.9453 | V184: 69.13872719 | X184: 21339.72402 | Y184: 8.891551674 | AA184: 926.49 | AB184: =AB183+AA184+AD183 -> 150278.802 | AC184: 62.6161675 | AE184: 21339.72402 | AF184: 8.891551674 | AH184: 1023 | AI184: =AI183+AH184+AK183 -> 165932.9453 | AJ184: 69.13872719 | AL184: =AL183 -> 0 | AM184: 0 | AO184: 96.51 | AP184: =AP183+AO184+AR183 -> 15654.14325 | AQ184: 6.522559688 | AS184: 0 | AT184: 0 | AV184: 0 | AW184: =AW183+AV184+AY183 -> 0 | AX184: 0 | AZ184: =AZ183 -> 21339.72402 | BA184: 8.891551674
B185: 158 | C185: 926.49 | D185: 91.25 | E185: 835.24 | F185: 72164.75 | G185: -926.49 | K185: 1023 | L185: 100.76 | M185: 922.24 | N185: 79681.84 | O185: -1023 | S185: 158 | T185: 1023 | U185: 166955.9453 | V185: 69.56497719 | X185: 21339.72402 | Y185: 8.891551674 | AA185: 926.49 | AB185: 151205.292 | AC185: 63.002205 | AE185: 21339.72402 | AF185: 8.891551674 | AH185: 1023 | AI185: =AI184+AH185 -> 166955.9453 | AJ185: 69.56497719 | AL185: 0 | AM185: 0 | AO185: 96.51 | AP185: =AP184+AO185 -> 15750.65325 | AQ185: 6.562772188 | AS185: 0 | AT185: 0 | AV185: 0 | AW185: =AW184+AV185 -> 0 | AX185: 0 | AZ185: 21339.72402 | BA185: 8.891551674
B186: 159 | C186: 926.49 | D186: 90.21 | E186: 836.28 | F186: 71328.47 | G186: -926.49 | K186: 1023 | L186: 99.6 | M186: 923.4 | N186: 78758.44 | O186: -1023 | S186: 159 | T186: 1023 | U186: 167978.9453 | V186: 69.99122719 | X186: 21339.72402 | Y186: 8.891551674 | AA186: 926.49 | AB186: 152131.782 | AC186: 63.3882425 | AE186: 21339.72402 | AF186: 8.891551674 | AH186: 1023 | AI186: 167978.9453 | AJ186: 69.99122719 | AL186: 0 | AM186: 0 | AO186: 96.51 | AP186: 15847.16325 | AQ186: 6.602984688 | AS186: 0 | AT186: 0 | AV186: 0 | AW186: 0 | AX186: 0 | AZ186: 21339.72402 | BA186: 8.891551674
B187: 160 | C187: 926.49 | D187: 89.16 | E187: 837.33 | F187: 70491.14 | G187: -926.49 | K187: 1023 | L187: 98.45 | M187: 924.55 | N187: 77833.89 | O187: -1023 | S187: 160 | T187: 1023 | U187: 169001.9453 | V187: 70.41747719 | X187: 21339.72402 | Y187: 8.891551674 | AA187: 926.49 | AB187: 153058.272 | AC187: 63.77428 | AE187: 21339.72402 | AF187: 8.891551674 | AH187: 1023 | AI187: 169001.9453 | AJ187: 70.41747719 | AL187: 0 | AM187: 0 | AO187: 96.51 | AP187: 15943.67325 | AQ187: 6.643197188 | AS187: 0 | AT187: 0 | AV187: 0 | AW187: 0 | AX187: 0 | AZ187: 21339.72402 | BA187: 8.891551674
B188: 161 | C188: 926.49 | D188: 88.11 | E188: 838.38 | F188: 69652.76 | G188: -926.49 | K188: 1023 | L188: 97.29 | M188: 925.71 | N188: 76908.18 | O188: -1023 | S188: 161 | T188: 1023 | U188: 170024.9453 | V188: 70.84372719 | X188: 21339.72402 | Y188: 8.891551674 | AA188: 926.49 | AB188: 153984.762 | AC188: 64.1603175 | AE188: 21339.72402 | AF188: 8.891551674 | AH188: 1023 | AI188: 170024.9453 | AJ188: 70.84372719 | AL188: 0 | AM188: 0 | AO188: 96.51 | AP188: 16040.18325 | AQ188: 6.683409688 | AS188: 0 | AT188: 0 | AV188: 0 | AW188: 0 | AX188: 0 | AZ188: 21339.72402 | BA188: 8.891551674
B189: 162 | C189: 926.49 | D189: 87.07 | E189: 839.42 | F189: 68813.34 | G189: -926.49 | K189: 1023 | L189: 96.14 | M189: 926.86 | N189: 75981.32 | O189: -1023 | S189: 162 | T189: 1023 | U189: 171047.9453 | V189: 71.26997719 | X189: 21339.72402 | Y189: 8.891551674 | AA189: 926.49 | AB189: 154911.252 | AC189: 64.546355 | AE189: 21339.72402 | AF189: 8.891551674 | AH189: 1023 | AI189: 171047.9453 | AJ189: 71.26997719 | AL189: 0 | AM189: 0 | AO189: 96.51 | AP189: 16136.69325 | AQ189: 6.723622188 | AS189: 0 | AT189: 0 | AV189: 0 | AW189: 0 | AX189: 0 | AZ189: 21339.72402 | BA189: 8.891551674
B190: 163 | C190: 926.49 | D190: 86.02 | E190: 840.47 | F190: 67972.87 | G190: -926.49 | K190: 1023 | L190: 94.98 | M190: 928.02 | N190: 75053.3 | O190: -1023 | S190: 163 | T190: 1023 | U190: 172070.9453 | V190: 71.69622719 | X190: 21339.72402 | Y190: 8.891551674 | AA190: 926.49 | AB190: 155837.742 | AC190: 64.9323925 | AE190: 21339.72402 | AF190: 8.891551674 | AH190: 1023 | AI190: 172070.9453 | AJ190: 71.69622719 | AL190: 0 | AM190: 0 | AO190: 96.51 | AP190: 16233.20325 | AQ190: 6.763834688 | AS190: 0 | AT190: 0 | AV190: 0 | AW190: 0 | AX190: 0 | AZ190: 21339.72402 | BA190: 8.891551674
B191: 164 | C191: 926.49 | D191: 84.97 | E191: 841.52 | F191: 67131.35 | G191: -926.49 | K191: 1023 | L191: 93.82 | M191: 929.18 | N191: 74124.12 | O191: -1023 | S191: 164 | T191: 1023 | U191: 173093.9453 | V191: 72.12247719 | X191: 21339.72402 | Y191: 8.891551674 | AA191: 926.49 | AB191: 156764.232 | AC191: 65.31843 | AE191: 21339.72402 | AF191: 8.891551674 | AH191: 1023 | AI191: 173093.9453 | AJ191: 72.12247719 | AL191: 0 | AM191: 0 | AO191: 96.51 | AP191: 16329.71325 | AQ191: 6.804047188 | AS191: 0 | AT191: 0 | AV191: 0 | AW191: 0 | AX191: 0 | AZ191: 21339.72402 | BA191: 8.891551674
B192: 165 | C192: 926.49 | D192: 83.91 | E192: 842.58 | F192: 66288.77 | G192: -926.49 | K192: 1023 | L192: 92.66 | M192: 930.34 | N192: 73193.78 | O192: -1023 | S192: 165 | T192: 1023 | U192: 174116.9453 | V192: 72.54872719 | X192: 21339.72402 | Y192: 8.891551674 | AA192: 926.49 | AB192: 157690.722 | AC192: 65.7044675 | AE192: 21339.72402 | AF192: 8.891551674 | AH192: 1023 | AI192: 174116.9453 | AJ192: 72.54872719 | AL192: 0 | AM192: 0 | AO192: 96.51 | AP192: 16426.22325 | AQ192: 6.844259688 | AS192: 0 | AT192: 0 | AV192: 0 | AW192: 0 | AX192: 0 | AZ192: 21339.72402 | BA192: 8.891551674
B193: 166 | C193: 926.49 | D193: 82.86 | E193: 843.63 | F193: 65445.14 | G193: -926.49 | K193: 1023 | L193: 91.49 | M193: 931.51 | N193: 72262.27 | O193: -1023 | S193: 166 | T193: 1023 | U193: 175139.9453 | V193: 72.97497719 | X193: 21339.72402 | Y193: 8.891551674 | AA193: 926.49 | AB193: 158617.212 | AC193: 66.090505 | AE193: 21339.72402 | AF193: 8.891551674 | AH193: 1023 | AI193: 175139.9453 | AJ193: 72.97497719 | AL193: 0 | AM193: 0 | AO193: 96.51 | AP193: 16522.73325 | AQ193: 6.884472188 | AS193: 0 | AT193: 0 | AV193: 0 | AW193: 0 | AX193: 0 | AZ193: 21339.72402 | BA193: 8.891551674
B194: 167 | C194: 926.49 | D194: 81.81 | E194: 844.68 | F194: 64600.46 | G194: -926.49 | K194: 1023 | L194: 90.33 | M194: 932.67 | N194: 71329.6 | O194: -1023 | S194: 167 | T194: 1023 | U194: 176162.9453 | V194: 73.40122719 | X194: 21339.72402 | Y194: 8.891551674 | AA194: 926.49 | AB194: 159543.702 | AC194: 66.4765425 | AE194: 21339.72402 | AF194: 8.891551674 | AH194: 1023 | AI194: 176162.9453 | AJ194: 73.40122719 | AL194: 0 | AM194: 0 | AO194: 96.51 | AP194: 16619.24325 | AQ194: 6.924684688 | AS194: 0 | AT194: 0 | AV194: 0 | AW194: 0 | AX194: 0 | AZ194: 21339.72402 | BA194: 8.891551674
B195: 168 | C195: 926.49 | D195: 80.75 | E195: 845.74 | F195: 63754.72 | G195: -926.49 | K195: 1023 | L195: 89.16 | M195: 933.84 | N195: 70395.76 | O195: -1023 | S195: 168 | T195: 1023 | U195: 177185.9453 | V195: 73.82747719 | W195: =SUM(V184:V195) -> 857.7972263 | X195: =X194+Z195 -> 21446.42264 | Y195: 8.891551674 | Z195: =SUM(Y184:Y195) -> 106.6986201 | AA195: 926.49 | AB195: 160470.192 | AC195: 66.86258 | AD195: =SUM(AC184:AC195) -> 776.872485 | AE195: =AE194+AG195 -> 21446.42264 | AF195: 8.891551674 | AG195: =SUM(AF184:AF195) -> 106.6986201 | AH195: 1023 | AI195: 177185.9453 | AJ195: 73.82747719 | AK195: =SUM(AJ184:AJ195) -> 857.7972263 | AL195: =AL194+AN195 -> 0 | AM195: 0 | AN195: =SUM(AM184:AM195) -> 0 | AO195: 96.51 | AP195: 16715.75325 | AQ195: 6.964897188 | AR195: =SUM(AQ184:AQ195) -> 80.92474126 | AS195: =AS194+AU195 -> 0 | AT195: 0 | AU195: =SUM(AT184:AT195) -> 0 | AV195: 0 | AW195: 0 | AX195: 0 | AY195: =SUM(AX184:AX195) -> 0 | AZ195: =AZ194+BB195 -> 21446.42264 | BA195: 8.891551674 | BB195: =SUM(BA184:BA195) -> 106.6986201
B196: 169 | C196: 926.49 | D196: 79.69 | E196: 846.8 | F196: 62907.92 | G196: -926.49 | K196: 1023 | L196: 87.99 | M196: 935.01 | N196: 69460.75 | O196: -1023 | S196: 169 | T196: 1023 | U196: =U195+T196+W195 -> 179066.7425 | V196: 74.6111427 | X196: 21446.42264 | Y196: 8.936009433 | AA196: 926.49 | AB196: =AB195+AA196+AD195 -> 162173.5545 | AC196: 67.57231437 | AE196: 21446.42264 | AF196: 8.936009433 | AH196: 1023 | AI196: =AI195+AH196+AK195 -> 179066.7425 | AJ196: 74.6111427 | AL196: =AL195 -> 0 | AM196: 0 | AO196: 96.51 | AP196: =AP195+AO196+AR195 -> 16893.18799 | AQ196: 7.03882833 | AS196: 0 | AT196: 0 | AV196: 0 | AW196: =AW195+AV196+AY195 -> 0 | AX196: 0 | AZ196: =AZ195 -> 21446.42264 | BA196: 8.936009433
B197: 170 | C197: 926.49 | D197: 78.63 | E197: 847.86 | F197: 62060.06 | G197: -926.49 | K197: 1023 | L197: 86.83 | M197: 936.17 | N197: 68524.58 | O197: -1023 | S197: 170 | T197: 1023 | U197: 180089.7425 | V197: 75.0373927 | X197: 21446.42264 | Y197: 8.936009433 | AA197: 926.49 | AB197: 163100.0445 | AC197: 67.95835187 | AE197: 21446.42264 | AF197: 8.936009433 | AH197: 1023 | AI197: =AI196+AH197 -> 180089.7425 | AJ197: 75.0373927 | AL197: 0 | AM197: 0 | AO197: 96.51 | AP197: =AP196+AO197 -> 16989.69799 | AQ197: 7.07904083 | AS197: 0 | AT197: 0 | AV197: 0 | AW197: =AW196+AV197 -> 0 | AX197: 0 | AZ197: 21446.42264 | BA197: 8.936009433
B198: 171 | C198: 926.49 | D198: 77.58 | E198: 848.91 | F198: 61211.15 | G198: -926.49 | K198: 1023 | L198: 85.66 | M198: 937.34 | N198: 67587.24 | O198: -1023 | S198: 171 | T198: 1023 | U198: 181112.7425 | V198: 75.4636427 | X198: 21446.42264 | Y198: 8.936009433 | AA198: 926.49 | AB198: 164026.5345 | AC198: 68.34438937 | AE198: 21446.42264 | AF198: 8.936009433 | AH198: 1023 | AI198: 181112.7425 | AJ198: 75.4636427 | AL198: 0 | AM198: 0 | AO198: 96.51 | AP198: 17086.20799 | AQ198: 7.11925333 | AS198: 0 | AT198: 0 | AV198: 0 | AW198: 0 | AX198: 0 | AZ198: 21446.42264 | BA198: 8.936009433
B199: 172 | C199: 926.49 | D199: 76.51 | E199: 849.98 | F199: 60361.17 | G199: -926.49 | K199: 1023 | L199: 84.48 | M199: 938.52 | N199: 66648.72 | O199: -1023 | S199: 172 | T199: 1023 | U199: 182135.7425 | V199: 75.8898927 | X199: 21446.42264 | Y199: 8.936009433 | AA199: 926.49 | AB199: 164953.0245 | AC199: 68.73042687 | AE199: 21446.42264 | AF199: 8.936009433 | AH199: 1023 | AI199: 182135.7425 | AJ199: 75.8898927 | AL199: 0 | AM199: 0 | AO199: 96.51 | AP199: 17182.71799 | AQ199: 7.15946583 | AS199: 0 | AT199: 0 | AV199: 0 | AW199: 0 | AX199: 0 | AZ199: 21446.42264 | BA199: 8.936009433
B200: 173 | C200: 926.49 | D200: 75.45 | E200: 851.04 | F200: 59510.13 | G200: -926.49 | K200: 1023 | L200: 83.31 | M200: 939.69 | N200: 65709.03 | O200: -1023 | S200: 173 | T200: 1023 | U200: 183158.7425 | V200: 76.3161427 | X200: 21446.42264 | Y200: 8.936009433 | AA200: 926.49 | AB200: 165879.5145 | AC200: 69.11646437 | AE200: 21446.42264 | AF200: 8.936009433 | AH200: 1023 | AI200: 183158.7425 | AJ200: 76.3161427 | AL200: 0 | AM200: 0 | AO200: 96.51 | AP200: 17279.22799 | AQ200: 7.19967833 | AS200: 0 | AT200: 0 | AV200: 0 | AW200: 0 | AX200: 0 | AZ200: 21446.42264 | BA200: 8.936009433
B201: 174 | C201: 926.49 | D201: 74.39 | E201: 852.1 | F201: 58658.03 | G201: -926.49 | K201: 1023 | L201: 82.14 | M201: 940.86 | N201: 64768.17 | O201: -1023 | S201: 174 | T201: 1023 | U201: 184181.7425 | V201: 76.7423927 | X201: 21446.42264 | Y201: 8.936009433 | AA201: 926.49 | AB201: 166806.0045 | AC201: 69.50250187 | AE201: 21446.42264 | AF201: 8.936009433 | AH201: 1023 | AI201: 184181.7425 | AJ201: 76.7423927 | AL201: 0 | AM201: 0 | AO201: 96.51 | AP201: 17375.73799 | AQ201: 7.23989083 | AS201: 0 | AT201: 0 | AV201: 0 | AW201: 0 | AX201: 0 | AZ201: 21446.42264 | BA201: 8.936009433
B202: 175 | C202: 926.49 | D202: 73.32 | E202: 853.17 | F202: 57804.86 | G202: -926.49 | K202: 1023 | L202: 80.96 | M202: 942.04 | N202: 63826.13 | O202: -1023 | S202: 175 | T202: 1023 | U202: 185204.7425 | V202: 77.1686427 | X202: 21446.42264 | Y202: 8.936009433 | AA202: 926.49 | AB202: 167732.4945 | AC202: 69.88853937 | AE202: 21446.42264 | AF202: 8.936009433 | AH202: 1023 | AI202: 185204.7425 | AJ202: 77.1686427 | AL202: 0 | AM202: 0 | AO202: 96.51 | AP202: 17472.24799 | AQ202: 7.28010333 | AS202: 0 | AT202: 0 | AV202: 0 | AW202: 0 | AX202: 0 | AZ202: 21446.42264 | BA202: 8.936009433
... 70 more rows

Sheet TAEG - Impacts durées
B2: Comparer deux projets où seule la durée des prêts diffère ce qui entraine une différence sur les seuls montants des échéances
B3: 1er cas d'école - Incidence apport personnel | F3: Avertissement | I3: Comparaisons détaillées - Coût Crédit Corrigé - Valeur patrimoine total - Contrôle cohérence
B4: Données générales | F4: Il s'agit d'un second cas d'école où, afin de ne mesurer que le seul impact de la différence des durées, il est volontairement supposé que toutes les autres caractéristiques des prêts sont strictement identiques ce qui - en réalité - n'est pas le cas (Taux + Frais dossier + frais garantie + Courtage + parts sociales....différents) | I4: Différentes hypothèses à comparer | M4: Pas d'investissement physique = Investissement financier seulement | N4: Projet avec Banque "A" | O4: Projet avec Banque "B" | P4: Commentaires
B5: Construction | E5: 200000 | H5: Seules les cellules en mauve colonne ''E'' peuvent être modifiées | I5: Ce que vous avez réellement payé | J5: Intérêts réellement payés | M5: 0 | N5: =D268 -> 24875.47 | O5: =L268 -> 33519.01 | P5: Critère non pertinent
B6: Frais divers | E6: 12000 | J6: Frais payés | M6: 0 | N6: =E6 -> 12000 | O6: =E6 -> 12000
B7: Total projet | E7: =SUM(E5:E6) -> 212000 | J7: => Coût Crédit Simple | M7: =SUM(M5:M6) -> 0 | N7: =SUM(N5:N6) -> 36875.47 | O7: =SUM(O5:O6) -> 45519.01
B8: Taux de rémunération épargne | E8: 0.005 | I8: C'est le coût réel dans chaque cas de figure | J8: Manque à gagner en intérêts sur apport investi sur durée la plus longue | M8: 0 | N8: =AF268 -> 0 | O8: =AM268 -> 0 | P8: Critère à privilégier au même titre que la Valeur Patimoine
B9: Taux des prêts | E9: 0.015 | J9: Manque à gagner en intérêts sur échéances payées sur durée la plus longue | M9: 0 | N9: =AC268 -> 15349.65349 | O9: =AJ268 -> 12717.12384
B10: Durée du prêt en mois Banque "A" | E10: 180 | J10: => Coût Crédit Corrigé | M10: =SUM(M8:M9) -> 0 | N10: =N7+N8+N9 -> 52225.12349 | O10: =O7+O8+O9 -> 58236.13384
B11: Durée du prêt en mois Banque "B" | E11: 240 | I11: Valeur du parimoine total au terme de la durée du prêt initial le plus long | J11: Valeur acquise par épargne résiduelle après apport au terme durée la plus longue | M11: =X268 -> 0 | N11: =AS268 -> 0 | O11: =AZ268 -> 0 | P11: Critère à prévilégier au même titre que le Coût du Crédit Corrigé
B12: Apport exigé par Banques "A" et "B" | E12: 0 | J12: Valeur acquise par résiduel sur capacité endettement au terme durée la plus longue | M12: =U268 -> 314388.918 | N12: =AP268 -> 62163.79448 | O12: =AW268 -> 56152.78413
B13: Crédit Banque "A" | E13: =$E$7-E12 -> 212000 | J13: Valeur patrimoine financier | M13: =SUM(M11:M12) -> 314388.918 | N13: =SUM(N11:N12) -> 62163.79448 | O13: 56152.78413
B14: Crédit Banque "B" | E14: =$E$7-E12 -> 212000 | J14: Valeur patrimoine physique sans plus value ni moins value | M14: 0 | N14: =$E$5 -> 200000 | O14: =N14 -> 200000
B15: Apport personnel maximum | E15: =E12 -> 0 | J15: => Valeur patrimoine total | M15: =SUM(M13:M14) -> 314388.918 | N15: =SUM(N13:N14) -> 262163.7945 | O15: =SUM(O13:O14) -> 256152.7841
B16: Capacité de remboursement maxi | E16: =ROUND(-PMT($E$9/12,$E$10,MAX(E13,E14),0,0),2) -> 1315.98 | F16: Egale capacité d'épargne | H16: =E16 -> 1315.98 | I16: Coût Crédit Corrigé au terme de la durée du prêt le plus long | M16: =M10 -> 0 | N16: =N10 -> 52225.12349 | O16: =O10 -> 58236.13384 | P16: Contrôle de cohérence
B17: Tant pour le calcul du ''Coût du Crédit Corrigé'' que de la ''Valeur du Patrimoine Total", en cellule "E8"ci-dessus, il vous faut renseigner le taux de rémunération de votre épargne. Par défaut c'est la taux du ''livret A'' qui est prévu. Mais en cliquant sur le bouton ''CALCUL'' ci-contre vous pouvez obtenir le ''Taux Pivot de Rémunérartion de l'Epargne". => ''Point Mort'' où les deux offres sont financièrement identiques | H17: Taux pivot de rémunération de l'épargne | I17: Valeur patrimoine total au terme de la durée du prêt le plus long | M17: =M15 -> 314388.918 | N17: =N15 -> 262163.7945 | O17: =O15 -> 256152.7841
I18: Contrôle de cohérence | M18: =SUM(M16:M17) -> 314388.918 | N18: =SUM(N16:N17) -> 314388.918 | O18: =SUM(O16:O17) -> 314388.918
I19: Meilleure offre de prêt | M19: 0 | N19: =IF(AND(E8=H20,E8<>M20),"Banque ''A''",IF(AND(M19<>1,N17=P19),"Banque ''A''","")) -> Banque ''A'' | O19: =IF(AND(E8=H20,E8<>H20),"Banque ''B''",IF(AND(M19<>1,O17=P19),"Banque ''B''","")) ->  | P19: =MAX(N17,O17) -> 262163.7945
H20: 0.01510357704 | I20: Taux Effectif Global (T.A.E.G.) | M20: 0.005 | N20: =G26 -> 0.02336927076 | O20: =O26 -> 0.02138844906 | P20: =MIN(N20,O20) -> 0.02138844906
I21: Rappel de la durée prévue dans chaque banque | N21: =E10 -> 180 | O21: =E11 -> 240
H22: =N16-O16 -> -6011.010344 | I22: =IF(AND(E8=H20,E8<>M20),"Au taux pivôt de rémunération de l'épargne les deux offres sont financièrement équivalentes - Ignorez le T.A.E.G",IF(M19=1,"Au taux pivôt de rémunération de l'épargne les ''Coûts du Crédit Corrigé'' et les ''Valeurs du patrimoine'' sont identiques",IF(OR(AND(N17=P19,N20>O20),AND(O17=P19,O20>N20)),"Au taux de rémunération de l'épargne indiqué, le TAEG le plus faible est incohérent avec le Coût du Crédit Corrigé et la Valeur du Patrimoine et oriente vers un mauvais choix","Au taux de rémunération de l'épargne indiqué, le TAEG le plus faible est cohérent avec le Coût du Crédit Corrigé et la Valeur du Patrimoine et oriente vers le bon choix"))) -> Au taux de rémunération de l'épargne indiqué, le TAEG le plus faible est incohérent avec le Coût du Crédit Corrigé et la Valeur du Patrimoine et oriente vers un mauvais choix
B24: Banque "A" | H24: Durée | I24: =E10 -> 180 | K24: Banque "B" | P24: Durée | Q24: =E11 -> 240 | S24: Pas d'investissement physique - Seulement investissement financier | AA24: Manques à gagner en intérêts Banque "A" | AH24: Manques à gagner en intérêts Banque "B" | AO24: Epargne résiduelle Banque "A" | AV24: Epargne résiduelle Banque "B"
B25: Rang | C25: Échéance | D25: Intérêts | E25: Capital amorti | F25: Capital dû | G25: TAEG | H25: Coût crédit simple | I25: Coût crédit corrigé | K25: Échéance | L25: Intérêts | M25: Capital amorti | N25: Capital dû | O25: TAEG | P25: Coût crédit simple | Q25: Coût crédit corrigé | S25: Placement capacité épargne/remboursement | X25: Placement apport personnel maxi | AA25: Manque à gagner en intérêts sur échéances payées | AE25: Manque gagner en intérêts sur apport | AH25: Manque à gagner en intérêts sur échéances payées | AL25: Manque gagner en intérêts sur apport | AO25: Placement disponible sur échéances | AS25: Placement disponible sur apport | AV25: Placement disponible sur échéances | AZ25: Placement disponible sur apport
G26: =((1+G268)^(12))-1 -> 0.02336927076 | H26: =D268+$E$6 -> 36875.47 | I26: =D268+E6+AC268+AF268 -> 52225.12349 | O26: =((1+O268)^(12))-1 -> 0.02138844906 | P26: =L268+$E$6 -> 45519.01 | Q26: =L268+E6+AJ268+AM268 -> 58236.13384
B27: 0 | F27: =E13 -> 212000 | G27: =F27-$E$6 -> 200000 | N27: =E14 -> 212000 | O27: =N27-$E$6 -> 200000 | S27: 0 | X27: =$E$15 -> 0 | AE27: =E12 -> 0 | AL27: =$E$12 -> 0 | AS27: =$E$15-$E$12 -> 0 | AZ27: =$E$15-$E$12 -> 0
B28: 1 | C28: =ROUND(-PMT($E$9/12,$E$10,$E$13,0,0),2) -> 1315.98 | D28: =ROUND(F27*$E$9/12,2) -> 265 | E28: =C28-D28 -> 1050.98 | F28: =F27-E28 -> 210949.02 | G28: =-C28 -> -1315.98 | K28: =ROUND(-PMT($E$9/12,$E$11,$E$14,0,0),2) -> 1023 | L28: =ROUND(N27*$E$9/12,2) -> 265 | M28: =K28-L28 -> 758 | N28: =N27-M28 -> 211242 | O28: =-K28 -> -1023 | S28: 1 | T28: =IF(C28>K28,C28,K28) -> 1315.98 | U28: =T28 -> 1315.98 | V28: =U28*$E$8/12 -> 0.548325 | X28: =X27 -> 0 | Y28: =X27*$E$8/12 -> 0 | AA28: =C28 -> 1315.98 | AB28: =AA28 -> 1315.98 | AC28: =AB28*$E$8/12 -> 0.548325 | AE28: =AE27 -> 0 | AF28: =AE27*$E$8/12 -> 0 | AH28: =K28 -> 1023 | AI28: =AH28 -> 1023 | AJ28: =AI28*$E$8/12 -> 0.42625 | AL28: =AL27 -> 0 | AM28: =AL27*$E$8/12 -> 0 | AO28: =T28-C28 -> 0 | AP28: =AO28 -> 0 | AQ28: =AP28*$E$8/12 -> 0 | AS28: =AS27 -> 0 | AT28: =AS27*$E$8/12 -> 0 | AV28: =T28-K28 -> 292.98 | AW28: =AV28 -> 292.98 | AX28: =AW28*$E$8/12 -> 0.122075 | AZ28: =AZ27 -> 0 | BA28: =AZ27*$E$8/12 -> 0
B29: 2 | C29: =ROUND(-PMT($E$9/12,$E$10,$E$13,0,0),2) -> 1315.98 | D29: 263.69 | E29: =C29-D29 -> 1052.29 | F29: =F28-E29 -> 209896.73 | G29: =-C29 -> -1315.98 | K29: =ROUND(-PMT($E$9/12,$E$11,$E$14,0,0),2) -> 1023 | L29: 264.05 | M29: =K29-L29 -> 758.95 | N29: =N28-M29 -> 210483.05 | O29: =-K29 -> -1023 | S29: 2 | T29: =IF(C29>K29,C29,K29) -> 1315.98 | U29: =U28+T29 -> 2631.96 | V29: 1.09665 | X29: =X28 -> 0 | Y29: 0 | AA29: =C29 -> 1315.98 | AB29: =AB28+AA29 -> 2631.96 | AC29: 1.09665 | AE29: =AE28 -> 0 | AF29: 0 | AH29: =K29 -> 1023 | AI29: =AI28+AH29 -> 2046 | AJ29: 0.8525 | AL29: =AL28 -> 0 | AM29: 0 | AO29: =T29-C29 -> 0 | AP29: =AP28+AO29 -> 0 | AQ29: 0 | AS29: =AS28 -> 0 | AT29: 0 | AV29: =T29-K29 -> 292.98 | AW29: =AW28+AV29 -> 585.96 | AX29: 0.24415 | AZ29: =AZ28 -> 0 | BA29: 0
B30: 3 | C30: 1315.98 | D30: 262.37 | E30: 1053.61 | F30: 208843.12 | G30: -1315.98 | K30: 1023 | L30: 263.1 | M30: 759.9 | N30: 209723.15 | O30: -1023 | S30: 3 | T30: 1315.98 | U30: =U29+T30 -> 3947.94 | V30: 1.644975 | X30: 0 | Y30: 0 | AA30: =C30 -> 1315.98 | AB30: =AB29+AA30 -> 3947.94 | AC30: 1.644975 | AE30: 0 | AF30: 0 | AH30: 1023 | AI30: =AI29+AH30 -> 3069 | AJ30: 1.27875 | AL30: 0 | AM30: 0 | AO30: 0 | AP30: =AP29+AO30 -> 0 | AQ30: 0 | AS30: 0 | AT30: 0 | AV30: 292.98 | AW30: =AW29+AV30 -> 878.94 | AX30: 0.366225 | AZ30: 0 | BA30: 0
B31: 4 | C31: 1315.98 | D31: 261.05 | E31: 1054.93 | F31: 207788.19 | G31: -1315.98 | K31: 1023 | L31: 262.15 | M31: 760.85 | N31: 208962.3 | O31: -1023 | S31: 4 | T31: 1315.98 | U31: 5263.92 | V31: 2.1933 | X31: 0 | Y31: 0 | AA31: 1315.98 | AB31: 5263.92 | AC31: 2.1933 | AE31: 0 | AF31: 0 | AH31: 1023 | AI31: 4092 | AJ31: 1.705 | AL31: 0 | AM31: 0 | AO31: 0 | AP31: 0 | AQ31: 0 | AS31: 0 | AT31: 0 | AV31: 292.98 | AW31: 1171.92 | AX31: 0.4883 | AZ31: 0 | BA31: 0
B32: 5 | C32: 1315.98 | D32: 259.74 | E32: 1056.24 | F32: 206731.95 | G32: -1315.98 | K32: 1023 | L32: 261.2 | M32: 761.8 | N32: 208200.5 | O32: -1023 | S32: 5 | T32: 1315.98 | U32: 6579.9 | V32: 2.741625 | X32: 0 | Y32: 0 | AA32: 1315.98 | AB32: 6579.9 | AC32: 2.741625 | AE32: 0 | AF32: 0 | AH32: 1023 | AI32: 5115 | AJ32: 2.13125 | AL32: 0 | AM32: 0 | AO32: 0 | AP32: 0 | AQ32: 0 | AS32: 0 | AT32: 0 | AV32: 292.98 | AW32: 1464.9 | AX32: 0.610375 | AZ32: 0 | BA32: 0
B33: 6 | C33: 1315.98 | D33: 258.41 | E33: 1057.57 | F33: 205674.38 | G33: -1315.98 | K33: 1023 | L33: 260.25 | M33: 762.75 | N33: 207437.75 | O33: -1023 | S33: 6 | T33: 1315.98 | U33: 7895.88 | V33: 3.28995 | X33: 0 | Y33: 0 | AA33: 1315.98 | AB33: 7895.88 | AC33: 3.28995 | AE33: 0 | AF33: 0 | AH33: 1023 | AI33: 6138 | AJ33: 2.5575 | AL33: 0 | AM33: 0 | AO33: 0 | AP33: 0 | AQ33: 0 | AS33: 0 | AT33: 0 | AV33: 292.98 | AW33: 1757.88 | AX33: 0.73245 | AZ33: 0 | BA33: 0
B34: 7 | C34: 1315.98 | D34: 257.09 | E34: 1058.89 | F34: 204615.49 | G34: -1315.98 | K34: 1023 | L34: 259.3 | M34: 763.7 | N34: 206674.05 | O34: -1023 | S34: 7 | T34: 1315.98 | U34: 9211.86 | V34: 3.838275 | X34: 0 | Y34: 0 | AA34: 1315.98 | AB34: 9211.86 | AC34: 3.838275 | AE34: 0 | AF34: 0 | AH34: 1023 | AI34: 7161 | AJ34: 2.98375 | AL34: 0 | AM34: 0 | AO34: 0 | AP34: 0 | AQ34: 0 | AS34: 0 | AT34: 0 | AV34: 292.98 | AW34: 2050.86 | AX34: 0.854525 | AZ34: 0 | BA34: 0
B35: 8 | C35: 1315.98 | D35: 255.77 | E35: 1060.21 | F35: 203555.28 | G35: -1315.98 | K35: 1023 | L35: 258.34 | M35: 764.66 | N35: 205909.39 | O35: -1023 | S35: 8 | T35: 1315.98 | U35: 10527.84 | V35: 4.3866 | X35: 0 | Y35: 0 | AA35: 1315.98 | AB35: 10527.84 | AC35: 4.3866 | AE35: 0 | AF35: 0 | AH35: 1023 | AI35: 8184 | AJ35: 3.41 | AL35: 0 | AM35: 0 | AO35: 0 | AP35: 0 | AQ35: 0 | AS35: 0 | AT35: 0 | AV35: 292.98 | AW35: 2343.84 | AX35: 0.9766 | AZ35: 0 | BA35: 0
B36: 9 | C36: 1315.98 | D36: 254.44 | E36: 1061.54 | F36: 202493.74 | G36: -1315.98 | K36: 1023 | L36: 257.39 | M36: 765.61 | N36: 205143.78 | O36: -1023 | S36: 9 | T36: 1315.98 | U36: 11843.82 | V36: 4.934925 | X36: 0 | Y36: 0 | AA36: 1315.98 | AB36: 11843.82 | AC36: 4.934925 | AE36: 0 | AF36: 0 | AH36: 1023 | AI36: 9207 | AJ36: 3.83625 | AL36: 0 | AM36: 0 | AO36: 0 | AP36: 0 | AQ36: 0 | AS36: 0 | AT36: 0 | AV36: 292.98 | AW36: 2636.82 | AX36: 1.098675 | AZ36: 0 | BA36: 0
B37: 10 | C37: 1315.98 | D37: 253.12 | E37: 1062.86 | F37: 201430.88 | G37: -1315.98 | K37: 1023 | L37: 256.43 | M37: 766.57 | N37: 204377.21 | O37: -1023 | S37: 10 | T37: 1315.98 | U37: 13159.8 | V37: 5.48325 | X37: 0 | Y37: 0 | AA37: 1315.98 | AB37: 13159.8 | AC37: 5.48325 | AE37: 0 | AF37: 0 | AH37: 1023 | AI37: 10230 | AJ37: 4.2625 | AL37: 0 | AM37: 0 | AO37: 0 | AP37: 0 | AQ37: 0 | AS37: 0 | AT37: 0 | AV37: 292.98 | AW37: 2929.8 | AX37: 1.22075 | AZ37: 0 | BA37: 0
B38: 11 | C38: 1315.98 | D38: 251.79 | E38: 1064.19 | F38: 200366.69 | G38: -1315.98 | K38: 1023 | L38: 255.47 | M38: 767.53 | N38: 203609.68 | O38: -1023 | S38: 11 | T38: 1315.98 | U38: 14475.78 | V38: 6.031575 | X38: 0 | Y38: 0 | AA38: 1315.98 | AB38: 14475.78 | AC38: 6.031575 | AE38: 0 | AF38: 0 | AH38: 1023 | AI38: 11253 | AJ38: 4.68875 | AL38: 0 | AM38: 0 | AO38: 0 | AP38: 0 | AQ38: 0 | AS38: 0 | AT38: 0 | AV38: 292.98 | AW38: 3222.78 | AX38: 1.342825 | AZ38: 0 | BA38: 0
B39: 12 | C39: 1315.98 | D39: 250.46 | E39: 1065.52 | F39: 199301.17 | G39: -1315.98 | K39: 1023 | L39: 254.51 | M39: 768.49 | N39: 202841.19 | O39: -1023 | S39: 12 | T39: 1315.98 | U39: 15791.76 | V39: 6.5799 | W39: =SUM(V28:V39) -> 42.76935 | X39: =X38+Z39 -> 0 | Y39: 0 | Z39: =SUM(Y28:Y39) -> 0 | AA39: 1315.98 | AB39: 15791.76 | AC39: 6.5799 | AD39: =SUM(AC28:AC39) -> 42.76935 | AE39: =AE38+AG39 -> 0 | AF39: 0 | AG39: =SUM(AF28:AF39) -> 0 | AH39: 1023 | AI39: 12276 | AJ39: 5.115 | AK39: =SUM(AJ28:AJ39) -> 33.2475 | AL39: =AL38+AN39 -> 0 | AM39: 0 | AN39: =SUM(AM28:AM39) -> 0 | AO39: 0 | AP39: 0 | AQ39: 0 | AR39: =SUM(AQ28:AQ39) -> 0 | AS39: =AS38+AU39 -> 0 | AT39: 0 | AU39: =SUM(AT28:AT39) -> 0 | AV39: 292.98 | AW39: 3515.76 | AX39: 1.4649 | AY39: =SUM(AX28:AX39) -> 9.52185 | AZ39: =AZ38+BB39 -> 0 | BA39: 0 | BB39: =SUM(BA28:BA39) -> 0
B40: 13 | C40: 1315.98 | D40: 249.13 | E40: 1066.85 | F40: 198234.32 | G40: -1315.98 | K40: 1023 | L40: 253.55 | M40: 769.45 | N40: 202071.74 | O40: -1023 | S40: 13 | T40: 1315.98 | U40: =U39+T40+W39 -> 17150.50935 | V40: 7.146045562 | X40: 0 | Y40: 0 | AA40: 1315.98 | AB40: =AB39+AA40+AD39 -> 17150.50935 | AC40: 7.146045562 | AE40: 0 | AF40: 0 | AH40: 1023 | AI40: =AI39+AH40+AK39 -> 13332.2475 | AJ40: 5.555103125 | AL40: =AL39 -> 0 | AM40: 0 | AO40: 0 | AP40: =AP39+AO40+AR39 -> 0 | AQ40: 0 | AS40: 0 | AT40: 0 | AV40: 292.98 | AW40: =AW39+AV40+AY39 -> 3818.26185 | AX40: 1.590942438 | AZ40: =AZ39 -> 0 | BA40: 0
B41: 14 | C41: 1315.98 | D41: 247.79 | E41: 1068.19 | F41: 197166.13 | G41: -1315.98 | K41: 1023 | L41: 252.59 | M41: 770.41 | N41: 201301.33 | O41: -1023 | S41: 14 | T41: 1315.98 | U41: 18466.48935 | V41: 7.694370562 | X41: 0 | Y41: 0 | AA41: 1315.98 | AB41: 18466.48935 | AC41: 7.694370562 | AE41: 0 | AF41: 0 | AH41: 1023 | AI41: =AI40+AH41 -> 14355.2475 | AJ41: 5.981353125 | AL41: 0 | AM41: 0 | AO41: 0 | AP41: =AP40+AO41 -> 0 | AQ41: 0 | AS41: 0 | AT41: 0 | AV41: 292.98 | AW41: =AW40+AV41 -> 4111.24185 | AX41: 1.713017438 | AZ41: 0 | BA41: 0
B42: 15 | C42: 1315.98 | D42: 246.46 | E42: 1069.52 | F42: 196096.61 | G42: -1315.98 | K42: 1023 | L42: 251.63 | M42: 771.37 | N42: 200529.96 | O42: -1023 | S42: 15 | T42: 1315.98 | U42: 19782.46935 | V42: 8.242695562 | X42: 0 | Y42: 0 | AA42: 1315.98 | AB42: 19782.46935 | AC42: 8.242695562 | AE42: 0 | AF42: 0 | AH42: 1023 | AI42: 15378.2475 | AJ42: 6.407603125 | AL42: 0 | AM42: 0 | AO42: 0 | AP42: 0 | AQ42: 0 | AS42: 0 | AT42: 0 | AV42: 292.98 | AW42: 4404.22185 | AX42: 1.835092437 | AZ42: 0 | BA42: 0
B43: 16 | C43: 1315.98 | D43: 245.12 | E43: 1070.86 | F43: 195025.75 | G43: -1315.98 | K43: 1023 | L43: 250.66 | M43: 772.34 | N43: 199757.62 | O43: -1023 | S43: 16 | T43: 1315.98 | U43: 21098.44935 | V43: 8.791020562 | X43: 0 | Y43: 0 | AA43: 1315.98 | AB43: 21098.44935 | AC43: 8.791020562 | AE43: 0 | AF43: 0 | AH43: 1023 | AI43: 16401.2475 | AJ43: 6.833853125 | AL43: 0 | AM43: 0 | AO43: 0 | AP43: 0 | AQ43: 0 | AS43: 0 | AT43: 0 | AV43: 292.98 | AW43: 4697.20185 | AX43: 1.957167437 | AZ43: 0 | BA43: 0
B44: 17 | C44: 1315.98 | D44: 243.78 | E44: 1072.2 | F44: 193953.55 | G44: -1315.98 | K44: 1023 | L44: 249.7 | M44: 773.3 | N44: 198984.32 | O44: -1023 | S44: 17 | T44: 1315.98 | U44: 22414.42935 | V44: 9.339345562 | X44: 0 | Y44: 0 | AA44: 1315.98 | AB44: 22414.42935 | AC44: 9.339345562 | AE44: 0 | AF44: 0 | AH44: 1023 | AI44: 17424.2475 | AJ44: 7.260103125 | AL44: 0 | AM44: 0 | AO44: 0 | AP44: 0 | AQ44: 0 | AS44: 0 | AT44: 0 | AV44: 292.98 | AW44: 4990.18185 | AX44: 2.079242437 | AZ44: 0 | BA44: 0
B45: 18 | C45: 1315.98 | D45: 242.44 | E45: 1073.54 | F45: 192880.01 | G45: -1315.98 | K45: 1023 | L45: 248.73 | M45: 774.27 | N45: 198210.05 | O45: -1023 | S45: 18 | T45: 1315.98 | U45: 23730.40935 | V45: 9.887670562 | X45: 0 | Y45: 0 | AA45: 1315.98 | AB45: 23730.40935 | AC45: 9.887670562 | AE45: 0 | AF45: 0 | AH45: 1023 | AI45: 18447.2475 | AJ45: 7.686353125 | AL45: 0 | AM45: 0 | AO45: 0 | AP45: 0 | AQ45: 0 | AS45: 0 | AT45: 0 | AV45: 292.98 | AW45: 5283.16185 | AX45: 2.201317437 | AZ45: 0 | BA45: 0
B46: 19 | C46: 1315.98 | D46: 241.1 | E46: 1074.88 | F46: 191805.13 | G46: -1315.98 | K46: 1023 | L46: 247.76 | M46: 775.24 | N46: 197434.81 | O46: -1023 | S46: 19 | T46: 1315.98 | U46: 25046.38935 | V46: 10.43599556 | X46: 0 | Y46: 0 | AA46: 1315.98 | AB46: 25046.38935 | AC46: 10.43599556 | AE46: 0 | AF46: 0 | AH46: 1023 | AI46: 19470.2475 | AJ46: 8.112603125 | AL46: 0 | AM46: 0 | AO46: 0 | AP46: 0 | AQ46: 0 | AS46: 0 | AT46: 0 | AV46: 292.98 | AW46: 5576.14185 | AX46: 2.323392437 | AZ46: 0 | BA46: 0
B47: 20 | C47: 1315.98 | D47: 239.76 | E47: 1076.22 | F47: 190728.91 | G47: -1315.98 | K47: 1023 | L47: 246.79 | M47: 776.21 | N47: 196658.6 | O47: -1023 | S47: 20 | T47: 1315.98 | U47: 26362.36935 | V47: 10.98432056 | X47: 0 | Y47: 0 | AA47: 1315.98 | AB47: 26362.36935 | AC47: 10.98432056 | AE47: 0 | AF47: 0 | AH47: 1023 | AI47: 20493.2475 | AJ47: 8.538853125 | AL47: 0 | AM47: 0 | AO47: 0 | AP47: 0 | AQ47: 0 | AS47: 0 | AT47: 0 | AV47: 292.98 | AW47: 5869.12185 | AX47: 2.445467437 | AZ47: 0 | BA47: 0
B48: 21 | C48: 1315.98 | D48: 238.41 | E48: 1077.57 | F48: 189651.34 | G48: -1315.98 | K48: 1023 | L48: 245.82 | M48: 777.18 | N48: 195881.42 | O48: -1023 | S48: 21 | T48: 1315.98 | U48: 27678.34935 | V48: 11.53264556 | X48: 0 | Y48: 0 | AA48: 1315.98 | AB48: 27678.34935 | AC48: 11.53264556 | AE48: 0 | AF48: 0 | AH48: 1023 | AI48: 21516.2475 | AJ48: 8.965103125 | AL48: 0 | AM48: 0 | AO48: 0 | AP48: 0 | AQ48: 0 | AS48: 0 | AT48: 0 | AV48: 292.98 | AW48: 6162.10185 | AX48: 2.567542437 | AZ48: 0 | BA48: 0
B49: 22 | C49: 1315.98 | D49: 237.06 | E49: 1078.92 | F49: 188572.42 | G49: -1315.98 | K49: 1023 | L49: 244.85 | M49: 778.15 | N49: 195103.27 | O49: -1023 | S49: 22 | T49: 1315.98 | U49: 28994.32935 | V49: 12.08097056 | X49: 0 | Y49: 0 | AA49: 1315.98 | AB49: 28994.32935 | AC49: 12.08097056 | AE49: 0 | AF49: 0 | AH49: 1023 | AI49: 22539.2475 | AJ49: 9.391353125 | AL49: 0 | AM49: 0 | AO49: 0 | AP49: 0 | AQ49: 0 | AS49: 0 | AT49: 0 | AV49: 292.98 | AW49: 6455.08185 | AX49: 2.689617437 | AZ49: 0 | BA49: 0
B50: 23 | C50: 1315.98 | D50: 235.72 | E50: 1080.26 | F50: 187492.16 | G50: -1315.98 | K50: 1023 | L50: 243.88 | M50: 779.12 | N50: 194324.15 | O50: -1023 | S50: 23 | T50: 1315.98 | U50: 30310.30935 | V50: 12.62929556 | X50: 0 | Y50: 0 | AA50: 1315.98 | AB50: 30310.30935 | AC50: 12.62929556 | AE50: 0 | AF50: 0 | AH50: 1023 | AI50: 23562.2475 | AJ50: 9.817603125 | AL50: 0 | AM50: 0 | AO50: 0 | AP50: 0 | AQ50: 0 | AS50: 0 | AT50: 0 | AV50: 292.98 | AW50: 6748.06185 | AX50: 2.811692437 | AZ50: 0 | BA50: 0
B51: 24 | C51: 1315.98 | D51: 234.37 | E51: 1081.61 | F51: 186410.55 | G51: -1315.98 | K51: 1023 | L51: 242.91 | M51: 780.09 | N51: 193544.06 | O51: -1023 | S51: 24 | T51: 1315.98 | U51: 31626.28935 | V51: 13.17762056 | W51: =SUM(V40:V51) -> 121.9419967 | X51: =X50+Z51 -> 0 | Y51: 0 | Z51: =SUM(Y40:Y51) -> 0 | AA51: 1315.98 | AB51: 31626.28935 | AC51: 13.17762056 | AD51: =SUM(AC40:AC51) -> 121.9419967 | AE51: =AE50+AG51 -> 0 | AF51: 0 | AG51: =SUM(AF40:AF51) -> 0 | AH51: 1023 | AI51: 24585.2475 | AJ51: 10.24385312 | AK51: =SUM(AJ40:AJ51) -> 94.7937375 | AL51: =AL50+AN51 -> 0 | AM51: 0 | AN51: =SUM(AM40:AM51) -> 0 | AO51: 0 | AP51: 0 | AQ51: 0 | AR51: =SUM(AQ40:AQ51) -> 0 | AS51: =AS50+AU51 -> 0 | AT51: 0 | AU51: =SUM(AT40:AT51) -> 0 | AV51: 292.98 | AW51: 7041.04185 | AX51: 2.933767437 | AY51: =SUM(AX40:AX51) -> 27.14825925 | AZ51: =AZ50+BB51 -> 0 | BA51: 0 | BB51: =SUM(BA40:BA51) -> 0
B52: 25 | C52: 1315.98 | D52: 233.01 | E52: 1082.97 | F52: 185327.58 | G52: -1315.98 | K52: 1023 | L52: 241.93 | M52: 781.07 | N52: 192762.99 | O52: -1023 | S52: 25 | T52: 1315.98 | U52: =U51+T52+W51 -> 33064.21135 | V52: 13.77675473 | X52: 0 | Y52: 0 | AA52: 1315.98 | AB52: =AB51+AA52+AD51 -> 33064.21135 | AC52: 13.77675473 | AE52: 0 | AF52: 0 | AH52: 1023 | AI52: =AI51+AH52+AK51 -> 25703.04124 | AJ52: 10.70960052 | AL52: =AL51 -> 0 | AM52: 0 | AO52: 0 | AP52: =AP51+AO52+AR51 -> 0 | AQ52: 0 | AS52: 0 | AT52: 0 | AV52: 292.98 | AW52: =AW51+AV52+AY51 -> 7361.170109 | AX52: 3.067154212 | AZ52: =AZ51 -> 0 | BA52: 0
B53: 26 | C53: 1315.98 | D53: 231.66 | E53: 1084.32 | F53: 184243.26 | G53: -1315.98 | K53: 1023 | L53: 240.95 | M53: 782.05 | N53: 191980.94 | O53: -1023 | S53: 26 | T53: 1315.98 | U53: 34380.19135 | V53: 14.32507973 | X53: 0 | Y53: 0 | AA53: 1315.98 | AB53: 34380.19135 | AC53: 14.32507973 | AE53: 0 | AF53: 0 | AH53: 1023 | AI53: =AI52+AH53 -> 26726.04124 | AJ53: 11.13585052 | AL53: 0 | AM53: 0 | AO53: 0 | AP53: =AP52+AO53 -> 0 | AQ53: 0 | AS53: 0 | AT53: 0 | AV53: 292.98 | AW53: =AW52+AV53 -> 7654.150109 | AX53: 3.189229212 | AZ53: 0 | BA53: 0
B54: 27 | C54: 1315.98 | D54: 230.3 | E54: 1085.68 | F54: 183157.58 | G54: -1315.98 | K54: 1023 | L54: 239.98 | M54: 783.02 | N54: 191197.92 | O54: -1023 | S54: 27 | T54: 1315.98 | U54: 35696.17135 | V54: 14.87340473 | X54: 0 | Y54: 0 | AA54: 1315.98 | AB54: 35696.17135 | AC54: 14.87340473 | AE54: 0 | AF54: 0 | AH54: 1023 | AI54: 27749.04124 | AJ54: 11.56210052 | AL54: 0 | AM54: 0 | AO54: 0 | AP54: 0 | AQ54: 0 | AS54: 0 | AT54: 0 | AV54: 292.98 | AW54: 7947.130109 | AX54: 3.311304212 | AZ54: 0 | BA54: 0
B55: 28 | C55: 1315.98 | D55: 228.95 | E55: 1087.03 | F55: 182070.55 | G55: -1315.98 | K55: 1023 | L55: 239 | M55: 784 | N55: 190413.92 | O55: -1023 | S55: 28 | T55: 1315.98 | U55: 37012.15135 | V55: 15.42172973 | X55: 0 | Y55: 0 | AA55: 1315.98 | AB55: 37012.15135 | AC55: 15.42172973 | AE55: 0 | AF55: 0 | AH55: 1023 | AI55: 28772.04124 | AJ55: 11.98835052 | AL55: 0 | AM55: 0 | AO55: 0 | AP55: 0 | AQ55: 0 | AS55: 0 | AT55: 0 | AV55: 292.98 | AW55: 8240.110109 | AX55: 3.433379212 | AZ55: 0 | BA55: 0
B56: 29 | C56: 1315.98 | D56: 227.59 | E56: 1088.39 | F56: 180982.16 | G56: -1315.98 | K56: 1023 | L56: 238.02 | M56: 784.98 | N56: 189628.94 | O56: -1023 | S56: 29 | T56: 1315.98 | U56: 38328.13135 | V56: 15.97005473 | X56: 0 | Y56: 0 | AA56: 1315.98 | AB56: 38328.13135 | AC56: 15.97005473 | AE56: 0 | AF56: 0 | AH56: 1023 | AI56: 29795.04124 | AJ56: 12.41460052 | AL56: 0 | AM56: 0 | AO56: 0 | AP56: 0 | AQ56: 0 | AS56: 0 | AT56: 0 | AV56: 292.98 | AW56: 8533.090109 | AX56: 3.555454212 | AZ56: 0 | BA56: 0
B57: 30 | C57: 1315.98 | D57: 226.23 | E57: 1089.75 | F57: 179892.41 | G57: -1315.98 | K57: 1023 | L57: 237.04 | M57: 785.96 | N57: 188842.98 | O57: -1023 | S57: 30 | T57: 1315.98 | U57: 39644.11135 | V57: 16.51837973 | X57: 0 | Y57: 0 | AA57: 1315.98 | AB57: 39644.11135 | AC57: 16.51837973 | AE57: 0 | AF57: 0 | AH57: 1023 | AI57: 30818.04124 | AJ57: 12.84085052 | AL57: 0 | AM57: 0 | AO57: 0 | AP57: 0 | AQ57: 0 | AS57: 0 | AT57: 0 | AV57: 292.98 | AW57: 8826.070109 | AX57: 3.677529212 | AZ57: 0 | BA57: 0
B58: 31 | C58: 1315.98 | D58: 224.87 | E58: 1091.11 | F58: 178801.3 | G58: -1315.98 | K58: 1023 | L58: 236.05 | M58: 786.95 | N58: 188056.03 | O58: -1023 | S58: 31 | T58: 1315.98 | U58: 40960.09135 | V58: 17.06670473 | X58: 0 | Y58: 0 | AA58: 1315.98 | AB58: 40960.09135 | AC58: 17.06670473 | AE58: 0 | AF58: 0 | AH58: 1023 | AI58: 31841.04124 | AJ58: 13.26710052 | AL58: 0 | AM58: 0 | AO58: 0 | AP58: 0 | AQ58: 0 | AS58: 0 | AT58: 0 | AV58: 292.98 | AW58: 9119.050109 | AX58: 3.799604212 | AZ58: 0 | BA58: 0
B59: 32 | C59: 1315.98 | D59: 223.5 | E59: 1092.48 | F59: 177708.82 | G59: -1315.98 | K59: 1023 | L59: 235.07 | M59: 787.93 | N59: 187268.1 | O59: -1023 | S59: 32 | T59: 1315.98 | U59: 42276.07135 | V59: 17.61502973 | X59: 0 | Y59: 0 | AA59: 1315.98 | AB59: 42276.07135 | AC59: 17.61502973 | AE59: 0 | AF59: 0 | AH59: 1023 | AI59: 32864.04124 | AJ59: 13.69335052 | AL59: 0 | AM59: 0 | AO59: 0 | AP59: 0 | AQ59: 0 | AS59: 0 | AT59: 0 | AV59: 292.98 | AW59: 9412.030109 | AX59: 3.921679212 | AZ59: 0 | BA59: 0
B60: 33 | C60: 1315.98 | D60: =ROUND(F59*$E$9/12,2) -> 222.14 | E60: 1093.84 | F60: 176614.98 | G60: -1315.98 | K60: 1023 | L60: 234.09 | M60: 788.91 | N60: 186479.19 | O60: -1023 | S60: 33 | T60: 1315.98 | U60: 43592.05135 | V60: 18.16335473 | X60: 0 | Y60: 0 | AA60: 1315.98 | AB60: 43592.05135 | AC60: 18.16335473 | AE60: 0 | AF60: 0 | AH60: 1023 | AI60: 33887.04124 | AJ60: 14.11960052 | AL60: 0 | AM60: 0 | AO60: 0 | AP60: 0 | AQ60: 0 | AS60: 0 | AT60: 0 | AV60: 292.98 | AW60: 9705.010109 | AX60: 4.043754212 | AZ60: 0 | BA60: 0
B61: 34 | C61: 1315.98 | D61: 220.77 | E61: 1095.21 | F61: 175519.77 | G61: -1315.98 | K61: 1023 | L61: 233.1 | M61: 789.9 | N61: 185689.29 | O61: -1023 | S61: 34 | T61: 1315.98 | U61: 44908.03135 | V61: 18.71167973 | X61: 0 | Y61: 0 | AA61: 1315.98 | AB61: 44908.03135 | AC61: 18.71167973 | AE61: 0 | AF61: 0 | AH61: 1023 | AI61: 34910.04124 | AJ61: 14.54585052 | AL61: 0 | AM61: 0 | AO61: 0 | AP61: 0 | AQ61: 0 | AS61: 0 | AT61: 0 | AV61: 292.98 | AW61: 9997.990109 | AX61: 4.165829212 | AZ61: 0 | BA61: 0
B62: 35 | C62: 1315.98 | D62: 219.4 | E62: 1096.58 | F62: 174423.19 | G62: -1315.98 | K62: 1023 | L62: 232.11 | M62: 790.89 | N62: 184898.4 | O62: -1023 | S62: 35 | T62: 1315.98 | U62: 46224.01135 | V62: 19.26000473 | X62: 0 | Y62: 0 | AA62: 1315.98 | AB62: 46224.01135 | AC62: 19.26000473 | AE62: 0 | AF62: 0 | AH62: 1023 | AI62: 35933.04124 | AJ62: 14.97210052 | AL62: 0 | AM62: 0 | AO62: 0 | AP62: 0 | AQ62: 0 | AS62: 0 | AT62: 0 | AV62: 292.98 | AW62: 10290.97011 | AX62: 4.287904212 | AZ62: 0 | BA62: 0
B63: 36 | C63: 1315.98 | D63: 218.03 | E63: 1097.95 | F63: 173325.24 | G63: -1315.98 | K63: 1023 | L63: 231.12 | M63: 791.88 | N63: 184106.52 | O63: -1023 | S63: 36 | T63: 1315.98 | U63: 47539.99135 | V63: 19.80832973 | W63: =SUM(V52:V63) -> 201.5105067 | X63: =X62+Z63 -> 0 | Y63: 0 | Z63: =SUM(Y52:Y63) -> 0 | AA63: 1315.98 | AB63: 47539.99135 | AC63: 19.80832973 | AD63: =SUM(AC52:AC63) -> 201.5105067 | AE63: =AE62+AG63 -> 0 | AF63: 0 | AG63: =SUM(AF52:AF63) -> 0 | AH63: 1023 | AI63: 36956.04124 | AJ63: 15.39835052 | AK63: =SUM(AJ52:AJ63) -> 156.6477062 | AL63: =AL62+AN63 -> 0 | AM63: 0 | AN63: =SUM(AM52:AM63) -> 0 | AO63: 0 | AP63: 0 | AQ63: 0 | AR63: =SUM(AQ52:AQ63) -> 0 | AS63: =AS62+AU63 -> 0 | AT63: 0 | AU63: =SUM(AT52:AT63) -> 0 | AV63: 292.98 | AW63: 10583.95011 | AX63: 4.409979212 | AY63: =SUM(AX52:AX63) -> 44.86280055 | AZ63: =AZ62+BB63 -> 0 | BA63: 0 | BB63: =SUM(BA52:BA63) -> 0
B64: 37 | C64: 1315.98 | D64: 216.66 | E64: 1099.32 | F64: 172225.92 | G64: -1315.98 | K64: 1023 | L64: 230.13 | M64: 792.87 | N64: 183313.65 | O64: -1023 | S64: 37 | T64: 1315.98 | U64: =U63+T64+W63 -> 49057.48185 | V64: 20.44061744 | X64: 0 | Y64: 0 | AA64: 1315.98 | AB64: =AB63+AA64+AD63 -> 49057.48185 | AC64: 20.44061744 | AE64: 0 | AF64: 0 | AH64: 1023 | AI64: =AI63+AH64+AK63 -> 38135.68894 | AJ64: 15.88987039 | AL64: =AL63 -> 0 | AM64: 0 | AO64: 0 | AP64: =AP63+AO64+AR63 -> 0 | AQ64: 0 | AS64: 0 | AT64: 0 | AV64: 292.98 | AW64: =AW63+AV64+AY63 -> 10921.79291 | AX64: 4.550747046 | AZ64: =AZ63 -> 0 | BA64: 0
B65: 38 | C65: 1315.98 | D65: 215.28 | E65: 1100.7 | F65: 171125.22 | G65: -1315.98 | K65: 1023 | L65: 229.14 | M65: 793.86 | N65: 182519.79 | O65: -1023 | S65: 38 | T65: 1315.98 | U65: 50373.46185 | V65: 20.98894244 | X65: 0 | Y65: 0 | AA65: 1315.98 | AB65: 50373.46185 | AC65: 20.98894244 | AE65: 0 | AF65: 0 | AH65: 1023 | AI65: =AI64+AH65 -> 39158.68894 | AJ65: 16.31612039 | AL65: 0 | AM65: 0 | AO65: 0 | AP65: =AP64+AO65 -> 0 | AQ65: 0 | AS65: 0 | AT65: 0 | AV65: 292.98 | AW65: =AW64+AV65 -> 11214.77291 | AX65: 4.672822046 | AZ65: 0 | BA65: 0
B66: 39 | C66: 1315.98 | D66: 213.91 | E66: 1102.07 | F66: 170023.15 | G66: -1315.98 | K66: 1023 | L66: 228.15 | M66: 794.85 | N66: 181724.94 | O66: -1023 | S66: 39 | T66: 1315.98 | U66: 51689.44185 | V66: 21.53726744 | X66: 0 | Y66: 0 | AA66: 1315.98 | AB66: 51689.44185 | AC66: 21.53726744 | AE66: 0 | AF66: 0 | AH66: 1023 | AI66: 40181.68894 | AJ66: 16.74237039 | AL66: 0 | AM66: 0 | AO66: 0 | AP66: 0 | AQ66: 0 | AS66: 0 | AT66: 0 | AV66: 292.98 | AW66: 11507.75291 | AX66: 4.794897046 | AZ66: 0 | BA66: 0
B67: 40 | C67: 1315.98 | D67: 212.53 | E67: 1103.45 | F67: 168919.7 | G67: -1315.98 | K67: 1023 | L67: 227.16 | M67: 795.84 | N67: 180929.1 | O67: -1023 | S67: 40 | T67: 1315.98 | U67: 53005.42185 | V67: 22.08559244 | X67: 0 | Y67: 0 | AA67: 1315.98 | AB67: 53005.42185 | AC67: 22.08559244 | AE67: 0 | AF67: 0 | AH67: 1023 | AI67: 41204.68894 | AJ67: 17.16862039 | AL67: 0 | AM67: 0 | AO67: 0 | AP67: 0 | AQ67: 0 | AS67: 0 | AT67: 0 | AV67: 292.98 | AW67: 11800.73291 | AX67: 4.916972046 | AZ67: 0 | BA67: 0
B68: 41 | C68: 1315.98 | D68: 211.15 | E68: 1104.83 | F68: 167814.87 | G68: -1315.98 | K68: 1023 | L68: 226.16 | M68: 796.84 | N68: 180132.26 | O68: -1023 | S68: 41 | T68: 1315.98 | U68: 54321.40185 | V68: 22.63391744 | X68: 0 | Y68: 0 | AA68: 1315.98 | AB68: 54321.40185 | AC68: 22.63391744 | AE68: 0 | AF68: 0 | AH68: 1023 | AI68: 42227.68894 | AJ68: 17.59487039 | AL68: 0 | AM68: 0 | AO68: 0 | AP68: 0 | AQ68: 0 | AS68: 0 | AT68: 0 | AV68: 292.98 | AW68: 12093.71291 | AX68: 5.039047046 | AZ68: 0 | BA68: 0
B69: 42 | C69: 1315.98 | D69: 209.77 | E69: 1106.21 | F69: 166708.66 | G69: -1315.98 | K69: 1023 | L69: 225.17 | M69: 797.83 | N69: 179334.43 | O69: -1023 | S69: 42 | T69: 1315.98 | U69: 55637.38185 | V69: 23.18224244 | X69: 0 | Y69: 0 | AA69: 1315.98 | AB69: 55637.38185 | AC69: 23.18224244 | AE69: 0 | AF69: 0 | AH69: 1023 | AI69: 43250.68894 | AJ69: 18.02112039 | AL69: 0 | AM69: 0 | AO69: 0 | AP69: 0 | AQ69: 0 | AS69: 0 | AT69: 0 | AV69: 292.98 | AW69: 12386.69291 | AX69: 5.161122046 | AZ69: 0 | BA69: 0
B70: 43 | C70: 1315.98 | D70: 208.39 | E70: 1107.59 | F70: 165601.07 | G70: -1315.98 | K70: 1023 | L70: 224.17 | M70: 798.83 | N70: 178535.6 | O70: -1023 | S70: 43 | T70: 1315.98 | U70: 56953.36185 | V70: 23.73056744 | X70: 0 | Y70: 0 | AA70: 1315.98 | AB70: 56953.36185 | AC70: 23.73056744 | AE70: 0 | AF70: 0 | AH70: 1023 | AI70: 44273.68894 | AJ70: 18.44737039 | AL70: 0 | AM70: 0 | AO70: 0 | AP70: 0 | AQ70: 0 | AS70: 0 | AT70: 0 | AV70: 292.98 | AW70: 12679.67291 | AX70: 5.283197046 | AZ70: 0 | BA70: 0
B71: 44 | C71: 1315.98 | D71: 207 | E71: 1108.98 | F71: 164492.09 | G71: -1315.98 | K71: 1023 | L71: 223.17 | M71: 799.83 | N71: 177735.77 | O71: -1023 | S71: 44 | T71: 1315.98 | U71: 58269.34185 | V71: 24.27889244 | X71: 0 | Y71: 0 | AA71: 1315.98 | AB71: 58269.34185 | AC71: 24.27889244 | AE71: 0 | AF71: 0 | AH71: 1023 | AI71: 45296.68894 | AJ71: 18.87362039 | AL71: 0 | AM71: 0 | AO71: 0 | AP71: 0 | AQ71: 0 | AS71: 0 | AT71: 0 | AV71: 292.98 | AW71: 12972.65291 | AX71: 5.405272046 | AZ71: 0 | BA71: 0
B72: 45 | C72: 1315.98 | D72: 205.62 | E72: 1110.36 | F72: 163381.73 | G72: -1315.98 | K72: 1023 | L72: 222.17 | M72: 800.83 | N72: 176934.94 | O72: -1023 | S72: 45 | T72: 1315.98 | U72: 59585.32185 | V72: 24.82721744 | X72: 0 | Y72: 0 | AA72: 1315.98 | AB72: 59585.32185 | AC72: 24.82721744 | AE72: 0 | AF72: 0 | AH72: 1023 | AI72: 46319.68894 | AJ72: 19.29987039 | AL72: 0 | AM72: 0 | AO72: 0 | AP72: 0 | AQ72: 0 | AS72: 0 | AT72: 0 | AV72: 292.98 | AW72: 13265.63291 | AX72: 5.527347046 | AZ72: 0 | BA72: 0
B73: 46 | C73: 1315.98 | D73: 204.23 | E73: 1111.75 | F73: 162269.98 | G73: -1315.98 | K73: 1023 | L73: 221.17 | M73: 801.83 | N73: 176133.11 | O73: -1023 | S73: 46 | T73: 1315.98 | U73: 60901.30185 | V73: 25.37554244 | X73: 0 | Y73: 0 | AA73: 1315.98 | AB73: 60901.30185 | AC73: 25.37554244 | AE73: 0 | AF73: 0 | AH73: 1023 | AI73: 47342.68894 | AJ73: 19.72612039 | AL73: 0 | AM73: 0 | AO73: 0 | AP73: 0 | AQ73: 0 | AS73: 0 | AT73: 0 | AV73: 292.98 | AW73: 13558.61291 | AX73: 5.649422046 | AZ73: 0 | BA73: 0
B74: 47 | C74: 1315.98 | D74: 202.84 | E74: 1113.14 | F74: 161156.84 | G74: -1315.98 | K74: 1023 | L74: 220.17 | M74: 802.83 | N74: 175330.28 | O74: -1023 | S74: 47 | T74: 1315.98 | U74: 62217.28185 | V74: 25.92386744 | X74: 0 | Y74: 0 | AA74: 1315.98 | AB74: 62217.28185 | AC74: 25.92386744 | AE74: 0 | AF74: 0 | AH74: 1023 | AI74: 48365.68894 | AJ74: 20.15237039 | AL74: 0 | AM74: 0 | AO74: 0 | AP74: 0 | AQ74: 0 | AS74: 0 | AT74: 0 | AV74: 292.98 | AW74: 13851.59291 | AX74: 5.771497046 | AZ74: 0 | BA74: 0
B75: 48 | C75: 1315.98 | D75: 201.45 | E75: 1114.53 | F75: 160042.31 | G75: -1315.98 | K75: 1023 | L75: 219.16 | M75: 803.84 | N75: 174526.44 | O75: -1023 | S75: 48 | T75: 1315.98 | U75: 63533.26185 | V75: 26.47219244 | W75: =SUM(V64:V75) -> 281.4768593 | X75: =X74+Z75 -> 0 | Y75: 0 | Z75: =SUM(Y64:Y75) -> 0 | AA75: 1315.98 | AB75: 63533.26185 | AC75: 26.47219244 | AD75: =SUM(AC64:AC75) -> 281.4768593 | AE75: =AE74+AG75 -> 0 | AF75: 0 | AG75: =SUM(AF64:AF75) -> 0 | AH75: 1023 | AI75: 49388.68894 | AJ75: 20.57862039 | AK75: =SUM(AJ64:AJ75) -> 218.8109447 | AL75: =AL74+AN75 -> 0 | AM75: 0 | AN75: =SUM(AM64:AM75) -> 0 | AO75: 0 | AP75: 0 | AQ75: 0 | AR75: =SUM(AQ64:AQ75) -> 0 | AS75: =AS74+AU75 -> 0 | AT75: 0 | AU75: =SUM(AT64:AT75) -> 0 | AV75: 292.98 | AW75: 14144.57291 | AX75: 5.893572046 | AY75: =SUM(AX64:AX75) -> 62.66591455 | AZ75: =AZ74+BB75 -> 0 | BA75: 0 | BB75: =SUM(BA64:BA75) -> 0
B76: 49 | C76: 1315.98 | D76: 200.05 | E76: 1115.93 | F76: 158926.38 | G76: -1315.98 | K76: 1023 | L76: 218.16 | M76: 804.84 | N76: 173721.6 | O76: -1023 | S76: 49 | T76: 1315.98 | U76: =U75+T76+W75 -> 65130.71871 | V76: 27.13779946 | X76: 0 | Y76: 0 | AA76: 1315.98 | AB76: =AB75+AA76+AD75 -> 65130.71871 | AC76: 27.13779946 | AE76: 0 | AF76: 0 | AH76: 1023 | AI76: =AI75+AH76+AK75 -> 50630.49989 | AJ76: 21.09604162 | AL76: =AL75 -> 0 | AM76: 0 | AO76: 0 | AP76: =AP75+AO76+AR75 -> 0 | AQ76: 0 | AS76: 0 | AT76: 0 | AV76: 292.98 | AW76: =AW75+AV76+AY75 -> 14500.21882 | AX76: 6.041757843 | AZ76: =AZ75 -> 0 | BA76: 0
B77: 50 | C77: 1315.98 | D77: 198.66 | E77: 1117.32 | F77: 157809.06 | G77: -1315.98 | K77: 1023 | L77: 217.15 | M77: 805.85 | N77: 172915.75 | O77: -1023 | S77: 50 | T77: 1315.98 | U77: 66446.69871 | V77: 27.68612446 | X77: 0 | Y77: 0 | AA77: 1315.98 | AB77: 66446.69871 | AC77: 27.68612446 | AE77: 0 | AF77: 0 | AH77: 1023 | AI77: =AI76+AH77 -> 51653.49989 | AJ77: 21.52229162 | AL77: 0 | AM77: 0 | AO77: 0 | AP77: =AP76+AO77 -> 0 | AQ77: 0 | AS77: 0 | AT77: 0 | AV77: 292.98 | AW77: =AW76+AV77 -> 14793.19882 | AX77: 6.163832843 | AZ77: 0 | BA77: 0
B78: 51 | C78: 1315.98 | D78: 197.26 | E78: 1118.72 | F78: 156690.34 | G78: -1315.98 | K78: 1023 | L78: 216.14 | M78: 806.86 | N78: 172108.89 | O78: -1023 | S78: 51 | T78: 1315.98 | U78: 67762.67871 | V78: 28.23444946 | X78: 0 | Y78: 0 | AA78: 1315.98 | AB78: 67762.67871 | AC78: 28.23444946 | AE78: 0 | AF78: 0 | AH78: 1023 | AI78: 52676.49989 | AJ78: 21.94854162 | AL78: 0 | AM78: 0 | AO78: 0 | AP78: 0 | AQ78: 0 | AS78: 0 | AT78: 0 | AV78: 292.98 | AW78: 15086.17882 | AX78: 6.285907843 | AZ78: 0 | BA78: 0
B79: 52 | C79: 1315.98 | D79: 195.86 | E79: 1120.12 | F79: 155570.22 | G79: -1315.98 | K79: 1023 | L79: 215.14 | M79: 807.86 | N79: 171301.03 | O79: -1023 | S79: 52 | T79: 1315.98 | U79: 69078.65871 | V79: 28.78277446 | X79: 0 | Y79: 0 | AA79: 1315.98 | AB79: 69078.65871 | AC79: 28.78277446 | AE79: 0 | AF79: 0 | AH79: 1023 | AI79: 53699.49989 | AJ79: 22.37479162 | AL79: 0 | AM79: 0 | AO79: 0 | AP79: 0 | AQ79: 0 | AS79: 0 | AT79: 0 | AV79: 292.98 | AW79: 15379.15882 | AX79: 6.407982843 | AZ79: 0 | BA79: 0
B80: 53 | C80: 1315.98 | D80: 194.46 | E80: 1121.52 | F80: 154448.7 | G80: -1315.98 | K80: 1023 | L80: 214.13 | M80: 808.87 | N80: 170492.16 | O80: -1023 | S80: 53 | T80: 1315.98 | U80: 70394.63871 | V80: 29.33109946 | X80: 0 | Y80: 0 | AA80: 1315.98 | AB80: 70394.63871 | AC80: 29.33109946 | AE80: 0 | AF80: 0 | AH80: 1023 | AI80: 54722.49989 | AJ80: 22.80104162 | AL80: 0 | AM80: 0 | AO80: 0 | AP80: 0 | AQ80: 0 | AS80: 0 | AT80: 0 | AV80: 292.98 | AW80: 15672.13882 | AX80: 6.530057843 | AZ80: 0 | BA80: 0
B81: 54 | C81: 1315.98 | D81: 193.06 | E81: 1122.92 | F81: 153325.78 | G81: -1315.98 | K81: 1023 | L81: 213.12 | M81: 809.88 | N81: 169682.28 | O81: -1023 | S81: 54 | T81: 1315.98 | U81: 71710.61871 | V81: 29.87942446 | X81: 0 | Y81: 0 | AA81: 1315.98 | AB81: 71710.61871 | AC81: 29.87942446 | AE81: 0 | AF81: 0 | AH81: 1023 | AI81: 55745.49989 | AJ81: 23.22729162 | AL81: 0 | AM81: 0 | AO81: 0 | AP81: 0 | AQ81: 0 | AS81: 0 | AT81: 0 | AV81: 292.98 | AW81: 15965.11882 | AX81: 6.652132843 | AZ81: 0 | BA81: 0
B82: 55 | C82: 1315.98 | D82: 191.66 | E82: 1124.32 | F82: 152201.46 | G82: -1315.98 | K82: 1023 | L82: 212.1 | M82: 810.9 | N82: 168871.38 | O82: -1023 | S82: 55 | T82: 1315.98 | U82: 73026.59871 | V82: 30.42774946 | X82: 0 | Y82: 0 | AA82: 1315.98 | AB82: 73026.59871 | AC82: 30.42774946 | AE82: 0 | AF82: 0 | AH82: 1023 | AI82: 56768.49989 | AJ82: 23.65354162 | AL82: 0 | AM82: 0 | AO82: 0 | AP82: 0 | AQ82: 0 | AS82: 0 | AT82: 0 | AV82: 292.98 | AW82: 16258.09882 | AX82: 6.774207843 | AZ82: 0 | BA82: 0
B83: 56 | C83: 1315.98 | D83: 190.25 | E83: 1125.73 | F83: 151075.73 | G83: -1315.98 | K83: 1023 | L83: 211.09 | M83: 811.91 | N83: 168059.47 | O83: -1023 | S83: 56 | T83: 1315.98 | U83: 74342.57871 | V83: 30.97607446 | X83: 0 | Y83: 0 | AA83: 1315.98 | AB83: 74342.57871 | AC83: 30.97607446 | AE83: 0 | AF83: 0 | AH83: 1023 | AI83: 57791.49989 | AJ83: 24.07979162 | AL83: 0 | AM83: 0 | AO83: 0 | AP83: 0 | AQ83: 0 | AS83: 0 | AT83: 0 | AV83: 292.98 | AW83: 16551.07882 | AX83: 6.896282843 | AZ83: 0 | BA83: 0
B84: 57 | C84: 1315.98 | D84: 188.84 | E84: 1127.14 | F84: 149948.59 | G84: -1315.98 | K84: 1023 | L84: 210.07 | M84: 812.93 | N84: 167246.54 | O84: -1023 | S84: 57 | T84: 1315.98 | U84: 75658.55871 | V84: 31.52439946 | X84: 0 | Y84: 0 | AA84: 1315.98 | AB84: 75658.55871 | AC84: 31.52439946 | AE84: 0 | AF84: 0 | AH84: 1023 | AI84: 58814.49989 | AJ84: 24.50604162 | AL84: 0 | AM84: 0 | AO84: 0 | AP84: 0 | AQ84: 0 | AS84: 0 | AT84: 0 | AV84: 292.98 | AW84: 16844.05882 | AX84: 7.018357843 | AZ84: 0 | BA84: 0
B85: 58 | C85: 1315.98 | D85: 187.44 | E85: 1128.54 | F85: 148820.05 | G85: -1315.98 | K85: 1023 | L85: 209.06 | M85: 813.94 | N85: 166432.6 | O85: -1023 | S85: 58 | T85: 1315.98 | U85: 76974.53871 | V85: 32.07272446 | X85: 0 | Y85: 0 | AA85: 1315.98 | AB85: 76974.53871 | AC85: 32.07272446 | AE85: 0 | AF85: 0 | AH85: 1023 | AI85: 59837.49989 | AJ85: 24.93229162 | AL85: 0 | AM85: 0 | AO85: 0 | AP85: 0 | AQ85: 0 | AS85: 0 | AT85: 0 | AV85: 292.98 | AW85: 17137.03882 | AX85: 7.140432843 | AZ85: 0 | BA85: 0
B86: 59 | C86: 1315.98 | D86: 186.03 | E86: 1129.95 | F86: 147690.1 | G86: -1315.98 | K86: 1023 | L86: 208.04 | M86: 814.96 | N86: 165617.64 | O86: -1023 | S86: 59 | T86: 1315.98 | U86: 78290.51871 | V86: 32.62104946 | X86: 0 | Y86: 0 | AA86: 1315.98 | AB86: 78290.51871 | AC86: 32.62104946 | AE86: 0 | AF86: 0 | AH86: 1023 | AI86: 60860.49989 | AJ86: 25.35854162 | AL86: 0 | AM86: 0 | AO86: 0 | AP86: 0 | AQ86: 0 | AS86: 0 | AT86: 0 | AV86: 292.98 | AW86: 17430.01882 | AX86: 7.262507843 | AZ86: 0 | BA86: 0
B87: 60 | C87: 1315.98 | D87: 184.61 | E87: 1131.37 | F87: 146558.73 | G87: -1315.98 | K87: 1023 | L87: 207.02 | M87: 815.98 | N87: 164801.66 | O87: -1023 | S87: 60 | T87: 1315.98 | U87: 79606.49871 | V87: 33.16937446 | W87: =SUM(V76:V87) -> 361.8430436 | X87: =X86+Z87 -> 0 | Y87: 0 | Z87: =SUM(Y76:Y87) -> 0 | AA87: 1315.98 | AB87: 79606.49871 | AC87: 33.16937446 | AD87: =SUM(AC76:AC87) -> 361.8430436 | AE87: =AE86+AG87 -> 0 | AF87: 0 | AG87: =SUM(AF76:AF87) -> 0 | AH87: 1023 | AI87: 61883.49989 | AJ87: 25.78479162 | AK87: =SUM(AJ76:AJ87) -> 281.2849994 | AL87: =AL86+AN87 -> 0 | AM87: 0 | AN87: =SUM(AM76:AM87) -> 0 | AO87: 0 | AP87: 0 | AQ87: 0 | AR87: =SUM(AQ76:AQ87) -> 0 | AS87: =AS86+AU87 -> 0 | AT87: 0 | AU87: =SUM(AT76:AT87) -> 0 | AV87: 292.98 | AW87: 17722.99882 | AX87: 7.384582843 | AY87: =SUM(AX76:AX87) -> 80.55804412 | AZ87: =AZ86+BB87 -> 0 | BA87: 0 | BB87: =SUM(BA76:BA87) -> 0
B88: 61 | C88: 1315.98 | D88: 183.2 | E88: 1132.78 | F88: 145425.95 | G88: -1315.98 | K88: 1023 | L88: 206 | M88: 817 | N88: 163984.66 | O88: -1023 | S88: 61 | T88: 1315.98 | U88: =U87+T88+W87 -> 81284.32176 | V88: 33.8684674 | X88: 0 | Y88: 0 | AA88: 1315.98 | AB88: =AB87+AA88+AD87 -> 81284.32176 | AC88: 33.8684674 | AE88: 0 | AF88: 0 | AH88: 1023 | AI88: =AI87+AH88+AK87 -> 63187.78489 | AJ88: 26.3282437 | AL88: =AL87 -> 0 | AM88: 0 | AO88: 0 | AP88: =AP87+AO88+AR87 -> 0 | AQ88: 0 | AS88: 0 | AT88: 0 | AV88: 292.98 | AW88: =AW87+AV88+AY87 -> 18096.53687 | AX88: 7.540223695 | AZ88: =AZ87 -> 0 | BA88: 0
B89: 62 | C89: 1315.98 | D89: 181.78 | E89: 1134.2 | F89: 144291.75 | G89: -1315.98 | K89: 1023 | L89: 204.98 | M89: 818.02 | N89: 163166.64 | O89: -1023 | S89: 62 | T89: 1315.98 | U89: 82600.30176 | V89: 34.4167924 | X89: 0 | Y89: 0 | AA89: 1315.98 | AB89: 82600.30176 | AC89: 34.4167924 | AE89: 0 | AF89: 0 | AH89: 1023 | AI89: =AI88+AH89 -> 64210.78489 | AJ89: 26.7544937 | AL89: 0 | AM89: 0 | AO89: 0 | AP89: =AP88+AO89 -> 0 | AQ89: 0 | AS89: 0 | AT89: 0 | AV89: 292.98 | AW89: =AW88+AV89 -> 18389.51687 | AX89: 7.662298695 | AZ89: 0 | BA89: 0
B90: 63 | C90: 1315.98 | D90: 180.36 | E90: 1135.62 | F90: 143156.13 | G90: -1315.98 | K90: 1023 | L90: 203.96 | M90: 819.04 | N90: 162347.6 | O90: -1023 | S90: 63 | T90: 1315.98 | U90: 83916.28176 | V90: 34.9651174 | X90: 0 | Y90: 0 | AA90: 1315.98 | AB90: 83916.28176 | AC90: 34.9651174 | AE90: 0 | AF90: 0 | AH90: 1023 | AI90: 65233.78489 | AJ90: 27.1807437 | AL90: 0 | AM90: 0 | AO90: 0 | AP90: 0 | AQ90: 0 | AS90: 0 | AT90: 0 | AV90: 292.98 | AW90: 18682.49687 | AX90: 7.784373695 | AZ90: 0 | BA90: 0
B91: 64 | C91: 1315.98 | D91: 178.95 | E91: 1137.03 | F91: 142019.1 | G91: -1315.98 | K91: 1023 | L91: 202.93 | M91: 820.07 | N91: 161527.53 | O91: -1023 | S91: 64 | T91: 1315.98 | U91: 85232.26176 | V91: 35.5134424 | X91: 0 | Y91: 0 | AA91: 1315.98 | AB91: 85232.26176 | AC91: 35.5134424 | AE91: 0 | AF91: 0 | AH91: 1023 | AI91: 66256.78489 | AJ91: 27.6069937 | AL91: 0 | AM91: 0 | AO91: 0 | AP91: 0 | AQ91: 0 | AS91: 0 | AT91: 0 | AV91: 292.98 | AW91: 18975.47687 | AX91: 7.906448695 | AZ91: 0 | BA91: 0
B92: 65 | C92: 1315.98 | D92: =ROUND(F91*$E$9/12,2) -> 177.52 | E92: 1138.46 | F92: 140880.64 | G92: -1315.98 | K92: 1023 | L92: =ROUND(N91*$E$9/12,2) -> 201.91 | M92: 821.09 | N92: 160706.44 | O92: -1023 | S92: 65 | T92: 1315.98 | U92: 86548.24176 | V92: =U92*$E$8/12 -> 36.0617674 | X92: 0 | Y92: =X91*$E$8/12 -> 0 | AA92: 1315.98 | AB92: 86548.24176 | AC92: =AB92*$E$8/12 -> 36.0617674 | AE92: 0 | AF92: =AE91*$E$8/12 -> 0 | AH92: 1023 | AI92: 67279.78489 | AJ92: =AI92*$E$8/12 -> 28.0332437 | AL92: 0 | AM92: =AL91*$E$8/12 -> 0 | AO92: 0 | AP92: 0 | AQ92: =AP92*$E$8/12 -> 0 | AS92: 0 | AT92: =AS91*$E$8/12 -> 0 | AV92: 292.98 | AW92: 19268.45687 | AX92: =AW92*$E$8/12 -> 8.028523695 | AZ92: 0 | BA92: =AZ91*$E$8/12 -> 0
B93: 66 | C93: =ROUND(-PMT($E$9/12,$E$10,$E$13,0,0),2) -> 1315.98 | D93: 176.1 | E93: =C93-D93 -> 1139.88 | F93: =F92-E93 -> 139740.76 | G93: =-C93 -> -1315.98 | K93: =ROUND(-PMT($E$9/12,$E$11,$E$14,0,0),2) -> 1023 | L93: 200.88 | M93: =K93-L93 -> 822.12 | N93: =N92-M93 -> 159884.32 | O93: =-K93 -> -1023 | S93: 66 | T93: =IF(C93>K93,C93,K93) -> 1315.98 | U93: 87864.22176 | V93: 36.6100924 | X93: =X92 -> 0 | Y93: 0 | AA93: 1315.98 | AB93: 87864.22176 | AC93: 36.6100924 | AE93: =AE92 -> 0 | AF93: 0 | AH93: =K93 -> 1023 | AI93: 68302.78489 | AJ93: 28.4594937 | AL93: 0 | AM93: 0 | AO93: =T93-C93 -> 0 | AP93: 0 | AQ93: 0 | AS93: =AS92 -> 0 | AT93: 0 | AV93: =T93-K93 -> 292.98 | AW93: 19561.43687 | AX93: 8.150598695 | AZ93: 0 | BA93: 0
B94: 67 | C94: 1315.98 | D94: 174.68 | E94: 1141.3 | F94: 138599.46 | G94: -1315.98 | K94: 1023 | L94: 199.86 | M94: 823.14 | N94: 159061.18 | O94: -1023 | S94: 67 | T94: 1315.98 | U94: =U93+T94 -> 89180.20176 | V94: 37.1584174 | X94: 0 | Y94: 0 | AA94: =C94 -> 1315.98 | AB94: =AB93+AA94 -> 89180.20176 | AC94: 37.1584174 | AE94: 0 | AF94: 0 | AH94: 1023 | AI94: 69325.78489 | AJ94: 28.8857437 | AL94: 0 | AM94: 0 | AO94: 0 | AP94: 0 | AQ94: 0 | AS94: 0 | AT94: 0 | AV94: 292.98 | AW94: 19854.41687 | AX94: 8.272673695 | AZ94: 0 | BA94: 0
B95: 68 | C95: 1315.98 | D95: 173.25 | E95: 1142.73 | F95: 137456.73 | G95: -1315.98 | K95: 1023 | L95: 198.83 | M95: 824.17 | N95: 158237.01 | O95: -1023 | S95: 68 | T95: 1315.98 | U95: 90496.18176 | V95: 37.7067424 | X95: 0 | Y95: 0 | AA95: 1315.98 | AB95: 90496.18176 | AC95: 37.7067424 | AE95: 0 | AF95: 0 | AH95: 1023 | AI95: 70348.78489 | AJ95: 29.3119937 | AL95: 0 | AM95: 0 | AO95: 0 | AP95: 0 | AQ95: 0 | AS95: 0 | AT95: 0 | AV95: 292.98 | AW95: 20147.39687 | AX95: 8.394748695 | AZ95: 0 | BA95: 0
B96: 69 | C96: 1315.98 | D96: 171.82 | E96: 1144.16 | F96: 136312.57 | G96: -1315.98 | K96: 1023 | L96: 197.8 | M96: 825.2 | N96: 157411.81 | O96: -1023 | S96: 69 | T96: 1315.98 | U96: 91812.16176 | V96: 38.2550674 | X96: 0 | Y96: 0 | AA96: 1315.98 | AB96: 91812.16176 | AC96: 38.2550674 | AE96: 0 | AF96: 0 | AH96: 1023 | AI96: 71371.78489 | AJ96: 29.7382437 | AL96: 0 | AM96: 0 | AO96: 0 | AP96: 0 | AQ96: 0 | AS96: 0 | AT96: 0 | AV96: 292.98 | AW96: 20440.37687 | AX96: 8.516823695 | AZ96: 0 | BA96: 0
B97: 70 | C97: 1315.98 | D97: 170.39 | E97: 1145.59 | F97: 135166.98 | G97: -1315.98 | K97: 1023 | L97: 196.76 | M97: 826.24 | N97: 156585.57 | O97: -1023 | S97: 70 | T97: 1315.98 | U97: 93128.14176 | V97: 38.8033924 | X97: 0 | Y97: 0 | AA97: 1315.98 | AB97: 93128.14176 | AC97: 38.8033924 | AE97: 0 | AF97: 0 | AH97: 1023 | AI97: 72394.78489 | AJ97: 30.1644937 | AL97: 0 | AM97: 0 | AO97: 0 | AP97: 0 | AQ97: 0 | AS97: 0 | AT97: 0 | AV97: 292.98 | AW97: 20733.35687 | AX97: 8.638898695 | AZ97: 0 | BA97: 0
B98: 71 | C98: 1315.98 | D98: 168.96 | E98: 1147.02 | F98: 134019.96 | G98: -1315.98 | K98: 1023 | L98: 195.73 | M98: 827.27 | N98: 155758.3 | O98: -1023 | S98: 71 | T98: 1315.98 | U98: 94444.12176 | V98: 39.3517174 | X98: 0 | Y98: 0 | AA98: 1315.98 | AB98: 94444.12176 | AC98: 39.3517174 | AE98: 0 | AF98: 0 | AH98: 1023 | AI98: 73417.78489 | AJ98: 30.5907437 | AL98: 0 | AM98: 0 | AO98: 0 | AP98: 0 | AQ98: 0 | AS98: 0 | AT98: 0 | AV98: 292.98 | AW98: 21026.33687 | AX98: 8.760973695 | AZ98: 0 | BA98: 0
B99: 72 | C99: 1315.98 | D99: 167.52 | E99: 1148.46 | F99: 132871.5 | G99: -1315.98 | K99: 1023 | L99: 194.7 | M99: 828.3 | N99: 154930 | O99: -1023 | S99: 72 | T99: 1315.98 | U99: 95760.10176 | V99: 39.9000424 | W99: =SUM(V88:V99) -> 442.6110588 | X99: =X98+Z99 -> 0 | Y99: 0 | Z99: =SUM(Y88:Y99) -> 0 | AA99: 1315.98 | AB99: 95760.10176 | AC99: 39.9000424 | AD99: =SUM(AC88:AC99) -> 442.6110588 | AE99: =AE98+AG99 -> 0 | AF99: 0 | AG99: =SUM(AF88:AF99) -> 0 | AH99: 1023 | AI99: 74440.78489 | AJ99: 31.0169937 | AK99: =SUM(AJ88:AJ99) -> 344.0714244 | AL99: =AL98+AN99 -> 0 | AM99: 0 | AN99: =SUM(AM88:AM99) -> 0 | AO99: 0 | AP99: 0 | AQ99: 0 | AR99: =SUM(AQ88:AQ99) -> 0 | AS99: =AS98+AU99 -> 0 | AT99: 0 | AU99: =SUM(AT88:AT99) -> 0 | AV99: 292.98 | AW99: 21319.31687 | AX99: 8.883048695 | AY99: =SUM(AX88:AX99) -> 98.53963434 | AZ99: =AZ98+BB99 -> 0 | BA99: 0 | BB99: =SUM(BA88:BA99) -> 0
B100: 73 | C100: 1315.98 | D100: 166.09 | E100: 1149.89 | F100: 131721.61 | G100: -1315.98 | K100: 1023 | L100: 193.66 | M100: 829.34 | N100: 154100.66 | O100: -1023 | S100: 73 | T100: 1315.98 | U100: =U99+T100+W99 -> 97518.69282 | V100: 40.63278867 | X100: 0 | Y100: 0 | AA100: 1315.98 | AB100: =AB99+AA100+AD99 -> 97518.69282 | AC100: 40.63278867 | AE100: 0 | AF100: 0 | AH100: 1023 | AI100: =AI99+AH100+AK99 -> 75807.85631 | AJ100: 31.5866068 | AL100: =AL99 -> 0 | AM100: 0 | AO100: 0 | AP100: =AP99+AO100+AR99 -> 0 | AQ100: 0 | AS100: 0 | AT100: 0 | AV100: 292.98 | AW100: =AW99+AV100+AY99 -> 21710.8365 | AX100: 9.046181876 | AZ100: =AZ99 -> 0 | BA100: 0
B101: 74 | C101: 1315.98 | D101: 164.65 | E101: 1151.33 | F101: 130570.28 | G101: -1315.98 | K101: 1023 | L101: 192.63 | M101: 830.37 | N101: 153270.29 | O101: -1023 | S101: 74 | T101: 1315.98 | U101: 98834.67282 | V101: 41.18111367 | X101: 0 | Y101: 0 | AA101: 1315.98 | AB101: 98834.67282 | AC101: 41.18111367 | AE101: 0 | AF101: 0 | AH101: 1023 | AI101: =AI100+AH101 -> 76830.85631 | AJ101: 32.0128568 | AL101: 0 | AM101: 0 | AO101: 0 | AP101: =AP100+AO101 -> 0 | AQ101: 0 | AS101: 0 | AT101: 0 | AV101: 292.98 | AW101: =AW100+AV101 -> 22003.8165 | AX101: 9.168256876 | AZ101: 0 | BA101: 0
B102: 75 | C102: 1315.98 | D102: 163.21 | E102: 1152.77 | F102: 129417.51 | G102: -1315.98 | K102: 1023 | L102: 191.59 | M102: 831.41 | N102: 152438.88 | O102: -1023 | S102: 75 | T102: 1315.98 | U102: 100150.6528 | V102: 41.72943867 | X102: 0 | Y102: 0 | AA102: 1315.98 | AB102: 100150.6528 | AC102: 41.72943867 | AE102: 0 | AF102: 0 | AH102: 1023 | AI102: 77853.85631 | AJ102: 32.4391068 | AL102: 0 | AM102: 0 | AO102: 0 | AP102: 0 | AQ102: 0 | AS102: 0 | AT102: 0 | AV102: 292.98 | AW102: 22296.7965 | AX102: 9.290331876 | AZ102: 0 | BA102: 0
B103: 76 | C103: 1315.98 | D103: 161.77 | E103: 1154.21 | F103: 128263.3 | G103: -1315.98 | K103: 1023 | L103: 190.55 | M103: 832.45 | N103: 151606.43 | O103: -1023 | S103: 76 | T103: 1315.98 | U103: 101466.6328 | V103: 42.27776367 | X103: 0 | Y103: 0 | AA103: 1315.98 | AB103: 101466.6328 | AC103: 42.27776367 | AE103: 0 | AF103: 0 | AH103: 1023 | AI103: 78876.85631 | AJ103: 32.8653568 | AL103: 0 | AM103: 0 | AO103: 0 | AP103: 0 | AQ103: 0 | AS103: 0 | AT103: 0 | AV103: 292.98 | AW103: 22589.7765 | AX103: 9.412406876 | AZ103: 0 | BA103: 0
B104: 77 | C104: 1315.98 | D104: 160.33 | E104: 1155.65 | F104: 127107.65 | G104: -1315.98 | K104: 1023 | L104: 189.51 | M104: 833.49 | N104: 150772.94 | O104: -1023 | S104: 77 | T104: 1315.98 | U104: 102782.6128 | V104: 42.82608867 | X104: 0 | Y104: 0 | AA104: 1315.98 | AB104: 102782.6128 | AC104: 42.82608867 | AE104: 0 | AF104: 0 | AH104: 1023 | AI104: 79899.85631 | AJ104: 33.2916068 | AL104: 0 | AM104: 0 | AO104: 0 | AP104: 0 | AQ104: 0 | AS104: 0 | AT104: 0 | AV104: 292.98 | AW104: 22882.7565 | AX104: 9.534481876 | AZ104: 0 | BA104: 0
B105: 78 | C105: 1315.98 | D105: 158.88 | E105: 1157.1 | F105: 125950.55 | G105: -1315.98 | K105: 1023 | L105: 188.47 | M105: 834.53 | N105: 149938.41 | O105: -1023 | S105: 78 | T105: 1315.98 | U105: 104098.5928 | V105: 43.37441367 | X105: 0 | Y105: 0 | AA105: 1315.98 | AB105: 104098.5928 | AC105: 43.37441367 | AE105: 0 | AF105: 0 | AH105: 1023 | AI105: 80922.85631 | AJ105: 33.7178568 | AL105: 0 | AM105: 0 | AO105: 0 | AP105: 0 | AQ105: 0 | AS105: 0 | AT105: 0 | AV105: 292.98 | AW105: 23175.7365 | AX105: 9.656556876 | AZ105: 0 | BA105: 0
B106: 79 | C106: 1315.98 | D106: 157.44 | E106: 1158.54 | F106: 124792.01 | G106: -1315.98 | K106: 1023 | L106: 187.42 | M106: 835.58 | N106: 149102.83 | O106: -1023 | S106: 79 | T106: 1315.98 | U106: 105414.5728 | V106: 43.92273867 | X106: 0 | Y106: 0 | AA106: 1315.98 | AB106: 105414.5728 | AC106: 43.92273867 | AE106: 0 | AF106: 0 | AH106: 1023 | AI106: 81945.85631 | AJ106: 34.1441068 | AL106: 0 | AM106: 0 | AO106: 0 | AP106: 0 | AQ106: 0 | AS106: 0 | AT106: 0 | AV106: 292.98 | AW106: 23468.7165 | AX106: 9.778631876 | AZ106: 0 | BA106: 0
B107: 80 | C107: 1315.98 | D107: 155.99 | E107: 1159.99 | F107: 123632.02 | G107: -1315.98 | K107: 1023 | L107: 186.38 | M107: 836.62 | N107: 148266.21 | O107: -1023 | S107: 80 | T107: 1315.98 | U107: 106730.5528 | V107: 44.47106367 | X107: 0 | Y107: 0 | AA107: 1315.98 | AB107: 106730.5528 | AC107: 44.47106367 | AE107: 0 | AF107: 0 | AH107: 1023 | AI107: 82968.85631 | AJ107: 34.5703568 | AL107: 0 | AM107: 0 | AO107: 0 | AP107: 0 | AQ107: 0 | AS107: 0 | AT107: 0 | AV107: 292.98 | AW107: 23761.6965 | AX107: 9.900706876 | AZ107: 0 | BA107: 0
B108: 81 | C108: 1315.98 | D108: 154.54 | E108: 1161.44 | F108: 122470.58 | G108: -1315.98 | K108: 1023 | L108: 185.33 | M108: 837.67 | N108: 147428.54 | O108: -1023 | S108: 81 | T108: 1315.98 | U108: 108046.5328 | V108: 45.01938867 | X108: 0 | Y108: 0 | AA108: 1315.98 | AB108: 108046.5328 | AC108: 45.01938867 | AE108: 0 | AF108: 0 | AH108: 1023 | AI108: 83991.85631 | AJ108: 34.9966068 | AL108: 0 | AM108: 0 | AO108: 0 | AP108: 0 | AQ108: 0 | AS108: 0 | AT108: 0 | AV108: 292.98 | AW108: 24054.6765 | AX108: 10.02278188 | AZ108: 0 | BA108: 0
B109: 82 | C109: 1315.98 | D109: 153.09 | E109: 1162.89 | F109: 121307.69 | G109: -1315.98 | K109: 1023 | L109: 184.29 | M109: 838.71 | N109: 146589.83 | O109: -1023 | S109: 82 | T109: 1315.98 | U109: 109362.5128 | V109: 45.56771367 | X109: 0 | Y109: 0 | AA109: 1315.98 | AB109: 109362.5128 | AC109: 45.56771367 | AE109: 0 | AF109: 0 | AH109: 1023 | AI109: 85014.85631 | AJ109: 35.4228568 | AL109: 0 | AM109: 0 | AO109: 0 | AP109: 0 | AQ109: 0 | AS109: 0 | AT109: 0 | AV109: 292.98 | AW109: 24347.6565 | AX109: 10.14485688 | AZ109: 0 | BA109: 0
B110: 83 | C110: 1315.98 | D110: 151.63 | E110: 1164.35 | F110: 120143.34 | G110: -1315.98 | K110: 1023 | L110: 183.24 | M110: 839.76 | N110: 145750.07 | O110: -1023 | S110: 83 | T110: 1315.98 | U110: 110678.4928 | V110: 46.11603867 | X110: 0 | Y110: 0 | AA110: 1315.98 | AB110: 110678.4928 | AC110: 46.11603867 | AE110: 0 | AF110: 0 | AH110: 1023 | AI110: 86037.85631 | AJ110: 35.8491068 | AL110: 0 | AM110: 0 | AO110: 0 | AP110: 0 | AQ110: 0 | AS110: 0 | AT110: 0 | AV110: 292.98 | AW110: 24640.6365 | AX110: 10.26693188 | AZ110: 0 | BA110: 0
B111: 84 | C111: 1315.98 | D111: 150.18 | E111: 1165.8 | F111: 118977.54 | G111: -1315.98 | K111: 1023 | L111: 182.19 | M111: 840.81 | N111: 144909.26 | O111: -1023 | S111: 84 | T111: 1315.98 | U111: 111994.4728 | V111: 46.66436367 | W111: =SUM(V100:V111) -> 523.7829141 | X111: =X110+Z111 -> 0 | Y111: 0 | Z111: =SUM(Y100:Y111) -> 0 | AA111: 1315.98 | AB111: 111994.4728 | AC111: 46.66436367 | AD111: =SUM(AC100:AC111) -> 523.7829141 | AE111: =AE110+AG111 -> 0 | AF111: 0 | AG111: =SUM(AF100:AF111) -> 0 | AH111: 1023 | AI111: 87060.85631 | AJ111: 36.2753568 | AK111: =SUM(AJ100:AJ111) -> 407.1717816 | AL111: =AL110+AN111 -> 0 | AM111: 0 | AN111: =SUM(AM100:AM111) -> 0 | AO111: 0 | AP111: 0 | AQ111: 0 | AR111: =SUM(AQ100:AQ111) -> 0 | AS111: =AS110+AU111 -> 0 | AT111: 0 | AU111: =SUM(AT100:AT111) -> 0 | AV111: 292.98 | AW111: 24933.6165 | AX111: 10.38900688 | AY111: =SUM(AX100:AX111) -> 116.6111325 | AZ111: =AZ110+BB111 -> 0 | BA111: 0 | BB111: =SUM(BA100:BA111) -> 0
B112: 85 | C112: 1315.98 | D112: 148.72 | E112: 1167.26 | F112: 117810.28 | G112: -1315.98 | K112: 1023 | L112: 181.14 | M112: 841.86 | N112: 144067.4 | O112: -1023 | S112: 85 | T112: 1315.98 | U112: =U111+T112+W111 -> 113834.2357 | V112: 47.43093155 | X112: 0 | Y112: 0 | AA112: 1315.98 | AB112: =AB111+AA112+AD111 -> 113834.2357 | AC112: 47.43093155 | AE112: 0 | AF112: 0 | AH112: 1023 | AI112: =AI111+AH112+AK111 -> 88491.02809 | AJ112: 36.87126171 | AL112: =AL111 -> 0 | AM112: 0 | AO112: 0 | AP112: =AP111+AO112+AR111 -> 0 | AQ112: 0 | AS112: 0 | AT112: 0 | AV112: 292.98 | AW112: =AW111+AV112+AY111 -> 25343.20764 | AX112: 10.55966985 | AZ112: =AZ111 -> 0 | BA112: 0
B113: 86 | C113: 1315.98 | D113: 147.26 | E113: 1168.72 | F113: 116641.56 | G113: -1315.98 | K113: 1023 | L113: 180.08 | M113: 842.92 | N113: 143224.48 | O113: -1023 | S113: 86 | T113: 1315.98 | U113: 115150.2157 | V113: 47.97925655 | X113: 0 | Y113: 0 | AA113: 1315.98 | AB113: 115150.2157 | AC113: 47.97925655 | AE113: 0 | AF113: 0 | AH113: 1023 | AI113: =AI112+AH113 -> 89514.02809 | AJ113: 37.29751171 | AL113: 0 | AM113: 0 | AO113: 0 | AP113: =AP112+AO113 -> 0 | AQ113: 0 | AS113: 0 | AT113: 0 | AV113: 292.98 | AW113: =AW112+AV113 -> 25636.18764 | AX113: 10.68174485 | AZ113: 0 | BA113: 0
B114: 87 | C114: 1315.98 | D114: 145.8 | E114: 1170.18 | F114: 115471.38 | G114: -1315.98 | K114: 1023 | L114: 179.03 | M114: 843.97 | N114: 142380.51 | O114: -1023 | S114: 87 | T114: 1315.98 | U114: 116466.1957 | V114: 48.52758155 | X114: 0 | Y114: 0 | AA114: 1315.98 | AB114: 116466.1957 | AC114: 48.52758155 | AE114: 0 | AF114: 0 | AH114: 1023 | AI114: 90537.02809 | AJ114: 37.72376171 | AL114: 0 | AM114: 0 | AO114: 0 | AP114: 0 | AQ114: 0 | AS114: 0 | AT114: 0 | AV114: 292.98 | AW114: 25929.16764 | AX114: 10.80381985 | AZ114: 0 | BA114: 0
B115: 88 | C115: 1315.98 | D115: 144.34 | E115: 1171.64 | F115: 114299.74 | G115: -1315.98 | K115: 1023 | L115: 177.98 | M115: 845.02 | N115: 141535.49 | O115: -1023 | S115: 88 | T115: 1315.98 | U115: 117782.1757 | V115: 49.07590655 | X115: 0 | Y115: 0 | AA115: 1315.98 | AB115: 117782.1757 | AC115: 49.07590655 | AE115: 0 | AF115: 0 | AH115: 1023 | AI115: 91560.02809 | AJ115: 38.15001171 | AL115: 0 | AM115: 0 | AO115: 0 | AP115: 0 | AQ115: 0 | AS115: 0 | AT115: 0 | AV115: 292.98 | AW115: 26222.14764 | AX115: 10.92589485 | AZ115: 0 | BA115: 0
B116: 89 | C116: 1315.98 | D116: 142.87 | E116: 1173.11 | F116: 113126.63 | G116: -1315.98 | K116: 1023 | L116: 176.92 | M116: 846.08 | N116: 140689.41 | O116: -1023 | S116: 89 | T116: 1315.98 | U116: 119098.1557 | V116: 49.62423155 | X116: 0 | Y116: 0 | AA116: 1315.98 | AB116: 119098.1557 | AC116: 49.62423155 | AE116: 0 | AF116: 0 | AH116: 1023 | AI116: 92583.02809 | AJ116: 38.57626171 | AL116: 0 | AM116: 0 | AO116: 0 | AP116: 0 | AQ116: 0 | AS116: 0 | AT116: 0 | AV116: 292.98 | AW116: 26515.12764 | AX116: 11.04796985 | AZ116: 0 | BA116: 0
B117: 90 | C117: 1315.98 | D117: 141.41 | E117: 1174.57 | F117: 111952.06 | G117: -1315.98 | K117: 1023 | L117: 175.86 | M117: 847.14 | N117: 139842.27 | O117: -1023 | S117: 90 | T117: 1315.98 | U117: 120414.1357 | V117: 50.17255655 | X117: 0 | Y117: 0 | AA117: 1315.98 | AB117: 120414.1357 | AC117: 50.17255655 | AE117: 0 | AF117: 0 | AH117: 1023 | AI117: 93606.02809 | AJ117: 39.00251171 | AL117: 0 | AM117: 0 | AO117: 0 | AP117: 0 | AQ117: 0 | AS117: 0 | AT117: 0 | AV117: 292.98 | AW117: 26808.10764 | AX117: 11.17004485 | AZ117: 0 | BA117: 0
B118: 91 | C118: 1315.98 | D118: 139.94 | E118: 1176.04 | F118: 110776.02 | G118: -1315.98 | K118: 1023 | L118: 174.8 | M118: 848.2 | N118: 138994.07 | O118: -1023 | S118: 91 | T118: 1315.98 | U118: 121730.1157 | V118: 50.72088155 | X118: 0 | Y118: 0 | AA118: 1315.98 | AB118: 121730.1157 | AC118: 50.72088155 | AE118: 0 | AF118: 0 | AH118: 1023 | AI118: 94629.02809 | AJ118: 39.42876171 | AL118: 0 | AM118: 0 | AO118: 0 | AP118: 0 | AQ118: 0 | AS118: 0 | AT118: 0 | AV118: 292.98 | AW118: 27101.08764 | AX118: 11.29211985 | AZ118: 0 | BA118: 0
B119: 92 | C119: 1315.98 | D119: 138.47 | E119: 1177.51 | F119: 109598.51 | G119: -1315.98 | K119: 1023 | L119: 173.74 | M119: 849.26 | N119: 138144.81 | O119: -1023 | S119: 92 | T119: 1315.98 | U119: 123046.0957 | V119: 51.26920655 | X119: 0 | Y119: 0 | AA119: 1315.98 | AB119: 123046.0957 | AC119: 51.26920655 | AE119: 0 | AF119: 0 | AH119: 1023 | AI119: 95652.02809 | AJ119: 39.85501171 | AL119: 0 | AM119: 0 | AO119: 0 | AP119: 0 | AQ119: 0 | AS119: 0 | AT119: 0 | AV119: 292.98 | AW119: 27394.06764 | AX119: 11.41419485 | AZ119: 0 | BA119: 0
B120: 93 | C120: 1315.98 | D120: 137 | E120: 1178.98 | F120: 108419.53 | G120: -1315.98 | K120: 1023 | L120: 172.68 | M120: 850.32 | N120: 137294.49 | O120: -1023 | S120: 93 | T120: 1315.98 | U120: 124362.0757 | V120: 51.81753155 | X120: 0 | Y120: 0 | AA120: 1315.98 | AB120: 124362.0757 | AC120: 51.81753155 | AE120: 0 | AF120: 0 | AH120: 1023 | AI120: 96675.02809 | AJ120: 40.28126171 | AL120: 0 | AM120: 0 | AO120: 0 | AP120: 0 | AQ120: 0 | AS120: 0 | AT120: 0 | AV120: 292.98 | AW120: 27687.04764 | AX120: 11.53626985 | AZ120: 0 | BA120: 0
B121: 94 | C121: 1315.98 | D121: 135.52 | E121: 1180.46 | F121: 107239.07 | G121: -1315.98 | K121: 1023 | L121: 171.62 | M121: 851.38 | N121: 136443.11 | O121: -1023 | S121: 94 | T121: 1315.98 | U121: 125678.0557 | V121: 52.36585655 | X121: 0 | Y121: 0 | AA121: 1315.98 | AB121: 125678.0557 | AC121: 52.36585655 | AE121: 0 | AF121: 0 | AH121: 1023 | AI121: 97698.02809 | AJ121: 40.70751171 | AL121: 0 | AM121: 0 | AO121: 0 | AP121: 0 | AQ121: 0 | AS121: 0 | AT121: 0 | AV121: 292.98 | AW121: 27980.02764 | AX121: 11.65834485 | AZ121: 0 | BA121: 0
B122: 95 | C122: 1315.98 | D122: 134.05 | E122: 1181.93 | F122: 106057.14 | G122: -1315.98 | K122: 1023 | L122: 170.55 | M122: 852.45 | N122: 135590.66 | O122: -1023 | S122: 95 | T122: 1315.98 | U122: 126994.0357 | V122: 52.91418155 | X122: 0 | Y122: 0 | AA122: 1315.98 | AB122: 126994.0357 | AC122: 52.91418155 | AE122: 0 | AF122: 0 | AH122: 1023 | AI122: 98721.02809 | AJ122: 41.13376171 | AL122: 0 | AM122: 0 | AO122: 0 | AP122: 0 | AQ122: 0 | AS122: 0 | AT122: 0 | AV122: 292.98 | AW122: 28273.00764 | AX122: 11.78041985 | AZ122: 0 | BA122: 0
B123: 96 | C123: 1315.98 | D123: 132.57 | E123: 1183.41 | F123: 104873.73 | G123: -1315.98 | K123: 1023 | L123: 169.49 | M123: 853.51 | N123: 134737.15 | O123: -1023 | S123: 96 | T123: 1315.98 | U123: 128310.0157 | V123: 53.46250655 | W123: =SUM(V112:V123) -> 605.3606286 | X123: =X122+Z123 -> 0 | Y123: 0 | Z123: =SUM(Y112:Y123) -> 0 | AA123: 1315.98 | AB123: 128310.0157 | AC123: 53.46250655 | AD123: =SUM(AC112:AC123) -> 605.3606286 | AE123: =AE122+AG123 -> 0 | AF123: 0 | AG123: =SUM(AF112:AF123) -> 0 | AH123: 1023 | AI123: 99744.02809 | AJ123: 41.56001171 | AK123: =SUM(AJ112:AJ123) -> 470.5876405 | AL123: =AL122+AN123 -> 0 | AM123: 0 | AN123: =SUM(AM112:AM123) -> 0 | AO123: 0 | AP123: 0 | AQ123: 0 | AR123: =SUM(AQ112:AQ123) -> 0 | AS123: =AS122+AU123 -> 0 | AT123: 0 | AU123: =SUM(AT112:AT123) -> 0 | AV123: 292.98 | AW123: 28565.98764 | AX123: 11.90249485 | AY123: =SUM(AX112:AX123) -> 134.7729882 | AZ123: =AZ122+BB123 -> 0 | BA123: 0 | BB123: =SUM(BA112:BA123) -> 0
B124: 97 | C124: 1315.98 | D124: =ROUND(F123*$E$9/12,2) -> 131.09 | E124: 1184.89 | F124: 103688.84 | G124: -1315.98 | K124: 1023 | L124: 168.42 | M124: 854.58 | N124: 133882.57 | O124: -1023 | S124: 97 | T124: 1315.98 | U124: =U123+T124+W123 -> 130231.3564 | V124: 54.26306515 | X124: 0 | Y124: 0 | AA124: 1315.98 | AB124: =AB123+AA124+AD123 -> 130231.3564 | AC124: 54.26306515 | AE124: 0 | AF124: 0 | AH124: 1023 | AI124: =AI123+AH124+AK123 -> 101237.6157 | AJ124: 42.18233989 | AL124: =AL123 -> 0 | AM124: 0 | AO124: 0 | AP124: =AP123+AO124+AR123 -> 0 | AQ124: 0 | AS124: 0 | AT124: 0 | AV124: 292.98 | AW124: =AW123+AV124+AY123 -> 28993.74062 | AX124: 12.08072526 | AZ124: =AZ123 -> 0 | BA124: 0
B125: 98 | C125: 1315.98 | D125: 129.61 | E125: 1186.37 | F125: 102502.47 | G125: -1315.98 | K125: 1023 | L125: 167.35 | M125: 855.65 | N125: 133026.92 | O125: -1023 | S125: 98 | T125: 1315.98 | U125: 131547.3364 | V125: 54.81139015 | X125: 0 | Y125: 0 | AA125: 1315.98 | AB125: 131547.3364 | AC125: 54.81139015 | AE125: 0 | AF125: 0 | AH125: 1023 | AI125: =AI124+AH125 -> 102260.6157 | AJ125: 42.60858989 | AL125: 0 | AM125: 0 | AO125: 0 | AP125: =AP124+AO125 -> 0 | AQ125: 0 | AS125: 0 | AT125: 0 | AV125: 292.98 | AW125: =AW124+AV125 -> 29286.72062 | AX125: 12.20280026 | AZ125: 0 | BA125: 0
B126: 99 | C126: 1315.98 | D126: 128.13 | E126: 1187.85 | F126: 101314.62 | G126: -1315.98 | K126: 1023 | L126: 166.28 | M126: 856.72 | N126: 132170.2 | O126: -1023 | S126: 99 | T126: 1315.98 | U126: 132863.3164 | V126: 55.35971515 | X126: 0 | Y126: 0 | AA126: 1315.98 | AB126: 132863.3164 | AC126: 55.35971515 | AE126: 0 | AF126: 0 | AH126: 1023 | AI126: 103283.6157 | AJ126: 43.03483989 | AL126: 0 | AM126: 0 | AO126: 0 | AP126: 0 | AQ126: 0 | AS126: 0 | AT126: 0 | AV126: 292.98 | AW126: 29579.70062 | AX126: 12.32487526 | AZ126: 0 | BA126: 0
B127: 100 | C127: 1315.98 | D127: 126.64 | E127: 1189.34 | F127: 100125.28 | G127: -1315.98 | K127: 1023 | L127: 165.21 | M127: 857.79 | N127: 131312.41 | O127: -1023 | S127: 100 | T127: 1315.98 | U127: 134179.2964 | V127: 55.90804015 | X127: 0 | Y127: 0 | AA127: 1315.98 | AB127: 134179.2964 | AC127: 55.90804015 | AE127: 0 | AF127: 0 | AH127: 1023 | AI127: 104306.6157 | AJ127: 43.46108989 | AL127: 0 | AM127: 0 | AO127: 0 | AP127: 0 | AQ127: 0 | AS127: 0 | AT127: 0 | AV127: 292.98 | AW127: 29872.68062 | AX127: 12.44695026 | AZ127: 0 | BA127: 0
B128: 101 | C128: 1315.98 | D128: 125.16 | E128: 1190.82 | F128: 98934.46 | G128: -1315.98 | K128: 1023 | L128: 164.14 | M128: 858.86 | N128: 130453.55 | O128: -1023 | S128: 101 | T128: 1315.98 | U128: 135495.2764 | V128: 56.45636515 | X128: 0 | Y128: 0 | AA128: 1315.98 | AB128: 135495.2764 | AC128: 56.45636515 | AE128: 0 | AF128: 0 | AH128: 1023 | AI128: 105329.6157 | AJ128: 43.88733989 | AL128: 0 | AM128: 0 | AO128: 0 | AP128: 0 | AQ128: 0 | AS128: 0 | AT128: 0 | AV128: 292.98 | AW128: 30165.66062 | AX128: 12.56902526 | AZ128: 0 | BA128: 0
B129: 102 | C129: 1315.98 | D129: 123.67 | E129: 1192.31 | F129: 97742.15 | G129: -1315.98 | K129: 1023 | L129: 163.07 | M129: 859.93 | N129: 129593.62 | O129: -1023 | S129: 102 | T129: 1315.98 | U129: 136811.2564 | V129: 57.00469015 | X129: 0 | Y129: 0 | AA129: 1315.98 | AB129: 136811.2564 | AC129: 57.00469015 | AE129: 0 | AF129: 0 | AH129: 1023 | AI129: 106352.6157 | AJ129: 44.31358989 | AL129: 0 | AM129: 0 | AO129: 0 | AP129: 0 | AQ129: 0 | AS129: 0 | AT129: 0 | AV129: 292.98 | AW129: 30458.64062 | AX129: 12.69110026 | AZ129: 0 | BA129: 0
B130: 103 | C130: 1315.98 | D130: 122.18 | E130: 1193.8 | F130: 96548.35 | G130: -1315.98 | K130: 1023 | L130: 161.99 | M130: 861.01 | N130: 128732.61 | O130: -1023 | S130: 103 | T130: 1315.98 | U130: 138127.2364 | V130: 57.55301515 | X130: 0 | Y130: 0 | AA130: 1315.98 | AB130: 138127.2364 | AC130: 57.55301515 | AE130: 0 | AF130: 0 | AH130: 1023 | AI130: 107375.6157 | AJ130: 44.73983989 | AL130: 0 | AM130: 0 | AO130: 0 | AP130: 0 | AQ130: 0 | AS130: 0 | AT130: 0 | AV130: 292.98 | AW130: 30751.62062 | AX130: 12.81317526 | AZ130: 0 | BA130: 0
B131: 104 | C131: 1315.98 | D131: 120.69 | E131: 1195.29 | F131: 95353.06 | G131: -1315.98 | K131: 1023 | L131: 160.92 | M131: 862.08 | N131: 127870.53 | O131: -1023 | S131: 104 | T131: 1315.98 | U131: 139443.2164 | V131: 58.10134015 | X131: 0 | Y131: 0 | AA131: 1315.98 | AB131: 139443.2164 | AC131: 58.10134015 | AE131: 0 | AF131: 0 | AH131: 1023 | AI131: 108398.6157 | AJ131: 45.16608989 | AL131: 0 | AM131: 0 | AO131: 0 | AP131: 0 | AQ131: 0 | AS131: 0 | AT131: 0 | AV131: 292.98 | AW131: 31044.60062 | AX131: 12.93525026 | AZ131: 0 | BA131: 0
B132: 105 | C132: 1315.98 | D132: 119.19 | E132: 1196.79 | F132: 94156.27 | G132: -1315.98 | K132: 1023 | L132: 159.84 | M132: 863.16 | N132: 127007.37 | O132: -1023 | S132: 105 | T132: 1315.98 | U132: 140759.1964 | V132: 58.64966515 | X132: 0 | Y132: 0 | AA132: 1315.98 | AB132: 140759.1964 | AC132: 58.64966515 | AE132: 0 | AF132: 0 | AH132: 1023 | AI132: 109421.6157 | AJ132: 45.59233989 | AL132: 0 | AM132: 0 | AO132: 0 | AP132: 0 | AQ132: 0 | AS132: 0 | AT132: 0 | AV132: 292.98 | AW132: 31337.58062 | AX132: 13.05732526 | AZ132: 0 | BA132: 0
B133: 106 | C133: 1315.98 | D133: 117.7 | E133: 1198.28 | F133: 92957.99 | G133: -1315.98 | K133: 1023 | L133: 158.76 | M133: 864.24 | N133: 126143.13 | O133: -1023 | S133: 106 | T133: 1315.98 | U133: 142075.1764 | V133: 59.19799015 | X133: 0 | Y133: 0 | AA133: 1315.98 | AB133: 142075.1764 | AC133: 59.19799015 | AE133: 0 | AF133: 0 | AH133: 1023 | AI133: 110444.6157 | AJ133: 46.01858989 | AL133: 0 | AM133: 0 | AO133: 0 | AP133: 0 | AQ133: 0 | AS133: 0 | AT133: 0 | AV133: 292.98 | AW133: 31630.56062 | AX133: 13.17940026 | AZ133: 0 | BA133: 0
B134: 107 | C134: 1315.98 | D134: 116.2 | E134: 1199.78 | F134: 91758.21 | G134: -1315.98 | K134: 1023 | L134: 157.68 | M134: 865.32 | N134: 125277.81 | O134: -1023 | S134: 107 | T134: 1315.98 | U134: 143391.1564 | V134: 59.74631515 | X134: 0 | Y134: 0 | AA134: 1315.98 | AB134: 143391.1564 | AC134: 59.74631515 | AE134: 0 | AF134: 0 | AH134: 1023 | AI134: 111467.6157 | AJ134: 46.44483989 | AL134: 0 | AM134: 0 | AO134: 0 | AP134: 0 | AQ134: 0 | AS134: 0 | AT134: 0 | AV134: 292.98 | AW134: 31923.54062 | AX134: 13.30147526 | AZ134: 0 | BA134: 0
B135: 108 | C135: 1315.98 | D135: 114.7 | E135: 1201.28 | F135: 90556.93 | G135: -1315.98 | K135: 1023 | L135: 156.6 | M135: 866.4 | N135: 124411.41 | O135: -1023 | S135: 108 | T135: 1315.98 | U135: 144707.1364 | V135: 60.29464015 | W135: =SUM(V124:V135) -> 687.3462318 | X135: =X134+Z135 -> 0 | Y135: 0 | Z135: =SUM(Y124:Y135) -> 0 | AA135: 1315.98 | AB135: 144707.1364 | AC135: 60.29464015 | AD135: =SUM(AC124:AC135) -> 687.3462318 | AE135: =AE134+AG135 -> 0 | AF135: 0 | AG135: =SUM(AF124:AF135) -> 0 | AH135: 1023 | AI135: 112490.6157 | AJ135: 46.87108989 | AK135: =SUM(AJ124:AJ135) -> 534.3205787 | AL135: =AL134+AN135 -> 0 | AM135: 0 | AN135: =SUM(AM124:AM135) -> 0 | AO135: 0 | AP135: 0 | AQ135: 0 | AR135: =SUM(AQ124:AQ135) -> 0 | AS135: =AS134+AU135 -> 0 | AT135: 0 | AU135: =SUM(AT124:AT135) -> 0 | AV135: 292.98 | AW135: 32216.52062 | AX135: 13.42355026 | AY135: =SUM(AX124:AX135) -> 153.0256531 | AZ135: =AZ134+BB135 -> 0 | BA135: 0 | BB135: =SUM(BA124:BA135) -> 0
B136: 109 | C136: 1315.98 | D136: 113.2 | E136: 1202.78 | F136: 89354.15 | G136: -1315.98 | K136: 1023 | L136: 155.51 | M136: 867.49 | N136: 123543.92 | O136: -1023 | S136: 109 | T136: 1315.98 | U136: =U135+T136+W135 -> 146710.4626 | V136: 61.12935941 | X136: 0 | Y136: 0 | AA136: 1315.98 | AB136: =AB135+AA136+AD135 -> 146710.4626 | AC136: 61.12935941 | AE136: 0 | AF136: 0 | AH136: 1023 | AI136: =AI135+AH136+AK135 -> 114047.9363 | AJ136: 47.51997346 | AL136: =AL135 -> 0 | AM136: 0 | AO136: 0 | AP136: =AP135+AO136+AR135 -> 0 | AQ136: 0 | AS136: 0 | AT136: 0 | AV136: 292.98 | AW136: =AW135+AV136+AY135 -> 32662.52628 | AX136: 13.60938595 | AZ136: =AZ135 -> 0 | BA136: 0
B137: 110 | C137: 1315.98 | D137: 111.69 | E137: 1204.29 | F137: 88149.86 | G137: -1315.98 | K137: 1023 | L137: 154.43 | M137: 868.57 | N137: 122675.35 | O137: -1023 | S137: 110 | T137: 1315.98 | U137: 148026.4426 | V137: 61.67768441 | X137: 0 | Y137: 0 | AA137: 1315.98 | AB137: 148026.4426 | AC137: 61.67768441 | AE137: 0 | AF137: 0 | AH137: 1023 | AI137: =AI136+AH137 -> 115070.9363 | AJ137: 47.94622346 | AL137: 0 | AM137: 0 | AO137: 0 | AP137: =AP136+AO137 -> 0 | AQ137: 0 | AS137: 0 | AT137: 0 | AV137: 292.98 | AW137: =AW136+AV137 -> 32955.50628 | AX137: 13.73146095 | AZ137: 0 | BA137: 0
B138: 111 | C138: 1315.98 | D138: 110.19 | E138: 1205.79 | F138: 86944.07 | G138: -1315.98 | K138: 1023 | L138: 153.34 | M138: 869.66 | N138: 121805.69 | O138: -1023 | S138: 111 | T138: 1315.98 | U138: 149342.4226 | V138: 62.22600941 | X138: 0 | Y138: 0 | AA138: 1315.98 | AB138: 149342.4226 | AC138: 62.22600941 | AE138: 0 | AF138: 0 | AH138: 1023 | AI138: 116093.9363 | AJ138: 48.37247346 | AL138: 0 | AM138: 0 | AO138: 0 | AP138: 0 | AQ138: 0 | AS138: 0 | AT138: 0 | AV138: 292.98 | AW138: 33248.48628 | AX138: 13.85353595 | AZ138: 0 | BA138: 0
B139: 112 | C139: 1315.98 | D139: 108.68 | E139: 1207.3 | F139: 85736.77 | G139: -1315.98 | K139: 1023 | L139: 152.26 | M139: 870.74 | N139: 120934.95 | O139: -1023 | S139: 112 | T139: 1315.98 | U139: 150658.4026 | V139: 62.77433441 | X139: 0 | Y139: 0 | AA139: 1315.98 | AB139: 150658.4026 | AC139: 62.77433441 | AE139: 0 | AF139: 0 | AH139: 1023 | AI139: 117116.9363 | AJ139: 48.79872346 | AL139: 0 | AM139: 0 | AO139: 0 | AP139: 0 | AQ139: 0 | AS139: 0 | AT139: 0 | AV139: 292.98 | AW139: 33541.46628 | AX139: 13.97561095 | AZ139: 0 | BA139: 0
B140: 113 | C140: 1315.98 | D140: 107.17 | E140: 1208.81 | F140: 84527.96 | G140: -1315.98 | K140: 1023 | L140: 151.17 | M140: 871.83 | N140: 120063.12 | O140: -1023 | S140: 113 | T140: 1315.98 | U140: 151974.3826 | V140: 63.32265941 | X140: 0 | Y140: 0 | AA140: 1315.98 | AB140: 151974.3826 | AC140: 63.32265941 | AE140: 0 | AF140: 0 | AH140: 1023 | AI140: 118139.9363 | AJ140: 49.22497346 | AL140: 0 | AM140: 0 | AO140: 0 | AP140: 0 | AQ140: 0 | AS140: 0 | AT140: 0 | AV140: 292.98 | AW140: 33834.44628 | AX140: 14.09768595 | AZ140: 0 | BA140: 0
B141: 114 | C141: 1315.98 | D141: 105.66 | E141: 1210.32 | F141: 83317.64 | G141: -1315.98 | K141: 1023 | L141: 150.08 | M141: 872.92 | N141: 119190.2 | O141: -1023 | S141: 114 | T141: 1315.98 | U141: 153290.3626 | V141: 63.87098441 | X141: 0 | Y141: 0 | AA141: 1315.98 | AB141: 153290.3626 | AC141: 63.87098441 | AE141: 0 | AF141: 0 | AH141: 1023 | AI141: 119162.9363 | AJ141: 49.65122346 | AL141: 0 | AM141: 0 | AO141: 0 | AP141: 0 | AQ141: 0 | AS141: 0 | AT141: 0 | AV141: 292.98 | AW141: 34127.42628 | AX141: 14.21976095 | AZ141: 0 | BA141: 0
B142: 115 | C142: 1315.98 | D142: 104.15 | E142: 1211.83 | F142: 82105.81 | G142: -1315.98 | K142: 1023 | L142: 148.99 | M142: 874.01 | N142: 118316.19 | O142: -1023 | S142: 115 | T142: 1315.98 | U142: 154606.3426 | V142: 64.41930941 | X142: 0 | Y142: 0 | AA142: 1315.98 | AB142: 154606.3426 | AC142: 64.41930941 | AE142: 0 | AF142: 0 | AH142: 1023 | AI142: 120185.9363 | AJ142: 50.07747346 | AL142: 0 | AM142: 0 | AO142: 0 | AP142: 0 | AQ142: 0 | AS142: 0 | AT142: 0 | AV142: 292.98 | AW142: 34420.40628 | AX142: 14.34183595 | AZ142: 0 | BA142: 0
B143: 116 | C143: 1315.98 | D143: 102.63 | E143: 1213.35 | F143: 80892.46 | G143: -1315.98 | K143: 1023 | L143: 147.9 | M143: 875.1 | N143: 117441.09 | O143: -1023 | S143: 116 | T143: 1315.98 | U143: 155922.3226 | V143: 64.96763441 | X143: 0 | Y143: 0 | AA143: 1315.98 | AB143: 155922.3226 | AC143: 64.96763441 | AE143: 0 | AF143: 0 | AH143: 1023 | AI143: 121208.9363 | AJ143: 50.50372346 | AL143: 0 | AM143: 0 | AO143: 0 | AP143: 0 | AQ143: 0 | AS143: 0 | AT143: 0 | AV143: 292.98 | AW143: 34713.38628 | AX143: 14.46391095 | AZ143: 0 | BA143: 0
B144: 117 | C144: 1315.98 | D144: 101.12 | E144: 1214.86 | F144: 79677.6 | G144: -1315.98 | K144: 1023 | L144: 146.8 | M144: 876.2 | N144: 116564.89 | O144: -1023 | S144: 117 | T144: 1315.98 | U144: 157238.3026 | V144: 65.51595941 | X144: 0 | Y144: 0 | AA144: 1315.98 | AB144: 157238.3026 | AC144: 65.51595941 | AE144: 0 | AF144: 0 | AH144: 1023 | AI144: 122231.9363 | AJ144: 50.92997346 | AL144: 0 | AM144: 0 | AO144: 0 | AP144: 0 | AQ144: 0 | AS144: 0 | AT144: 0 | AV144: 292.98 | AW144: 35006.36628 | AX144: 14.58598595 | AZ144: 0 | BA144: 0
B145: 118 | C145: 1315.98 | D145: 99.6 | E145: 1216.38 | F145: 78461.22 | G145: -1315.98 | K145: 1023 | L145: 145.71 | M145: 877.29 | N145: 115687.6 | O145: -1023 | S145: 118 | T145: 1315.98 | U145: 158554.2826 | V145: 66.06428441 | X145: 0 | Y145: 0 | AA145: 1315.98 | AB145: 158554.2826 | AC145: 66.06428441 | AE145: 0 | AF145: 0 | AH145: 1023 | AI145: 123254.9363 | AJ145: 51.35622346 | AL145: 0 | AM145: 0 | AO145: 0 | AP145: 0 | AQ145: 0 | AS145: 0 | AT145: 0 | AV145: 292.98 | AW145: 35299.34628 | AX145: 14.70806095 | AZ145: 0 | BA145: 0
B146: 119 | C146: 1315.98 | D146: 98.08 | E146: 1217.9 | F146: 77243.32 | G146: -1315.98 | K146: 1023 | L146: 144.61 | M146: 878.39 | N146: 114809.21 | O146: -1023 | S146: 119 | T146: 1315.98 | U146: 159870.2626 | V146: 66.61260941 | X146: 0 | Y146: 0 | AA146: 1315.98 | AB146: 159870.2626 | AC146: 66.61260941 | AE146: 0 | AF146: 0 | AH146: 1023 | AI146: 124277.9363 | AJ146: 51.78247346 | AL146: 0 | AM146: 0 | AO146: 0 | AP146: 0 | AQ146: 0 | AS146: 0 | AT146: 0 | AV146: 292.98 | AW146: 35592.32628 | AX146: 14.83013595 | AZ146: 0 | BA146: 0
B147: 120 | C147: 1315.98 | D147: 96.55 | E147: 1219.43 | F147: 76023.89 | G147: -1315.98 | K147: 1023 | L147: 143.51 | M147: 879.49 | N147: 113929.72 | O147: -1023 | S147: 120 | T147: 1315.98 | U147: 161186.2426 | V147: 67.16093441 | W147: =SUM(V136:V147) -> 769.7417629 | X147: =X146+Z147 -> 0 | Y147: 0 | Z147: =SUM(Y136:Y147) -> 0 | AA147: 1315.98 | AB147: 161186.2426 | AC147: 67.16093441 | AD147: =SUM(AC136:AC147) -> 769.7417629 | AE147: =AE146+AG147 -> 0 | AF147: 0 | AG147: =SUM(AF136:AF147) -> 0 | AH147: 1023 | AI147: 125300.9363 | AJ147: 52.20872346 | AK147: =SUM(AJ136:AJ147) -> 598.3721816 | AL147: =AL146+AN147 -> 0 | AM147: 0 | AN147: =SUM(AM136:AM147) -> 0 | AO147: 0 | AP147: 0 | AQ147: 0 | AR147: =SUM(AQ136:AQ147) -> 0 | AS147: =AS146+AU147 -> 0 | AT147: 0 | AU147: =SUM(AT136:AT147) -> 0 | AV147: 292.98 | AW147: 35885.30628 | AX147: 14.95221095 | AY147: =SUM(AX136:AX147) -> 171.3695814 | AZ147: =AZ146+BB147 -> 0 | BA147: 0 | BB147: =SUM(BA136:BA147) -> 0
B148: 121 | C148: 1315.98 | D148: 95.03 | E148: 1220.95 | F148: 74802.94 | G148: -1315.98 | K148: 1023 | L148: 142.41 | M148: 880.59 | N148: 113049.13 | O148: -1023 | S148: 121 | T148: 1315.98 | U148: =U147+T148+W147 -> 163271.9644 | V148: 68.02998515 | X148: 0 | Y148: 0 | AA148: 1315.98 | AB148: =AB147+AA148+AD147 -> 163271.9644 | AC148: 68.02998515 | AE148: 0 | AF148: 0 | AH148: 1023 | AI148: =AI147+AH148+AK147 -> 126922.3085 | AJ148: 52.88429521 | AL148: =AL147 -> 0 | AM148: 0 | AO148: 0 | AP148: =AP147+AO148+AR147 -> 0 | AQ148: 0 | AS148: 0 | AT148: 0 | AV148: 292.98 | AW148: =AW147+AV148+AY147 -> 36349.65586 | AX148: 15.14568994 | AZ148: =AZ147 -> 0 | BA148: 0
B149: 122 | C149: 1315.98 | D149: 93.5 | E149: 1222.48 | F149: 73580.46 | G149: -1315.98 | K149: 1023 | L149: 141.31 | M149: 881.69 | N149: 112167.44 | O149: -1023 | S149: 122 | T149: 1315.98 | U149: 164587.9444 | V149: 68.57831015 | X149: 0 | Y149: 0 | AA149: 1315.98 | AB149: 164587.9444 | AC149: 68.57831015 | AE149: 0 | AF149: 0 | AH149: 1023 | AI149: =AI148+AH149 -> 127945.3085 | AJ149: 53.31054521 | AL149: 0 | AM149: 0 | AO149: 0 | AP149: =AP148+AO149 -> 0 | AQ149: 0 | AS149: 0 | AT149: 0 | AV149: 292.98 | AW149: =AW148+AV149 -> 36642.63586 | AX149: 15.26776494 | AZ149: 0 | BA149: 0
B150: 123 | C150: 1315.98 | D150: 91.98 | E150: 1224 | F150: 72356.46 | G150: -1315.98 | K150: 1023 | L150: 140.21 | M150: 882.79 | N150: 111284.65 | O150: -1023 | S150: 123 | T150: 1315.98 | U150: 165903.9244 | V150: 69.12663515 | X150: 0 | Y150: 0 | AA150: 1315.98 | AB150: 165903.9244 | AC150: 69.12663515 | AE150: 0 | AF150: 0 | AH150: 1023 | AI150: 128968.3085 | AJ150: 53.73679521 | AL150: 0 | AM150: 0 | AO150: 0 | AP150: 0 | AQ150: 0 | AS150: 0 | AT150: 0 | AV150: 292.98 | AW150: 36935.61586 | AX150: 15.38983994 | AZ150: 0 | BA150: 0
B151: 124 | C151: 1315.98 | D151: 90.45 | E151: 1225.53 | F151: 71130.93 | G151: -1315.98 | K151: 1023 | L151: 139.11 | M151: 883.89 | N151: 110400.76 | O151: -1023 | S151: 124 | T151: 1315.98 | U151: 167219.9044 | V151: 69.67496015 | X151: 0 | Y151: 0 | AA151: 1315.98 | AB151: 167219.9044 | AC151: 69.67496015 | AE151: 0 | AF151: 0 | AH151: 1023 | AI151: 129991.3085 | AJ151: 54.16304521 | AL151: 0 | AM151: 0 | AO151: 0 | AP151: 0 | AQ151: 0 | AS151: 0 | AT151: 0 | AV151: 292.98 | AW151: 37228.59586 | AX151: 15.51191494 | AZ151: 0 | BA151: 0
B152: 125 | C152: 1315.98 | D152: 88.91 | E152: 1227.07 | F152: 69903.86 | G152: -1315.98 | K152: 1023 | L152: 138 | M152: 885 | N152: 109515.76 | O152: -1023 | S152: 125 | T152: 1315.98 | U152: 168535.8844 | V152: 70.22328515 | X152: 0 | Y152: 0 | AA152: 1315.98 | AB152: 168535.8844 | AC152: 70.22328515 | AE152: 0 | AF152: 0 | AH152: 1023 | AI152: 131014.3085 | AJ152: 54.58929521 | AL152: 0 | AM152: 0 | AO152: 0 | AP152: 0 | AQ152: 0 | AS152: 0 | AT152: 0 | AV152: 292.98 | AW152: 37521.57586 | AX152: 15.63398994 | AZ152: 0 | BA152: 0
B153: 126 | C153: 1315.98 | D153: 87.38 | E153: 1228.6 | F153: 68675.26 | G153: -1315.98 | K153: 1023 | L153: 136.89 | M153: 886.11 | N153: 108629.65 | O153: -1023 | S153: 126 | T153: 1315.98 | U153: 169851.8644 | V153: 70.77161015 | X153: 0 | Y153: 0 | AA153: 1315.98 | AB153: 169851.8644 | AC153: 70.77161015 | AE153: 0 | AF153: 0 | AH153: 1023 | AI153: 132037.3085 | AJ153: 55.01554521 | AL153: 0 | AM153: 0 | AO153: 0 | AP153: 0 | AQ153: 0 | AS153: 0 | AT153: 0 | AV153: 292.98 | AW153: 37814.55586 | AX153: 15.75606494 | AZ153: 0 | BA153: 0
B154: 127 | C154: 1315.98 | D154: 85.84 | E154: 1230.14 | F154: 67445.12 | G154: -1315.98 | K154: 1023 | L154: 135.79 | M154: 887.21 | N154: 107742.44 | O154: -1023 | S154: 127 | T154: 1315.98 | U154: 171167.8444 | V154: 71.31993515 | X154: 0 | Y154: 0 | AA154: 1315.98 | AB154: 171167.8444 | AC154: 71.31993515 | AE154: 0 | AF154: 0 | AH154: 1023 | AI154: 133060.3085 | AJ154: 55.44179521 | AL154: 0 | AM154: 0 | AO154: 0 | AP154: 0 | AQ154: 0 | AS154: 0 | AT154: 0 | AV154: 292.98 | AW154: 38107.53586 | AX154: 15.87813994 | AZ154: 0 | BA154: 0
B155: 128 | C155: 1315.98 | D155: 84.31 | E155: 1231.67 | F155: 66213.45 | G155: -1315.98 | K155: 1023 | L155: 134.68 | M155: 888.32 | N155: 106854.12 | O155: -1023 | S155: 128 | T155: 1315.98 | U155: 172483.8244 | V155: 71.86826015 | X155: 0 | Y155: 0 | AA155: 1315.98 | AB155: 172483.8244 | AC155: 71.86826015 | AE155: 0 | AF155: 0 | AH155: 1023 | AI155: 134083.3085 | AJ155: 55.86804521 | AL155: 0 | AM155: 0 | AO155: 0 | AP155: 0 | AQ155: 0 | AS155: 0 | AT155: 0 | AV155: 292.98 | AW155: 38400.51586 | AX155: 16.00021494 | AZ155: 0 | BA155: 0
B156: 129 | C156: 1315.98 | D156: =ROUND(F155*$E$9/12,2) -> 82.77 | E156: 1233.21 | F156: 64980.24 | G156: -1315.98 | K156: 1023 | L156: =ROUND(N155*$E$9/12,2) -> 133.57 | M156: 889.43 | N156: 105964.69 | O156: -1023 | S156: 129 | T156: 1315.98 | U156: 173799.8044 | V156: =U156*$E$8/12 -> 72.41658515 | X156: 0 | Y156: =X155*$E$8/12 -> 0 | AA156: 1315.98 | AB156: 173799.8044 | AC156: =AB156*$E$8/12 -> 72.41658515 | AE156: 0 | AF156: =AE155*$E$8/12 -> 0 | AH156: 1023 | AI156: 135106.3085 | AJ156: =AI156*$E$8/12 -> 56.29429521 | AL156: 0 | AM156: =AL155*$E$8/12 -> 0 | AO156: 0 | AP156: 0 | AQ156: =AP156*$E$8/12 -> 0 | AS156: 0 | AT156: =AS155*$E$8/12 -> 0 | AV156: 292.98 | AW156: 38693.49586 | AX156: =AW156*$E$8/12 -> 16.12228994 | AZ156: 0 | BA156: =AZ155*$E$8/12 -> 0
B157: 130 | C157: =ROUND(-PMT($E$9/12,$E$10,$E$13,0,0),2) -> 1315.98 | D157: 81.23 | E157: =C157-D157 -> 1234.75 | F157: =F156-E157 -> 63745.49 | G157: =-C157 -> -1315.98 | K157: =ROUND(-PMT($E$9/12,$E$11,$E$14,0,0),2) -> 1023 | L157: 132.46 | M157: =K157-L157 -> 890.54 | N157: =N156-M157 -> 105074.15 | O157: =-K157 -> -1023 | S157: 130 | T157: =IF(C157>K157,C157,K157) -> 1315.98 | U157: 175115.7844 | V157: 72.96491015 | X157: =X156 -> 0 | Y157: 0 | AA157: 1315.98 | AB157: 175115.7844 | AC157: 72.96491015 | AE157: =AE156 -> 0 | AF157: 0 | AH157: =K157 -> 1023 | AI157: 136129.3085 | AJ157: 56.72054521 | AL157: 0 | AM157: 0 | AO157: =T157-C157 -> 0 | AP157: 0 | AQ157: 0 | AS157: =AS156 -> 0 | AT157: 0 | AV157: =T157-K157 -> 292.98 | AW157: 38986.47586 | AX157: 16.24436494 | AZ157: 0 | BA157: 0
B158: 131 | C158: 1315.98 | D158: 79.68 | E158: 1236.3 | F158: 62509.19 | G158: -1315.98 | K158: 1023 | L158: 131.34 | M158: 891.66 | N158: 104182.49 | O158: -1023 | S158: 131 | T158: 1315.98 | U158: =U157+T158 -> 176431.7644 | V158: 73.51323515 | X158: 0 | Y158: 0 | AA158: =C158 -> 1315.98 | AB158: =AB157+AA158 -> 176431.7644 | AC158: 73.51323515 | AE158: 0 | AF158: 0 | AH158: 1023 | AI158: 137152.3085 | AJ158: 57.14679521 | AL158: 0 | AM158: 0 | AO158: 0 | AP158: 0 | AQ158: 0 | AS158: 0 | AT158: 0 | AV158: 292.98 | AW158: 39279.45586 | AX158: 16.36643994 | AZ158: 0 | BA158: 0
B159: 132 | C159: 1315.98 | D159: 78.14 | E159: 1237.84 | F159: 61271.35 | G159: -1315.98 | K159: 1023 | L159: 130.23 | M159: 892.77 | N159: 103289.72 | O159: -1023 | S159: 132 | T159: 1315.98 | U159: 177747.7444 | V159: 74.06156015 | W159: =SUM(V148:V159) -> 852.5492718 | X159: =X158+Z159 -> 0 | Y159: 0 | Z159: =SUM(Y148:Y159) -> 0 | AA159: 1315.98 | AB159: 177747.7444 | AC159: 74.06156015 | AD159: =SUM(AC148:AC159) -> 852.5492718 | AE159: =AE158+AG159 -> 0 | AF159: 0 | AG159: =SUM(AF148:AF159) -> 0 | AH159: 1023 | AI159: 138175.3085 | AJ159: 57.57304521 | AK159: =SUM(AJ148:AJ159) -> 662.7440425 | AL159: =AL158+AN159 -> 0 | AM159: 0 | AN159: =SUM(AM148:AM159) -> 0 | AO159: 0 | AP159: 0 | AQ159: 0 | AR159: =SUM(AQ148:AQ159) -> 0 | AS159: =AS158+AU159 -> 0 | AT159: 0 | AU159: =SUM(AT148:AT159) -> 0 | AV159: 292.98 | AW159: 39572.43586 | AX159: 16.48851494 | AY159: =SUM(AX148:AX159) -> 189.8052293 | AZ159: =AZ158+BB159 -> 0 | BA159: 0 | BB159: =SUM(BA148:BA159) -> 0
B160: 133 | C160: 1315.98 | D160: 76.59 | E160: 1239.39 | F160: 60031.96 | G160: -1315.98 | K160: 1023 | L160: 129.11 | M160: 893.89 | N160: 102395.83 | O160: -1023 | S160: 133 | T160: 1315.98 | U160: =U159+T160+W159 -> 179916.2736 | V160: 74.96511401 | X160: 0 | Y160: 0 | AA160: 1315.98 | AB160: =AB159+AA160+AD159 -> 179916.2736 | AC160: 74.96511401 | AE160: 0 | AF160: 0 | AH160: 1023 | AI160: =AI159+AH160+AK159 -> 139861.0525 | AJ160: 58.27543856 | AL160: =AL159 -> 0 | AM160: 0 | AO160: 0 | AP160: =AP159+AO160+AR159 -> 0 | AQ160: 0 | AS160: 0 | AT160: 0 | AV160: 292.98 | AW160: =AW159+AV160+AY159 -> 40055.22109 | AX160: 16.68967545 | AZ160: =AZ159 -> 0 | BA160: 0
B161: 134 | C161: 1315.98 | D161: 75.04 | E161: 1240.94 | F161: 58791.02 | G161: -1315.98 | K161: 1023 | L161: 127.99 | M161: 895.01 | N161: 101500.82 | O161: -1023 | S161: 134 | T161: 1315.98 | U161: 181232.2536 | V161: 75.51343901 | X161: 0 | Y161: 0 | AA161: 1315.98 | AB161: 181232.2536 | AC161: 75.51343901 | AE161: 0 | AF161: 0 | AH161: 1023 | AI161: =AI160+AH161 -> 140884.0525 | AJ161: 58.70168856 | AL161: 0 | AM161: 0 | AO161: 0 | AP161: =AP160+AO161 -> 0 | AQ161: 0 | AS161: 0 | AT161: 0 | AV161: 292.98 | AW161: =AW160+AV161 -> 40348.20109 | AX161: 16.81175045 | AZ161: 0 | BA161: 0
B162: 135 | C162: 1315.98 | D162: 73.49 | E162: 1242.49 | F162: 57548.53 | G162: -1315.98 | K162: 1023 | L162: 126.88 | M162: 896.12 | N162: 100604.7 | O162: -1023 | S162: 135 | T162: 1315.98 | U162: 182548.2336 | V162: 76.06176401 | X162: 0 | Y162: 0 | AA162: 1315.98 | AB162: 182548.2336 | AC162: 76.06176401 | AE162: 0 | AF162: 0 | AH162: 1023 | AI162: 141907.0525 | AJ162: 59.12793856 | AL162: 0 | AM162: 0 | AO162: 0 | AP162: 0 | AQ162: 0 | AS162: 0 | AT162: 0 | AV162: 292.98 | AW162: 40641.18109 | AX162: 16.93382545 | AZ162: 0 | BA162: 0
B163: 136 | C163: 1315.98 | D163: 71.94 | E163: 1244.04 | F163: 56304.49 | G163: -1315.98 | K163: 1023 | L163: 125.76 | M163: 897.24 | N163: 99707.46 | O163: -1023 | S163: 136 | T163: 1315.98 | U163: 183864.2136 | V163: 76.61008901 | X163: 0 | Y163: 0 | AA163: 1315.98 | AB163: 183864.2136 | AC163: 76.61008901 | AE163: 0 | AF163: 0 | AH163: 1023 | AI163: 142930.0525 | AJ163: 59.55418856 | AL163: 0 | AM163: 0 | AO163: 0 | AP163: 0 | AQ163: 0 | AS163: 0 | AT163: 0 | AV163: 292.98 | AW163: 40934.16109 | AX163: 17.05590045 | AZ163: 0 | BA163: 0
B164: 137 | C164: 1315.98 | D164: 70.38 | E164: 1245.6 | F164: 55058.89 | G164: -1315.98 | K164: 1023 | L164: 124.63 | M164: 898.37 | N164: 98809.09 | O164: -1023 | S164: 137 | T164: 1315.98 | U164: 185180.1936 | V164: 77.15841401 | X164: 0 | Y164: 0 | AA164: 1315.98 | AB164: 185180.1936 | AC164: 77.15841401 | AE164: 0 | AF164: 0 | AH164: 1023 | AI164: 143953.0525 | AJ164: 59.98043856 | AL164: 0 | AM164: 0 | AO164: 0 | AP164: 0 | AQ164: 0 | AS164: 0 | AT164: 0 | AV164: 292.98 | AW164: 41227.14109 | AX164: 17.17797545 | AZ164: 0 | BA164: 0
B165: 138 | C165: 1315.98 | D165: 68.82 | E165: 1247.16 | F165: 53811.73 | G165: -1315.98 | K165: 1023 | L165: 123.51 | M165: 899.49 | N165: 97909.6 | O165: -1023 | S165: 138 | T165: 1315.98 | U165: 186496.1736 | V165: 77.70673901 | X165: 0 | Y165: 0 | AA165: 1315.98 | AB165: 186496.1736 | AC165: 77.70673901 | AE165: 0 | AF165: 0 | AH165: 1023 | AI165: 144976.0525 | AJ165: 60.40668856 | AL165: 0 | AM165: 0 | AO165: 0 | AP165: 0 | AQ165: 0 | AS165: 0 | AT165: 0 | AV165: 292.98 | AW165: 41520.12109 | AX165: 17.30005045 | AZ165: 0 | BA165: 0
B166: 139 | C166: 1315.98 | D166: 67.26 | E166: 1248.72 | F166: 52563.01 | G166: -1315.98 | K166: 1023 | L166: 122.39 | M166: 900.61 | N166: 97008.99 | O166: -1023 | S166: 139 | T166: 1315.98 | U166: 187812.1536 | V166: 78.25506401 | X166: 0 | Y166: 0 | AA166: 1315.98 | AB166: 187812.1536 | AC166: 78.25506401 | AE166: 0 | AF166: 0 | AH166: 1023 | AI166: 145999.0525 | AJ166: 60.83293856 | AL166: 0 | AM166: 0 | AO166: 0 | AP166: 0 | AQ166: 0 | AS166: 0 | AT166: 0 | AV166: 292.98 | AW166: 41813.10109 | AX166: 17.42212545 | AZ166: 0 | BA166: 0
B167: 140 | C167: 1315.98 | D167: 65.7 | E167: 1250.28 | F167: 51312.73 | G167: -1315.98 | K167: 1023 | L167: 121.26 | M167: 901.74 | N167: 96107.25 | O167: -1023 | S167: 140 | T167: 1315.98 | U167: 189128.1336 | V167: 78.80338901 | X167: 0 | Y167: 0 | AA167: 1315.98 | AB167: 189128.1336 | AC167: 78.80338901 | AE167: 0 | AF167: 0 | AH167: 1023 | AI167: 147022.0525 | AJ167: 61.25918856 | AL167: 0 | AM167: 0 | AO167: 0 | AP167: 0 | AQ167: 0 | AS167: 0 | AT167: 0 | AV167: 292.98 | AW167: 42106.08109 | AX167: 17.54420045 | AZ167: 0 | BA167: 0
B168: 141 | C168: 1315.98 | D168: 64.14 | E168: 1251.84 | F168: 50060.89 | G168: -1315.98 | K168: 1023 | L168: 120.13 | M168: 902.87 | N168: 95204.38 | O168: -1023 | S168: 141 | T168: 1315.98 | U168: 190444.1136 | V168: 79.35171401 | X168: 0 | Y168: 0 | AA168: 1315.98 | AB168: 190444.1136 | AC168: 79.35171401 | AE168: 0 | AF168: 0 | AH168: 1023 | AI168: 148045.0525 | AJ168: 61.68543856 | AL168: 0 | AM168: 0 | AO168: 0 | AP168: 0 | AQ168: 0 | AS168: 0 | AT168: 0 | AV168: 292.98 | AW168: 42399.06109 | AX168: 17.66627545 | AZ168: 0 | BA168: 0
B169: 142 | C169: 1315.98 | D169: 62.58 | E169: 1253.4 | F169: 48807.49 | G169: -1315.98 | K169: 1023 | L169: 119.01 | M169: 903.99 | N169: 94300.39 | O169: -1023 | S169: 142 | T169: 1315.98 | U169: 191760.0936 | V169: 79.90003901 | X169: 0 | Y169: 0 | AA169: 1315.98 | AB169: 191760.0936 | AC169: 79.90003901 | AE169: 0 | AF169: 0 | AH169: 1023 | AI169: 149068.0525 | AJ169: 62.11168856 | AL169: 0 | AM169: 0 | AO169: 0 | AP169: 0 | AQ169: 0 | AS169: 0 | AT169: 0 | AV169: 292.98 | AW169: 42692.04109 | AX169: 17.78835045 | AZ169: 0 | BA169: 0
B170: 143 | C170: 1315.98 | D170: 61.01 | E170: 1254.97 | F170: 47552.52 | G170: -1315.98 | K170: 1023 | L170: 117.88 | M170: 905.12 | N170: 93395.27 | O170: -1023 | S170: 143 | T170: 1315.98 | U170: 193076.0736 | V170: 80.44836401 | X170: 0 | Y170: 0 | AA170: 1315.98 | AB170: 193076.0736 | AC170: 80.44836401 | AE170: 0 | AF170: 0 | AH170: 1023 | AI170: 150091.0525 | AJ170: 62.53793856 | AL170: 0 | AM170: 0 | AO170: 0 | AP170: 0 | AQ170: 0 | AS170: 0 | AT170: 0 | AV170: 292.98 | AW170: 42985.02109 | AX170: 17.91042545 | AZ170: 0 | BA170: 0
B171: 144 | C171: 1315.98 | D171: 59.44 | E171: 1256.54 | F171: 46295.98 | G171: -1315.98 | K171: 1023 | L171: 116.74 | M171: 906.26 | N171: 92489.01 | O171: -1023 | S171: 144 | T171: 1315.98 | U171: 194392.0536 | V171: 80.99668901 | W171: =SUM(V160:V171) -> 935.7708181 | X171: =X170+Z171 -> 0 | Y171: 0 | Z171: =SUM(Y160:Y171) -> 0 | AA171: 1315.98 | AB171: 194392.0536 | AC171: 80.99668901 | AD171: =SUM(AC160:AC171) -> 935.7708181 | AE171: =AE170+AG171 -> 0 | AF171: 0 | AG171: =SUM(AF160:AF171) -> 0 | AH171: 1023 | AI171: 151114.0525 | AJ171: 62.96418856 | AK171: =SUM(AJ160:AJ171) -> 727.4377627 | AL171: =AL170+AN171 -> 0 | AM171: 0 | AN171: =SUM(AM160:AM171) -> 0 | AO171: 0 | AP171: 0 | AQ171: 0 | AR171: =SUM(AQ160:AQ171) -> 0 | AS171: =AS170+AU171 -> 0 | AT171: 0 | AU171: =SUM(AT160:AT171) -> 0 | AV171: 292.98 | AW171: 43278.00109 | AX171: 18.03250045 | AY171: =SUM(AX160:AX171) -> 208.3330554 | AZ171: =AZ170+BB171 -> 0 | BA171: 0 | BB171: =SUM(BA160:BA171) -> 0
B172: 145 | C172: 1315.98 | D172: 57.87 | E172: 1258.11 | F172: 45037.87 | G172: -1315.98 | K172: 1023 | L172: 115.61 | M172: 907.39 | N172: 91581.62 | O172: -1023 | S172: 145 | T172: 1315.98 | U172: =U171+T172+W171 -> 196643.8044 | V172: 81.93491852 | X172: 0 | Y172: 0 | AA172: 1315.98 | AB172: =AB171+AA172+AD171 -> 196643.8044 | AC172: 81.93491852 | AE172: 0 | AF172: 0 | AH172: 1023 | AI172: =AI171+AH172+AK171 -> 152864.4903 | AJ172: 63.69353762 | AL172: =AL171 -> 0 | AM172: 0 | AO172: 0 | AP172: =AP171+AO172+AR171 -> 0 | AQ172: 0 | AS172: 0 | AT172: 0 | AV172: 292.98 | AW172: =AW171+AV172+AY171 -> 43779.31414 | AX172: 18.24138089 | AZ172: =AZ171 -> 0 | BA172: 0
B173: 146 | C173: 1315.98 | D173: 56.3 | E173: 1259.68 | F173: 43778.19 | G173: -1315.98 | K173: 1023 | L173: 114.48 | M173: 908.52 | N173: 90673.1 | O173: -1023 | S173: 146 | T173: 1315.98 | U173: 197959.7844 | V173: 82.48324352 | X173: 0 | Y173: 0 | AA173: 1315.98 | AB173: 197959.7844 | AC173: 82.48324352 | AE173: 0 | AF173: 0 | AH173: 1023 | AI173: =AI172+AH173 -> 153887.4903 | AJ173: 64.11978762 | AL173: 0 | AM173: 0 | AO173: 0 | AP173: =AP172+AO173 -> 0 | AQ173: 0 | AS173: 0 | AT173: 0 | AV173: 292.98 | AW173: =AW172+AV173 -> 44072.29414 | AX173: 18.36345589 | AZ173: 0 | BA173: 0
B174: 147 | C174: 1315.98 | D174: 54.72 | E174: 1261.26 | F174: 42516.93 | G174: -1315.98 | K174: 1023 | L174: 113.34 | M174: 909.66 | N174: 89763.44 | O174: -1023 | S174: 147 | T174: 1315.98 | U174: 199275.7644 | V174: 83.03156852 | X174: 0 | Y174: 0 | AA174: 1315.98 | AB174: 199275.7644 | AC174: 83.03156852 | AE174: 0 | AF174: 0 | AH174: 1023 | AI174: 154910.4903 | AJ174: 64.54603762 | AL174: 0 | AM174: 0 | AO174: 0 | AP174: 0 | AQ174: 0 | AS174: 0 | AT174: 0 | AV174: 292.98 | AW174: 44365.27414 | AX174: 18.48553089 | AZ174: 0 | BA174: 0
B175: 148 | C175: 1315.98 | D175: 53.15 | E175: 1262.83 | F175: 41254.1 | G175: -1315.98 | K175: 1023 | L175: 112.2 | M175: 910.8 | N175: 88852.64 | O175: -1023 | S175: 148 | T175: 1315.98 | U175: 200591.7444 | V175: 83.57989352 | X175: 0 | Y175: 0 | AA175: 1315.98 | AB175: 200591.7444 | AC175: 83.57989352 | AE175: 0 | AF175: 0 | AH175: 1023 | AI175: 155933.4903 | AJ175: 64.97228762 | AL175: 0 | AM175: 0 | AO175: 0 | AP175: 0 | AQ175: 0 | AS175: 0 | AT175: 0 | AV175: 292.98 | AW175: 44658.25414 | AX175: 18.60760589 | AZ175: 0 | BA175: 0
B176: 149 | C176: 1315.98 | D176: 51.57 | E176: 1264.41 | F176: 39989.69 | G176: -1315.98 | K176: 1023 | L176: 111.07 | M176: 911.93 | N176: 87940.71 | O176: -1023 | S176: 149 | T176: 1315.98 | U176: 201907.7244 | V176: 84.12821852 | X176: 0 | Y176: 0 | AA176: 1315.98 | AB176: 201907.7244 | AC176: 84.12821852 | AE176: 0 | AF176: 0 | AH176: 1023 | AI176: 156956.4903 | AJ176: 65.39853762 | AL176: 0 | AM176: 0 | AO176: 0 | AP176: 0 | AQ176: 0 | AS176: 0 | AT176: 0 | AV176: 292.98 | AW176: 44951.23414 | AX176: 18.72968089 | AZ176: 0 | BA176: 0
B177: 150 | C177: 1315.98 | D177: 49.99 | E177: 1265.99 | F177: 38723.7 | G177: -1315.98 | K177: 1023 | L177: 109.93 | M177: 913.07 | N177: 87027.64 | O177: -1023 | S177: 150 | T177: 1315.98 | U177: 203223.7044 | V177: 84.67654352 | X177: 0 | Y177: 0 | AA177: 1315.98 | AB177: 203223.7044 | AC177: 84.67654352 | AE177: 0 | AF177: 0 | AH177: 1023 | AI177: 157979.4903 | AJ177: 65.82478762 | AL177: 0 | AM177: 0 | AO177: 0 | AP177: 0 | AQ177: 0 | AS177: 0 | AT177: 0 | AV177: 292.98 | AW177: 45244.21414 | AX177: 18.85175589 | AZ177: 0 | BA177: 0
B178: 151 | C178: 1315.98 | D178: 48.4 | E178: 1267.58 | F178: 37456.12 | G178: -1315.98 | K178: 1023 | L178: 108.78 | M178: 914.22 | N178: 86113.42 | O178: -1023 | S178: 151 | T178: 1315.98 | U178: 204539.6844 | V178: 85.22486852 | X178: 0 | Y178: 0 | AA178: 1315.98 | AB178: 204539.6844 | AC178: 85.22486852 | AE178: 0 | AF178: 0 | AH178: 1023 | AI178: 159002.4903 | AJ178: 66.25103762 | AL178: 0 | AM178: 0 | AO178: 0 | AP178: 0 | AQ178: 0 | AS178: 0 | AT178: 0 | AV178: 292.98 | AW178: 45537.19414 | AX178: 18.97383089 | AZ178: 0 | BA178: 0
B179: 152 | C179: 1315.98 | D179: 46.82 | E179: 1269.16 | F179: 36186.96 | G179: -1315.98 | K179: 1023 | L179: 107.64 | M179: 915.36 | N179: 85198.06 | O179: -1023 | S179: 152 | T179: 1315.98 | U179: 205855.6644 | V179: 85.77319352 | X179: 0 | Y179: 0 | AA179: 1315.98 | AB179: 205855.6644 | AC179: 85.77319352 | AE179: 0 | AF179: 0 | AH179: 1023 | AI179: 160025.4903 | AJ179: 66.67728762 | AL179: 0 | AM179: 0 | AO179: 0 | AP179: 0 | AQ179: 0 | AS179: 0 | AT179: 0 | AV179: 292.98 | AW179: 45830.17414 | AX179: 19.09590589 | AZ179: 0 | BA179: 0
B180: 153 | C180: 1315.98 | D180: 45.23 | E180: 1270.75 | F180: 34916.21 | G180: -1315.98 | K180: 1023 | L180: 106.5 | M180: 916.5 | N180: 84281.56 | O180: -1023 | S180: 153 | T180: 1315.98 | U180: 207171.6444 | V180: 86.32151852 | X180: 0 | Y180: 0 | AA180: 1315.98 | AB180: 207171.6444 | AC180: 86.32151852 | AE180: 0 | AF180: 0 | AH180: 1023 | AI180: 161048.4903 | AJ180: 67.10353762 | AL180: 0 | AM180: 0 | AO180: 0 | AP180: 0 | AQ180: 0 | AS180: 0 | AT180: 0 | AV180: 292.98 | AW180: 46123.15414 | AX180: 19.21798089 | AZ180: 0 | BA180: 0
B181: 154 | C181: 1315.98 | D181: 43.65 | E181: 1272.33 | F181: 33643.88 | G181: -1315.98 | K181: 1023 | L181: 105.35 | M181: 917.65 | N181: 83363.91 | O181: -1023 | S181: 154 | T181: 1315.98 | U181: 208487.6244 | V181: 86.86984352 | X181: 0 | Y181: 0 | AA181: 1315.98 | AB181: 208487.6244 | AC181: 86.86984352 | AE181: 0 | AF181: 0 | AH181: 1023 | AI181: 162071.4903 | AJ181: 67.52978762 | AL181: 0 | AM181: 0 | AO181: 0 | AP181: 0 | AQ181: 0 | AS181: 0 | AT181: 0 | AV181: 292.98 | AW181: 46416.13414 | AX181: 19.34005589 | AZ181: 0 | BA181: 0
B182: 155 | C182: 1315.98 | D182: 42.05 | E182: 1273.93 | F182: 32369.95 | G182: -1315.98 | K182: 1023 | L182: 104.2 | M182: 918.8 | N182: 82445.11 | O182: -1023 | S182: 155 | T182: 1315.98 | U182: 209803.6044 | V182: 87.41816852 | X182: 0 | Y182: 0 | AA182: 1315.98 | AB182: 209803.6044 | AC182: 87.41816852 | AE182: 0 | AF182: 0 | AH182: 1023 | AI182: 163094.4903 | AJ182: 67.95603762 | AL182: 0 | AM182: 0 | AO182: 0 | AP182: 0 | AQ182: 0 | AS182: 0 | AT182: 0 | AV182: 292.98 | AW182: 46709.11414 | AX182: 19.46213089 | AZ182: 0 | BA182: 0
B183: 156 | C183: 1315.98 | D183: 40.46 | E183: 1275.52 | F183: 31094.43 | G183: -1315.98 | K183: 1023 | L183: 103.06 | M183: 919.94 | N183: 81525.17 | O183: -1023 | S183: 156 | T183: 1315.98 | U183: 211119.5844 | V183: 87.96649352 | W183: =SUM(V172:V183) -> 1019.408472 | X183: =X182+Z183 -> 0 | Y183: 0 | Z183: =SUM(Y172:Y183) -> 0 | AA183: 1315.98 | AB183: 211119.5844 | AC183: 87.96649352 | AD183: =SUM(AC172:AC183) -> 1019.408472 | AE183: =AE182+AG183 -> 0 | AF183: 0 | AG183: =SUM(AF172:AF183) -> 0 | AH183: 1023 | AI183: 164117.4903 | AJ183: 68.38228762 | AK183: =SUM(AJ172:AJ183) -> 792.4549515 | AL183: =AL182+AN183 -> 0 | AM183: 0 | AN183: =SUM(AM172:AM183) -> 0 | AO183: 0 | AP183: 0 | AQ183: 0 | AR183: =SUM(AQ172:AQ183) -> 0 | AS183: =AS182+AU183 -> 0 | AT183: 0 | AU183: =SUM(AT172:AT183) -> 0 | AV183: 292.98 | AW183: 47002.09414 | AX183: 19.58420589 | AY183: =SUM(AX172:AX183) -> 226.9535207 | AZ183: =AZ182+BB183 -> 0 | BA183: 0 | BB183: =SUM(BA172:BA183) -> 0
B184: 157 | C184: 1315.98 | D184: 38.87 | E184: 1277.11 | F184: 29817.32 | G184: -1315.98 | K184: 1023 | L184: 101.91 | M184: 921.09 | N184: 80604.08 | O184: -1023 | S184: 157 | T184: 1315.98 | U184: =U183+T184+W183 -> 213454.9729 | V184: 88.93957205 | X184: 0 | Y184: 0 | AA184: 1315.98 | AB184: =AB183+AA184+AD183 -> 213454.9729 | AC184: 88.93957205 | AE184: 0 | AF184: 0 | AH184: 1023 | AI184: =AI183+AH184+AK183 -> 165932.9453 | AJ184: 69.13872719 | AL184: =AL183 -> 0 | AM184: 0 | AO184: 0 | AP184: =AP183+AO184+AR183 -> 0 | AQ184: 0 | AS184: 0 | AT184: 0 | AV184: 292.98 | AW184: =AW183+AV184+AY183 -> 47522.02766 | AX184: 19.80084486 | AZ184: =AZ183 -> 0 | BA184: 0
B185: 158 | C185: 1315.98 | D185: 37.27 | E185: 1278.71 | F185: 28538.61 | G185: -1315.98 | K185: 1023 | L185: 100.76 | M185: 922.24 | N185: 79681.84 | O185: -1023 | S185: 158 | T185: 1315.98 | U185: 214770.9529 | V185: 89.48789705 | X185: 0 | Y185: 0 | AA185: 1315.98 | AB185: 214770.9529 | AC185: 89.48789705 | AE185: 0 | AF185: 0 | AH185: 1023 | AI185: =AI184+AH185 -> 166955.9453 | AJ185: 69.56497719 | AL185: 0 | AM185: 0 | AO185: 0 | AP185: =AP184+AO185 -> 0 | AQ185: 0 | AS185: 0 | AT185: 0 | AV185: 292.98 | AW185: =AW184+AV185 -> 47815.00766 | AX185: 19.92291986 | AZ185: 0 | BA185: 0
B186: 159 | C186: 1315.98 | D186: 35.67 | E186: 1280.31 | F186: 27258.3 | G186: -1315.98 | K186: 1023 | L186: 99.6 | M186: 923.4 | N186: 78758.44 | O186: -1023 | S186: 159 | T186: 1315.98 | U186: 216086.9329 | V186: 90.03622205 | X186: 0 | Y186: 0 | AA186: 1315.98 | AB186: 216086.9329 | AC186: 90.03622205 | AE186: 0 | AF186: 0 | AH186: 1023 | AI186: 167978.9453 | AJ186: 69.99122719 | AL186: 0 | AM186: 0 | AO186: 0 | AP186: 0 | AQ186: 0 | AS186: 0 | AT186: 0 | AV186: 292.98 | AW186: 48107.98766 | AX186: 20.04499486 | AZ186: 0 | BA186: 0
B187: 160 | C187: 1315.98 | D187: 34.07 | E187: 1281.91 | F187: 25976.39 | G187: -1315.98 | K187: 1023 | L187: 98.45 | M187: 924.55 | N187: 77833.89 | O187: -1023 | S187: 160 | T187: 1315.98 | U187: 217402.9129 | V187: 90.58454705 | X187: 0 | Y187: 0 | AA187: 1315.98 | AB187: 217402.9129 | AC187: 90.58454705 | AE187: 0 | AF187: 0 | AH187: 1023 | AI187: 169001.9453 | AJ187: 70.41747719 | AL187: 0 | AM187: 0 | AO187: 0 | AP187: 0 | AQ187: 0 | AS187: 0 | AT187: 0 | AV187: 292.98 | AW187: 48400.96766 | AX187: 20.16706986 | AZ187: 0 | BA187: 0
B188: 161 | C188: 1315.98 | D188: =ROUND(F187*$E$9/12,2) -> 32.47 | E188: 1283.51 | F188: 24692.88 | G188: -1315.98 | K188: 1023 | L188: 97.29 | M188: 925.71 | N188: 76908.18 | O188: -1023 | S188: 161 | T188: 1315.98 | U188: 218718.8929 | V188: 91.13287205 | X188: 0 | Y188: 0 | AA188: 1315.98 | AB188: 218718.8929 | AC188: 91.13287205 | AE188: 0 | AF188: 0 | AH188: 1023 | AI188: 170024.9453 | AJ188: 70.84372719 | AL188: 0 | AM188: 0 | AO188: 0 | AP188: 0 | AQ188: 0 | AS188: 0 | AT188: 0 | AV188: 292.98 | AW188: 48693.94766 | AX188: 20.28914486 | AZ188: 0 | BA188: 0
B189: 162 | C189: 1315.98 | D189: 30.87 | E189: 1285.11 | F189: 23407.77 | G189: -1315.98 | K189: 1023 | L189: 96.14 | M189: 926.86 | N189: 75981.32 | O189: -1023 | S189: 162 | T189: 1315.98 | U189: 220034.8729 | V189: 91.68119705 | X189: 0 | Y189: 0 | AA189: 1315.98 | AB189: 220034.8729 | AC189: 91.68119705 | AE189: 0 | AF189: 0 | AH189: 1023 | AI189: 171047.9453 | AJ189: 71.26997719 | AL189: 0 | AM189: 0 | AO189: 0 | AP189: 0 | AQ189: 0 | AS189: 0 | AT189: 0 | AV189: 292.98 | AW189: 48986.92766 | AX189: 20.41121986 | AZ189: 0 | BA189: 0
B190: 163 | C190: 1315.98 | D190: 29.26 | E190: 1286.72 | F190: 22121.05 | G190: -1315.98 | K190: 1023 | L190: 94.98 | M190: 928.02 | N190: 75053.3 | O190: -1023 | S190: 163 | T190: 1315.98 | U190: 221350.8529 | V190: 92.22952205 | X190: 0 | Y190: 0 | AA190: 1315.98 | AB190: 221350.8529 | AC190: 92.22952205 | AE190: 0 | AF190: 0 | AH190: 1023 | AI190: 172070.9453 | AJ190: 71.69622719 | AL190: 0 | AM190: 0 | AO190: 0 | AP190: 0 | AQ190: 0 | AS190: 0 | AT190: 0 | AV190: 292.98 | AW190: 49279.90766 | AX190: 20.53329486 | AZ190: 0 | BA190: 0
B191: 164 | C191: 1315.98 | D191: 27.65 | E191: 1288.33 | F191: 20832.72 | G191: -1315.98 | K191: 1023 | L191: 93.82 | M191: 929.18 | N191: 74124.12 | O191: -1023 | S191: 164 | T191: 1315.98 | U191: 222666.8329 | V191: 92.77784705 | X191: 0 | Y191: 0 | AA191: 1315.98 | AB191: 222666.8329 | AC191: 92.77784705 | AE191: 0 | AF191: 0 | AH191: 1023 | AI191: 173093.9453 | AJ191: 72.12247719 | AL191: 0 | AM191: 0 | AO191: 0 | AP191: 0 | AQ191: 0 | AS191: 0 | AT191: 0 | AV191: 292.98 | AW191: 49572.88766 | AX191: 20.65536986 | AZ191: 0 | BA191: 0
B192: 165 | C192: 1315.98 | D192: 26.04 | E192: 1289.94 | F192: 19542.78 | G192: -1315.98 | K192: 1023 | L192: 92.66 | M192: 930.34 | N192: 73193.78 | O192: -1023 | S192: 165 | T192: 1315.98 | U192: 223982.8129 | V192: 93.32617205 | X192: 0 | Y192: 0 | AA192: 1315.98 | AB192: 223982.8129 | AC192: 93.32617205 | AE192: 0 | AF192: 0 | AH192: 1023 | AI192: 174116.9453 | AJ192: 72.54872719 | AL192: 0 | AM192: 0 | AO192: 0 | AP192: 0 | AQ192: 0 | AS192: 0 | AT192: 0 | AV192: 292.98 | AW192: 49865.86766 | AX192: 20.77744486 | AZ192: 0 | BA192: 0
B193: 166 | C193: 1315.98 | D193: 24.43 | E193: 1291.55 | F193: 18251.23 | G193: -1315.98 | K193: 1023 | L193: 91.49 | M193: 931.51 | N193: 72262.27 | O193: -1023 | S193: 166 | T193: 1315.98 | U193: 225298.7929 | V193: 93.87449705 | X193: 0 | Y193: 0 | AA193: 1315.98 | AB193: 225298.7929 | AC193: 93.87449705 | AE193: 0 | AF193: 0 | AH193: 1023 | AI193: 175139.9453 | AJ193: 72.97497719 | AL193: 0 | AM193: 0 | AO193: 0 | AP193: 0 | AQ193: 0 | AS193: 0 | AT193: 0 | AV193: 292.98 | AW193: 50158.84766 | AX193: 20.89951986 | AZ193: 0 | BA193: 0
B194: 167 | C194: 1315.98 | D194: 22.81 | E194: 1293.17 | F194: 16958.06 | G194: -1315.98 | K194: 1023 | L194: 90.33 | M194: 932.67 | N194: 71329.6 | O194: -1023 | S194: 167 | T194: 1315.98 | U194: 226614.7729 | V194: 94.42282205 | X194: 0 | Y194: 0 | AA194: 1315.98 | AB194: 226614.7729 | AC194: 94.42282205 | AE194: 0 | AF194: 0 | AH194: 1023 | AI194: 176162.9453 | AJ194: 73.40122719 | AL194: 0 | AM194: 0 | AO194: 0 | AP194: 0 | AQ194: 0 | AS194: 0 | AT194: 0 | AV194: 292.98 | AW194: 50451.82766 | AX194: 21.02159486 | AZ194: 0 | BA194: 0
B195: 168 | C195: 1315.98 | D195: 21.2 | E195: 1294.78 | F195: 15663.28 | G195: -1315.98 | K195: 1023 | L195: 89.16 | M195: 933.84 | N195: 70395.76 | O195: -1023 | S195: 168 | T195: 1315.98 | U195: 227930.7529 | V195: 94.97114705 | W195: =SUM(V184:V195) -> 1103.464315 | X195: =X194+Z195 -> 0 | Y195: 0 | Z195: =SUM(Y184:Y195) -> 0 | AA195: 1315.98 | AB195: 227930.7529 | AC195: 94.97114705 | AD195: =SUM(AC184:AC195) -> 1103.464315 | AE195: =AE194+AG195 -> 0 | AF195: 0 | AG195: =SUM(AF184:AF195) -> 0 | AH195: 1023 | AI195: 177185.9453 | AJ195: 73.82747719 | AK195: =SUM(AJ184:AJ195) -> 857.7972263 | AL195: =AL194+AN195 -> 0 | AM195: 0 | AN195: =SUM(AM184:AM195) -> 0 | AO195: 0 | AP195: 0 | AQ195: 0 | AR195: =SUM(AQ184:AQ195) -> 0 | AS195: =AS194+AU195 -> 0 | AT195: 0 | AU195: =SUM(AT184:AT195) -> 0 | AV195: 292.98 | AW195: 50744.80766 | AX195: 21.14366986 | AY195: =SUM(AX184:AX195) -> 245.6670883 | AZ195: =AZ194+BB195 -> 0 | BA195: 0 | BB195: =SUM(BA184:BA195) -> 0
B196: 169 | C196: 1315.98 | D196: 19.58 | E196: 1296.4 | F196: 14366.88 | G196: -1315.98 | K196: 1023 | L196: 87.99 | M196: 935.01 | N196: 69460.75 | O196: -1023 | S196: 169 | T196: 1315.98 | U196: =U195+T196+W195 -> 230350.1972 | V196: 95.97924885 | X196: 0 | Y196: 0 | AA196: 1315.98 | AB196: =AB195+AA196+AD195 -> 230350.1972 | AC196: 95.97924885 | AE196: 0 | AF196: 0 | AH196: 1023 | AI196: =AI195+AH196+AK195 -> 179066.7425 | AJ196: 74.6111427 | AL196: =AL195 -> 0 | AM196: 0 | AO196: 0 | AP196: =AP195+AO196+AR195 -> 0 | AQ196: 0 | AS196: 0 | AT196: 0 | AV196: 292.98 | AW196: =AW195+AV196+AY195 -> 51283.45475 | AX196: 21.36810615 | AZ196: =AZ195 -> 0 | BA196: 0
B197: 170 | C197: 1315.98 | D197: 17.96 | E197: 1298.02 | F197: 13068.86 | G197: -1315.98 | K197: 1023 | L197: 86.83 | M197: 936.17 | N197: 68524.58 | O197: -1023 | S197: 170 | T197: 1315.98 | U197: 231666.1772 | V197: 96.52757385 | X197: 0 | Y197: 0 | AA197: 1315.98 | AB197: 231666.1772 | AC197: 96.52757385 | AE197: 0 | AF197: 0 | AH197: 1023 | AI197: =AI196+AH197 -> 180089.7425 | AJ197: 75.0373927 | AL197: 0 | AM197: 0 | AO197: 0 | AP197: =AP196+AO197 -> 0 | AQ197: 0 | AS197: 0 | AT197: 0 | AV197: 292.98 | AW197: =AW196+AV197 -> 51576.43475 | AX197: 21.49018115 | AZ197: 0 | BA197: 0
B198: 171 | C198: 1315.98 | D198: 16.34 | E198: 1299.64 | F198: 11769.22 | G198: -1315.98 | K198: 1023 | L198: 85.66 | M198: 937.34 | N198: 67587.24 | O198: -1023 | S198: 171 | T198: 1315.98 | U198: 232982.1572 | V198: 97.07589885 | X198: 0 | Y198: 0 | AA198: 1315.98 | AB198: 232982.1572 | AC198: 97.07589885 | AE198: 0 | AF198: 0 | AH198: 1023 | AI198: 181112.7425 | AJ198: 75.4636427 | AL198: 0 | AM198: 0 | AO198: 0 | AP198: 0 | AQ198: 0 | AS198: 0 | AT198: 0 | AV198: 292.98 | AW198: 51869.41475 | AX198: 21.61225615 | AZ198: 0 | BA198: 0
B199: 172 | C199: 1315.98 | D199: 14.71 | E199: 1301.27 | F199: 10467.95 | G199: -1315.98 | K199: 1023 | L199: 84.48 | M199: 938.52 | N199: 66648.72 | O199: -1023 | S199: 172 | T199: 1315.98 | U199: 234298.1372 | V199: 97.62422385 | X199: 0 | Y199: 0 | AA199: 1315.98 | AB199: 234298.1372 | AC199: 97.62422385 | AE199: 0 | AF199: 0 | AH199: 1023 | AI199: 182135.7425 | AJ199: 75.8898927 | AL199: 0 | AM199: 0 | AO199: 0 | AP199: 0 | AQ199: 0 | AS199: 0 | AT199: 0 | AV199: 292.98 | AW199: 52162.39475 | AX199: 21.73433115 | AZ199: 0 | BA199: 0
B200: 173 | C200: 1315.98 | D200: 13.08 | E200: 1302.9 | F200: 9165.05 | G200: -1315.98 | K200: 1023 | L200: 83.31 | M200: 939.69 | N200: 65709.03 | O200: -1023 | S200: 173 | T200: 1315.98 | U200: 235614.1172 | V200: 98.17254885 | X200: 0 | Y200: 0 | AA200: 1315.98 | AB200: 235614.1172 | AC200: 98.17254885 | AE200: 0 | AF200: 0 | AH200: 1023 | AI200: 183158.7425 | AJ200: 76.3161427 | AL200: 0 | AM200: 0 | AO200: 0 | AP200: 0 | AQ200: 0 | AS200: 0 | AT200: 0 | AV200: 292.98 | AW200: 52455.37475 | AX200: 21.85640615 | AZ200: 0 | BA200: 0
B201: 174 | C201: 1315.98 | D201: 11.46 | E201: 1304.52 | F201: 7860.53 | G201: -1315.98 | K201: 1023 | L201: 82.14 | M201: 940.86 | N201: 64768.17 | O201: -1023 | S201: 174 | T201: 1315.98 | U201: 236930.0972 | V201: 98.72087385 | X201: 0 | Y201: 0 | AA201: 1315.98 | AB201: 236930.0972 | AC201: 98.72087385 | AE201: 0 | AF201: 0 | AH201: 1023 | AI201: 184181.7425 | AJ201: 76.7423927 | AL201: 0 | AM201: 0 | AO201: 0 | AP201: 0 | AQ201: 0 | AS201: 0 | AT201: 0 | AV201: 292.98 | AW201: 52748.35475 | AX201: 21.97848115 | AZ201: 0 | BA201: 0
B202: 175 | C202: 1315.98 | D202: 9.83 | E202: 1306.15 | F202: 6554.38 | G202: -1315.98 | K202: 1023 | L202: 80.96 | M202: 942.04 | N202: 63826.13 | O202: -1023 | S202: 175 | T202: 1315.98 | U202: 238246.0772 | V202: 99.26919885 | X202: 0 | Y202: 0 | AA202: 1315.98 | AB202: 238246.0772 | AC202: 99.26919885 | AE202: 0 | AF202: 0 | AH202: 1023 | AI202: 185204.7425 | AJ202: 77.1686427 | AL202: 0 | AM202: 0 | AO202: 0 | AP202: 0 | AQ202: 0 | AS202: 0 | AT202: 0 | AV202: 292.98 | AW202: 53041.33475 | AX202: 22.10055615 | AZ202: 0 | BA202: 0
... 70 more rows

Sheet Feuil3
